SERVICE_CODE,ORGANISATION_UNIT,EXPENDITURE_CATEGORY,EXPENDITURE_DESCRIPTION,EXPENDITURE_CODE,NARRATIVE,DATE,TRANSATION_CODE,NET_AMOUNT,SUPPLIER_CODE,SUPPLIER_NAME,FROM_DATE,TO_DATE,FINANCIAL_PERIOD_YEAR
P&V,NORTH AREA RANGERS,EMPLOYEES,APPOINTMENT EXPENSES,1301,P115176-SERVICE-RSM/RANGERS/CUST SER OFF- RECRUITMENT COSTS,22/11/2021 00:00:00,255748,1875.3,SA0133,SOWERBY ADVERTISING AND COMMUNICATIONS,11/01/2021 00:00,28/11/2021 00:00:00,P08-2022
R&B,CORPORATE TRAINING,EMPLOYEES,TRAINING EXPENSES,1305,P114342-SERVICE-FAW RENEWAL 21-22 OCT 21,11/08/2021 00:00,255090,1050,RI0181,RD HEALTH & SAFETY LIMITED,11/01/2021 00:00,28/11/2021 00:00:00,P08-2022
R&B,CORPORATE TRAINING,EMPLOYEES,TRAINING EXPENSES,1305,P114343-SERVICE-L ROPER EXCELL TRAINING,11/10/2021 00:00,255309,140,WW0210,WWP TRAINING LIMITED t/a KEY TRAINING,11/01/2021 00:00,28/11/2021 00:00:00,P08-2022
R&B,CORPORATE TRAINING,EMPLOYEES,TRAINING EXPENSES,1305,P115104-SERVICE-CATH PATRICK FIRST AID REQUAL 2/3 DEC 21,15/11/2021 00:00:00,255693,219,BR0069,BRITISH RED CROSS SOCIETY,11/01/2021 00:00,28/11/2021 00:00:00,P08-2022
R&B,CORPORATE TRAINING,EMPLOYEES,TRAINING EXPENSES,1305,P115125-SERVICE-FAW FULL - M VISRAM 8-10 DEC 21,16/11/2021 00:00:00,255702,379,BR0069,BRITISH RED CROSS SOCIETY,11/01/2021 00:00,28/11/2021 00:00:00,P08-2022
R&B,CORPORATE TRAINING,EMPLOYEES,TRAINING EXPENSES,1305,P115104-SERVICE-LISA HYDE FIRST AID REQUAL 13/14 DEC 21,16/11/2021 00:00:00,255703,259,BR0069,BRITISH RED CROSS SOCIETY,11/01/2021 00:00,28/11/2021 00:00:00,P08-2022
R&B,CORPORATE TRAINING,EMPLOYEES,TRAINING EXPENSES,1305,P115198-SERVICE-DSO TRAINING 9/11/21,22/11/2021 00:00:00,255733,500,TR0618,"TRAINING, CONSULTANCY AND PRACTICE LTD",11/01/2021 00:00,28/11/2021 00:00:00,P08-2022
R&B,CORPORATE TRAINING,EMPLOYEES,TRAINING EXPENSES,1305,P115321-SERVICE-Full FAW 20-22 Sept,23/11/2021 00:00:00,255804,1575,RI0181,RD HEALTH & SAFETY LIMITED,11/01/2021 00:00,28/11/2021 00:00:00,P08-2022
P&V,SOUTH AREA RANGERS,EMPLOYEES,TRAINING EXPENSES,1305,P115062-SERVICE-Deliver Bylaw Training at Myddelton House,15/11/2021 00:00:00,255471,500,SP0669,SPECIALISED TRAINING SERVICES (ESSEX),11/01/2021 00:00,28/11/2021 00:00:00,P08-2022
P&V,POLICY & PERFORMANCE (L&E),EMPLOYEES,TRAINING EXPENSES,1305,P115023-SERVICE-Excel training 17/11/21,16/11/2021 00:00:00,255632,140,WW0210,WWP TRAINING LIMITED t/a KEY TRAINING,11/01/2021 00:00,28/11/2021 00:00:00,P08-2022
,LEE VALLEY WHITE WATER CENTRE,EMPLOYEES,TRAINING EXPENSES,1305,P114938-SERVICE-Pool Operator Training,11/10/2021 00:00,255089,3480,RI0181,RD HEALTH & SAFETY LIMITED,11/01/2021 00:00,28/11/2021 00:00:00,P08-2022
,LEE VALLEY WHITE WATER CENTRE,EMPLOYEES,TRAINING EXPENSES,1305,P114959-SERVICE-BC Coach Award Core Training,11/10/2021 00:00,255269,600,RO0273,ROCK THE BOAT ACTIVITIES,11/01/2021 00:00,28/11/2021 00:00:00,P08-2022
,LEE VALLEY WHITE WATER CENTRE,EMPLOYEES,TRAINING EXPENSES,1305,ROCK THE BOAT ACTIVITIES,11/10/2021 00:00,255269,-600,RO0273,ROCK THE BOAT ACTIVITIES,11/01/2021 00:00,28/11/2021 00:00:00,P08-2022
,LEE VALLEY WHITE WATER CENTRE,EMPLOYEES,TRAINING EXPENSES,1305,ROCK THE BOAT ACTIVITIES,11/10/2021 00:00,255269,500,RO0273,ROCK THE BOAT ACTIVITIES,11/01/2021 00:00,28/11/2021 00:00:00,P08-2022
,LEE VALLEY WHITE WATER CENTRE,EMPLOYEES,TRAINING EXPENSES,1305,ROCK THE BOAT ACTIVITIES,11/10/2021 00:00,255269,100,RO0273,ROCK THE BOAT ACTIVITIES,11/01/2021 00:00,28/11/2021 00:00:00,P08-2022
,LEE VALLEY WHITE WATER CENTRE,EMPLOYEES,TRAINING EXPENSES,1305,P115336-SERVICE-Raised as another invoice was raised in error,28/11/2021 00:00:00,255806,3480,RI0181,RD HEALTH & SAFETY LIMITED,11/01/2021 00:00,28/11/2021 00:00:00,P08-2022
,LEE VALLEY WHITE WATER CENTRE,EMPLOYEES,TRAINING EXPENSES,1305,P115336-SERVICE-Raised as another invoice was raised in error,28/11/2021 00:00:00,255950,-3480,RI0181,RD HEALTH & SAFETY LIMITED,11/01/2021 00:00,28/11/2021 00:00:00,P08-2022
,LEE VALLEY WHITE WATER CENTRE,EMPLOYEES,TRAINING EXPENSES,1305,P115103-SERVICE-2 days training,28/11/2021 00:00:00,255997,300.45,BO0584,BOB TIMMS CONSULTING,11/01/2021 00:00,28/11/2021 00:00:00,P08-2022
R&B,NON DISTRIBUTED COSTS,EMPLOYEES,SUPERANNUATION ADDED YEARS,1310,LONDON PENSIONS FUND AUTHORITY,11/09/2021 00:00,255025,5501.35,LO0031,LONDON PENSIONS FUND AUTHORITY,11/01/2021 00:00,28/11/2021 00:00:00,P08-2022
,LEE VALLEY MARINA SPRINGFIELD,EMPLOYEES,CRB CHECKS,1330,DBS CHECKS,11/10/2021 00:00,255268,23,DD0119,DUE DILIGENCE CHECKING LIMITED,11/01/2021 00:00,28/11/2021 00:00:00,P08-2022
,LEE VALLEY MARINA SPRINGFIELD,EMPLOYEES,CRB CHECKS,1330,ADMIN FEE,11/10/2021 00:00,255268,18,DD0119,DUE DILIGENCE CHECKING LIMITED,11/01/2021 00:00,28/11/2021 00:00:00,P08-2022
,LEE VALLEY CAMPSITE,EMPLOYEES,CRB CHECKS,1330,DBS CHECKS,11/10/2021 00:00,255268,23,DD0119,DUE DILIGENCE CHECKING LIMITED,11/01/2021 00:00,28/11/2021 00:00:00,P08-2022
,LEE VALLEY CAMPSITE,EMPLOYEES,CRB CHECKS,1330,ADMIN FEE,11/10/2021 00:00,255268,18,DD0119,DUE DILIGENCE CHECKING LIMITED,11/01/2021 00:00,28/11/2021 00:00:00,P08-2022
P&V,YOUTH AND SCHOOLS,EMPLOYEES,CRB CHECKS,1330,P114995-SERVICE-DBS chceck- Lucy Crane,11/09/2021 00:00,255267,18,DD0119,DUE DILIGENCE CHECKING LIMITED,11/01/2021 00:00,28/11/2021 00:00:00,P08-2022
P&V,SOUTH AREA RANGERS,EMPLOYEES,CRB CHECKS,1330,ADMIN FEE,11/10/2021 00:00,255268,18,DD0119,DUE DILIGENCE CHECKING LIMITED,11/01/2021 00:00,28/11/2021 00:00:00,P08-2022
P&V,SOUTH AREA RANGERS,EMPLOYEES,CRB CHECKS,1330,DBS CHECKS,11/10/2021 00:00,255268,40,DD0119,DUE DILIGENCE CHECKING LIMITED,11/01/2021 00:00,28/11/2021 00:00:00,P08-2022
,LEE VALLEY RIDING CENTRE,EMPLOYEES,CRB CHECKS,1330,ADMIN FEE,11/10/2021 00:00,255268,36,DD0119,DUE DILIGENCE CHECKING LIMITED,11/01/2021 00:00,28/11/2021 00:00:00,P08-2022
,LEE VALLEY RIDING CENTRE,EMPLOYEES,CRB CHECKS,1330,DBS CHECKS,11/10/2021 00:00,255268,40,DD0119,DUE DILIGENCE CHECKING LIMITED,11/01/2021 00:00,28/11/2021 00:00:00,P08-2022
,LEE VALLEY ATHLETICS CENTRE,EMPLOYEES,CRB CHECKS,1330,ADMIN FEE,11/10/2021 00:00,255268,54,DD0119,DUE DILIGENCE CHECKING LIMITED,11/01/2021 00:00,28/11/2021 00:00:00,P08-2022
,LEE VALLEY ATHLETICS CENTRE,EMPLOYEES,CRB CHECKS,1330,DBS CHECKS,11/10/2021 00:00,255268,23,DD0119,DUE DILIGENCE CHECKING LIMITED,11/01/2021 00:00,28/11/2021 00:00:00,P08-2022
R&B,CORPORATE TRAINING,EMPLOYEES,APPRENTICE LEVY,1390,PAYE,22/11/2021 00:00:00,255657,1919,HM0368,HMRC,11/01/2021 00:00,28/11/2021 00:00:00,P08-2022
CEO,LVLC SERVICE CHARGE,PREMISES RELATED EXPENDITURE,SCHEDULED GROUND MAINTENANCE,2111,GLENDALE GROUNDS MANAGEMENT LI,11/08/2021 00:00,255064,50.68,GL0214,GLENDALE GROUNDS MANAGEMENT LIMITED,11/01/2021 00:00,28/11/2021 00:00:00,P08-2022
CEO,LVLC SERVICE CHARGE,PREMISES RELATED EXPENDITURE,SCHEDULED GROUND MAINTENANCE,2111,GLENDALE GROUNDS MANAGEMENT LI,11/08/2021 00:00,255064,1149.9,GL0214,GLENDALE GROUNDS MANAGEMENT LIMITED,11/01/2021 00:00,28/11/2021 00:00:00,P08-2022
CEO,LVLC SERVICE CHARGE,PREMISES RELATED EXPENDITURE,SCHEDULED GROUND MAINTENANCE,2111,GLENDALE GROUNDS MANAGEMENT LI,11/09/2021 00:00,255422,52.27,GL0214,GLENDALE GROUNDS MANAGEMENT LIMITED,11/01/2021 00:00,28/11/2021 00:00:00,P08-2022
,LEE VALLEY MARINA SPRINGFIELD,PREMISES RELATED EXPENDITURE,UNSCHEDULED GROUND MAINTENANCE,2112,P114766-SERVICE-To reduce ash tree that split on the island,11/08/2021 00:00,254766,375,PA0222,PARKIN & PARKER TREE SPECIALISTS,11/01/2021 00:00,28/11/2021 00:00:00,P08-2022
P&V,MYDDELTON HOUSE,PREMISES RELATED EXPENDITURE,CONTRACT CLEANING,2120,P112094-SERVICE-Myddelton House Cleaning Contract,22/11/2021 00:00:00,255798,3055.52,BR0632,BRITANNIA SERVICES GROUP LTD,11/01/2021 00:00,28/11/2021 00:00:00,P08-2022
,LEE VALLEY CAMPSITE,PREMISES RELATED EXPENDITURE,CONTRACT CLEANING,2120,P115243-SERVICE-Site Cleaning OCT 21,18/11/2021 00:00:00,255258,2210,LI0305,LIMPIAR CLEANING,11/01/2021 00:00,28/11/2021 00:00:00,P08-2022
,LEE VALLEY CARAVAN PARK,PREMISES RELATED EXPENDITURE,CONTRACT CLEANING,2120,P114942-SERVICE-linen service,11/08/2021 00:00,253777,648.56,JO0168,JOHNSON STALBRIDGE LINEN SERVICES,11/01/2021 00:00,28/11/2021 00:00:00,P08-2022
,LEE VALLEY CARAVAN PARK,PREMISES RELATED EXPENDITURE,CONTRACT CLEANING,2120,P114951-SERVICE-Laundry cleaning,11/08/2021 00:00,254994,567.48,JO0168,JOHNSON STALBRIDGE LINEN SERVICES,11/01/2021 00:00,28/11/2021 00:00:00,P08-2022
,LEE VALLEY CARAVAN PARK,PREMISES RELATED EXPENDITURE,CONTRACT CLEANING,2120,P114947-SERVICE-Cleaning,11/09/2021 00:00,255259,3334.5,LI0305,LIMPIAR CLEANING,11/01/2021 00:00,28/11/2021 00:00:00,P08-2022
,LEE VALLEY CARAVAN PARK,PREMISES RELATED EXPENDITURE,CONTRACT CLEANING,2120,P114948-SERVICE-Cleaning,11/09/2021 00:00,255260,150,LI0305,LIMPIAR CLEANING,11/01/2021 00:00,28/11/2021 00:00:00,P08-2022
,LEE VALLEY CARAVAN PARK,PREMISES RELATED EXPENDITURE,CONTRACT CLEANING,2120,P115409-SERVICE-Monthly laundry,28/11/2021 00:00:00,256212,608.69,JO0168,JOHNSON STALBRIDGE LINEN SERVICES,11/01/2021 00:00,28/11/2021 00:00:00,P08-2022
P&V,NORTH AREA RANGERS,PREMISES RELATED EXPENDITURE,CONTRACT CLEANING,2120,GLENDALE GROUNDS MANAGEMENT LI,11/08/2021 00:00,255064,254.55,GL0214,GLENDALE GROUNDS MANAGEMENT LIMITED,11/01/2021 00:00,28/11/2021 00:00:00,P08-2022
P&V,GUNPOWDER PARK,PREMISES RELATED EXPENDITURE,CONTRACT CLEANING,2120,GLENDALE GROUNDS MANAGEMENT LI,11/08/2021 00:00,255064,254.55,GL0214,GLENDALE GROUNDS MANAGEMENT LIMITED,11/01/2021 00:00,28/11/2021 00:00:00,P08-2022
P&V,RIVER LEE COUNTRY PARK,PREMISES RELATED EXPENDITURE,CONTRACT CLEANING,2120,GLENDALE GROUNDS MANAGEMENT LI,11/08/2021 00:00,255064,509.09,GL0214,GLENDALE GROUNDS MANAGEMENT LIMITED,11/01/2021 00:00,28/11/2021 00:00:00,P08-2022
,LEE VALLEY VELOPARK,PREMISES RELATED EXPENDITURE,CONTRACT CLEANING,2120,P115007-SERVICE-Contract Cleaning,15/11/2021 00:00:00,255063,1123.77,CA0498,CASNA GROUP,11/01/2021 00:00,28/11/2021 00:00:00,P08-2022
,LEE VALLEY VELOPARK,PREMISES RELATED EXPENDITURE,CONTRACT CLEANING,2120,P115010-SERVICE-Contract Cleaning,15/11/2021 00:00:00,255126,1036.26,CA0498,CASNA GROUP,11/01/2021 00:00,28/11/2021 00:00:00,P08-2022
,LEE VALLEY VELOPARK,PREMISES RELATED EXPENDITURE,CONTRACT CLEANING,2120,P115148-SERVICE-Contract Cleaning,18/11/2021 00:00:00,255303,1104.09,CA0498,CASNA GROUP,11/01/2021 00:00,28/11/2021 00:00:00,P08-2022
,LEE VALLEY VELOPARK,PREMISES RELATED EXPENDITURE,CONTRACT CLEANING,2120,P114878-SERVICE-Spot Clean,15/11/2021 00:00:00,255664,207.1,ELI0362,ELITE SUPPORT SERVICES (LONDON) LIMITED,11/01/2021 00:00,28/11/2021 00:00:00,P08-2022
,LEE VALLEY VELOPARK,PREMISES RELATED EXPENDITURE,CONTRACT CLEANING,2120,P115282-SERVICE-Contract Cleaning 7/11/21,28/11/2021 00:00:00,255929,1673.22,CA0498,CASNA GROUP,11/01/2021 00:00,28/11/2021 00:00:00,P08-2022
,LV LEISURE CENTRE CAMPSITE,PREMISES RELATED EXPENDITURE,CONTRACT CLEANING,2120,P115093-SERVICE-Contract cleaning,18/11/2021 00:00:00,255286,2073.5,LI0305,LIMPIAR CLEANING,11/01/2021 00:00,28/11/2021 00:00:00,P08-2022
,LEE VALLEY RIDING CENTRE,PREMISES RELATED EXPENDITURE,CLEANING CONTRACT,2121,P113893-SERVICE-centre cleaning august 21 - dec 21,11/09/2021 00:00,255014,1082.01,MA0015,MAYFAIR CLEANING COMPANY LIMITED,11/01/2021 00:00,28/11/2021 00:00:00,P08-2022
,LEE VALLEY WHITE WATER CENTRE,PREMISES RELATED EXPENDITURE,CLEANING CONTRACT,2121,P114618-SERVICE-Contract Cleaning - Oct to Mar,11/10/2021 00:00,255304,818.79,CA0498,CASNA GROUP,11/01/2021 00:00,28/11/2021 00:00:00,P08-2022
,LEE VALLEY WHITE WATER CENTRE,PREMISES RELATED EXPENDITURE,CLEANING CONTRACT,2121,P115322-SERVICE-November to Jan Contract Cleaning,23/11/2021 00:00:00,255932,760.31,CA0498,CASNA GROUP,11/01/2021 00:00,28/11/2021 00:00:00,P08-2022
,LEE VALLEY WHITE WATER CENTRE,PREMISES RELATED EXPENDITURE,CLEANING CONTRACT,2121,P115322-SERVICE-November to Jan Contract Cleaning,28/11/2021 00:00:00,256182,793.73,CA0498,CASNA GROUP,11/01/2021 00:00,28/11/2021 00:00:00,P08-2022
,LEE VALLEY MARINA STANSTEAD,PREMISES RELATED EXPENDITURE,GM MAIN CONTRACT SCHEDULED,2141,GLENDALE GROUNDS MANAGEMENT LI,11/08/2021 00:00,255064,176.98,GL0214,GLENDALE GROUNDS MANAGEMENT LIMITED,11/01/2021 00:00,28/11/2021 00:00:00,P08-2022
,LEE VALLEY MARINA STANSTEAD,PREMISES RELATED EXPENDITURE,GM MAIN CONTRACT SCHEDULED,2141,GLENDALE GROUNDS MANAGEMENT LI,11/09/2021 00:00,255422,43.68,GL0214,GLENDALE GROUNDS MANAGEMENT LIMITED,11/01/2021 00:00,28/11/2021 00:00:00,P08-2022
,LEE VALLEY WATERWORKS CENTRE,PREMISES RELATED EXPENDITURE,GM MAIN CONTRACT SCHEDULED,2141,GLENDALE GROUNDS MANAGEMENT LI,11/08/2021 00:00,255064,201.72,GL0214,GLENDALE GROUNDS MANAGEMENT LIMITED,11/01/2021 00:00,28/11/2021 00:00:00,P08-2022
,LEE VALLEY WATERWORKS CENTRE,PREMISES RELATED EXPENDITURE,GM MAIN CONTRACT SCHEDULED,2141,GLENDALE GROUNDS MANAGEMENT LI,11/08/2021 00:00,255064,87.49,GL0214,GLENDALE GROUNDS MANAGEMENT LIMITED,11/01/2021 00:00,28/11/2021 00:00:00,P08-2022
,LEE VALLEY WATERWORKS CENTRE,PREMISES RELATED EXPENDITURE,GM MAIN CONTRACT SCHEDULED,2141,GLENDALE GROUNDS MANAGEMENT LI,11/09/2021 00:00,255422,43.96,GL0214,GLENDALE GROUNDS MANAGEMENT LIMITED,11/01/2021 00:00,28/11/2021 00:00:00,P08-2022
,LEE VALLEY FARM HAYES HILL,PREMISES RELATED EXPENDITURE,GM MAIN CONTRACT SCHEDULED,2141,GLENDALE GROUNDS MANAGEMENT LI,11/08/2021 00:00,255064,94.25,GL0214,GLENDALE GROUNDS MANAGEMENT LIMITED,11/01/2021 00:00,28/11/2021 00:00:00,P08-2022
,LEE VALLEY FARM HAYES HILL,PREMISES RELATED EXPENDITURE,GM MAIN CONTRACT SCHEDULED,2141,GLENDALE GROUNDS MANAGEMENT LI,11/09/2021 00:00,255422,18.16,GL0214,GLENDALE GROUNDS MANAGEMENT LIMITED,11/01/2021 00:00,28/11/2021 00:00:00,P08-2022
P&V,EAST INDIA DOCK AND BOW CREEK,PREMISES RELATED EXPENDITURE,GM MAIN CONTRACT SCHEDULED,2141,GLENDALE GROUNDS MANAGEMENT LI,11/08/2021 00:00,255064,437.46,GL0214,GLENDALE GROUNDS MANAGEMENT LIMITED,11/01/2021 00:00,28/11/2021 00:00:00,P08-2022
P&V,EAST INDIA DOCK AND BOW CREEK,PREMISES RELATED EXPENDITURE,GM MAIN CONTRACT SCHEDULED,2141,GLENDALE GROUNDS MANAGEMENT LI,11/08/2021 00:00,255064,358.21,GL0214,GLENDALE GROUNDS MANAGEMENT LIMITED,11/01/2021 00:00,28/11/2021 00:00:00,P08-2022
P&V,EAST INDIA DOCK AND BOW CREEK,PREMISES RELATED EXPENDITURE,GM MAIN CONTRACT SCHEDULED,2141,GLENDALE GROUNDS MANAGEMENT LI,11/09/2021 00:00,255422,127.56,GL0214,GLENDALE GROUNDS MANAGEMENT LIMITED,11/01/2021 00:00,28/11/2021 00:00:00,P08-2022
P&V,NORTH AREA RANGERS,PREMISES RELATED EXPENDITURE,GM MAIN CONTRACT SCHEDULED,2141,GLENDALE GROUNDS MANAGEMENT LI,11/08/2021 00:00,255064,2563.42,GL0214,GLENDALE GROUNDS MANAGEMENT LIMITED,11/01/2021 00:00,28/11/2021 00:00:00,P08-2022
P&V,NORTH AREA RANGERS,PREMISES RELATED EXPENDITURE,GM MAIN CONTRACT SCHEDULED,2141,GLENDALE GROUNDS MANAGEMENT LI,11/09/2021 00:00,255422,331.75,GL0214,GLENDALE GROUNDS MANAGEMENT LIMITED,11/01/2021 00:00,28/11/2021 00:00:00,P08-2022
P&V,SOUTH AREA RANGERS,PREMISES RELATED EXPENDITURE,GM MAIN CONTRACT SCHEDULED,2141,GLENDALE GROUNDS MANAGEMENT LI,11/08/2021 00:00,255064,349.96,GL0214,GLENDALE GROUNDS MANAGEMENT LIMITED,11/01/2021 00:00,28/11/2021 00:00:00,P08-2022
P&V,SOUTH AREA RANGERS,PREMISES RELATED EXPENDITURE,GM MAIN CONTRACT SCHEDULED,2141,GLENDALE GROUNDS MANAGEMENT LI,11/08/2021 00:00,255064,4992.65,GL0214,GLENDALE GROUNDS MANAGEMENT LIMITED,11/01/2021 00:00,28/11/2021 00:00:00,P08-2022
P&V,SOUTH AREA RANGERS,PREMISES RELATED EXPENDITURE,GM MAIN CONTRACT SCHEDULED,2141,GLENDALE GROUNDS MANAGEMENT LI,11/09/2021 00:00,255422,533.1,GL0214,GLENDALE GROUNDS MANAGEMENT LIMITED,11/01/2021 00:00,28/11/2021 00:00:00,P08-2022
P&V,ABBEY GARDENS,PREMISES RELATED EXPENDITURE,GM MAIN CONTRACT SCHEDULED,2141,GLENDALE GROUNDS MANAGEMENT LI,11/08/2021 00:00,255064,1331.73,GL0214,GLENDALE GROUNDS MANAGEMENT LIMITED,11/01/2021 00:00,28/11/2021 00:00:00,P08-2022
P&V,ABBEY GARDENS,PREMISES RELATED EXPENDITURE,GM MAIN CONTRACT SCHEDULED,2141,GLENDALE GROUNDS MANAGEMENT LI,11/09/2021 00:00,255422,95.66,GL0214,GLENDALE GROUNDS MANAGEMENT LIMITED,11/01/2021 00:00,28/11/2021 00:00:00,P08-2022
P&V,GUNPOWDER PARK,PREMISES RELATED EXPENDITURE,GM MAIN CONTRACT SCHEDULED,2141,GLENDALE GROUNDS MANAGEMENT LI,11/08/2021 00:00,255064,1514.42,GL0214,GLENDALE GROUNDS MANAGEMENT LIMITED,11/01/2021 00:00,28/11/2021 00:00:00,P08-2022
P&V,GUNPOWDER PARK,PREMISES RELATED EXPENDITURE,GM MAIN CONTRACT SCHEDULED,2141,GLENDALE GROUNDS MANAGEMENT LI,11/09/2021 00:00,255422,201.7,GL0214,GLENDALE GROUNDS MANAGEMENT LIMITED,11/01/2021 00:00,28/11/2021 00:00:00,P08-2022
P&V,RIVER LEE COUNTRY PARK,PREMISES RELATED EXPENDITURE,GM MAIN CONTRACT SCHEDULED,2141,GLENDALE GROUNDS MANAGEMENT LI,11/08/2021 00:00,255064,1049.89,GL0214,GLENDALE GROUNDS MANAGEMENT LIMITED,11/01/2021 00:00,28/11/2021 00:00:00,P08-2022
P&V,RIVER LEE COUNTRY PARK,PREMISES RELATED EXPENDITURE,GM MAIN CONTRACT SCHEDULED,2141,GLENDALE GROUNDS MANAGEMENT LI,11/08/2021 00:00,255064,9075.91,GL0214,GLENDALE GROUNDS MANAGEMENT LIMITED,11/01/2021 00:00,28/11/2021 00:00:00,P08-2022
P&V,RIVER LEE COUNTRY PARK,PREMISES RELATED EXPENDITURE,GM MAIN CONTRACT SCHEDULED,2141,GLENDALE GROUNDS MANAGEMENT LI,11/09/2021 00:00,255422,1426.75,GL0214,GLENDALE GROUNDS MANAGEMENT LIMITED,11/01/2021 00:00,28/11/2021 00:00:00,P08-2022
,LEE VALLEY VELOPARK,PREMISES RELATED EXPENDITURE,GM MAIN CONTRACT SCHEDULED,2141,GLENDALE GROUNDS MANAGEMENT LI,11/08/2021 00:00,255064,846.1,GL0214,GLENDALE GROUNDS MANAGEMENT LIMITED,11/01/2021 00:00,28/11/2021 00:00:00,P08-2022
,LEE VALLEY VELOPARK,PREMISES RELATED EXPENDITURE,GM MAIN CONTRACT SCHEDULED,2141,GLENDALE GROUNDS MANAGEMENT LI,11/09/2021 00:00,255422,47.75,GL0214,GLENDALE GROUNDS MANAGEMENT LIMITED,11/01/2021 00:00,28/11/2021 00:00:00,P08-2022
,LV HOCKEY AND TENNIS CENTRE,PREMISES RELATED EXPENDITURE,GM MAIN CONTRACT SCHEDULED,2141,GLENDALE GROUNDS MANAGEMENT LI,11/08/2021 00:00,255064,1033.94,GL0214,GLENDALE GROUNDS MANAGEMENT LIMITED,11/01/2021 00:00,28/11/2021 00:00:00,P08-2022
,LV HOCKEY AND TENNIS CENTRE,PREMISES RELATED EXPENDITURE,GM MAIN CONTRACT SCHEDULED,2141,GLENDALE GROUNDS MANAGEMENT LI,11/09/2021 00:00,255422,41.71,GL0214,GLENDALE GROUNDS MANAGEMENT LIMITED,11/01/2021 00:00,28/11/2021 00:00:00,P08-2022
P&V,THREE MILLS,PREMISES RELATED EXPENDITURE,GM MAIN CONTRACT SCHEDULED,2141,GLENDALE GROUNDS MANAGEMENT LI,11/08/2021 00:00,255064,600.87,GL0214,GLENDALE GROUNDS MANAGEMENT LIMITED,11/01/2021 00:00,28/11/2021 00:00:00,P08-2022
P&V,THREE MILLS,PREMISES RELATED EXPENDITURE,GM MAIN CONTRACT SCHEDULED,2141,GLENDALE GROUNDS MANAGEMENT LI,11/09/2021 00:00,255422,37.1,GL0214,GLENDALE GROUNDS MANAGEMENT LIMITED,11/01/2021 00:00,28/11/2021 00:00:00,P08-2022
,LEE VALLEY RIDING CENTRE,PREMISES RELATED EXPENDITURE,GM MAIN CONTRACT SCHEDULED,2141,GLENDALE GROUNDS MANAGEMENT LI,11/08/2021 00:00,255064,221.7,GL0214,GLENDALE GROUNDS MANAGEMENT LIMITED,11/01/2021 00:00,28/11/2021 00:00:00,P08-2022
,LEE VALLEY RIDING CENTRE,PREMISES RELATED EXPENDITURE,GM MAIN CONTRACT SCHEDULED,2141,GLENDALE GROUNDS MANAGEMENT LI,11/09/2021 00:00,255422,25.16,GL0214,GLENDALE GROUNDS MANAGEMENT LIMITED,11/01/2021 00:00,28/11/2021 00:00:00,P08-2022
,LEE VALLEY ICE CENTRE,PREMISES RELATED EXPENDITURE,GM MAIN CONTRACT SCHEDULED,2141,GLENDALE GROUNDS MANAGEMENT LI,11/08/2021 00:00,255064,154.94,GL0214,GLENDALE GROUNDS MANAGEMENT LIMITED,11/01/2021 00:00,28/11/2021 00:00:00,P08-2022
P&V,FORMER LV LIDO SITE,PREMISES RELATED EXPENDITURE,GM MAIN CONTRACT SCHEDULED,2141,GLENDALE GROUNDS MANAGEMENT LI,11/08/2021 00:00,255064,477.39,GL0214,GLENDALE GROUNDS MANAGEMENT LIMITED,11/01/2021 00:00,28/11/2021 00:00:00,P08-2022
P&V,FORMER LV LIDO SITE,PREMISES RELATED EXPENDITURE,GM MAIN CONTRACT SCHEDULED,2141,GLENDALE GROUNDS MANAGEMENT LI,11/09/2021 00:00,255422,56.02,GL0214,GLENDALE GROUNDS MANAGEMENT LIMITED,11/01/2021 00:00,28/11/2021 00:00:00,P08-2022
,LEE VALLEY ATHLETICS CENTRE,PREMISES RELATED EXPENDITURE,GM MAIN CONTRACT SCHEDULED,2141,GLENDALE GROUNDS MANAGEMENT LI,11/08/2021 00:00,255064,233.84,GL0214,GLENDALE GROUNDS MANAGEMENT LIMITED,11/01/2021 00:00,28/11/2021 00:00:00,P08-2022
,LEE VALLEY ATHLETICS CENTRE,PREMISES RELATED EXPENDITURE,GM MAIN CONTRACT SCHEDULED,2141,GLENDALE GROUNDS MANAGEMENT LI,11/09/2021 00:00,255422,54.24,GL0214,GLENDALE GROUNDS MANAGEMENT LIMITED,11/01/2021 00:00,28/11/2021 00:00:00,P08-2022
,LEE VALLEY WHITE WATER CENTRE,PREMISES RELATED EXPENDITURE,GM MAIN CONTRACT SCHEDULED,2141,GLENDALE GROUNDS MANAGEMENT LI,11/08/2021 00:00,255064,829.25,GL0214,GLENDALE GROUNDS MANAGEMENT LIMITED,11/01/2021 00:00,28/11/2021 00:00:00,P08-2022
,LEE VALLEY WHITE WATER CENTRE,PREMISES RELATED EXPENDITURE,GM MAIN CONTRACT SCHEDULED,2141,GLENDALE GROUNDS MANAGEMENT LI,11/09/2021 00:00,255422,167.15,GL0214,GLENDALE GROUNDS MANAGEMENT LIMITED,11/01/2021 00:00,28/11/2021 00:00:00,P08-2022
P&V,SOUTH AREA RANGERS,PREMISES RELATED EXPENDITURE,GM MAIN CONTRACT UNSCHEDULED,2142,P111865-SERVICE-Japanese Knowtweed Treatment at Riding Centre,28/11/2021 00:00:00,255756,285,GO0044,S.H.GOSS & CO LTD,11/01/2021 00:00,28/11/2021 00:00:00,P08-2022
,LEE VALLEY WATERWORKS CENTRE,PREMISES RELATED EXPENDITURE,GM HORTICULTURE SCHEDULED,2143,GLENDALE GROUNDS MANAGEMENT LI,11/08/2021 00:00,255064,77.81,GL0214,GLENDALE GROUNDS MANAGEMENT LIMITED,11/01/2021 00:00,28/11/2021 00:00:00,P08-2022
P&V,NORTH AREA RANGERS,PREMISES RELATED EXPENDITURE,GM HORTICULTURE SCHEDULED,2143,GLENDALE GROUNDS MANAGEMENT LI,11/08/2021 00:00,255064,109.32,GL0214,GLENDALE GROUNDS MANAGEMENT LIMITED,11/01/2021 00:00,28/11/2021 00:00:00,P08-2022
P&V,SOUTH AREA RANGERS,PREMISES RELATED EXPENDITURE,GM HORTICULTURE SCHEDULED,2143,GLENDALE GROUNDS MANAGEMENT LI,11/08/2021 00:00,255064,63.25,GL0214,GLENDALE GROUNDS MANAGEMENT LIMITED,11/01/2021 00:00,28/11/2021 00:00:00,P08-2022
P&V,ABBEY GARDENS,PREMISES RELATED EXPENDITURE,GM HORTICULTURE SCHEDULED,2143,GLENDALE GROUNDS MANAGEMENT LI,11/08/2021 00:00,255064,909.9,GL0214,GLENDALE GROUNDS MANAGEMENT LIMITED,11/01/2021 00:00,28/11/2021 00:00:00,P08-2022
P&V,GUNPOWDER PARK,PREMISES RELATED EXPENDITURE,GM HORTICULTURE SCHEDULED,2143,GLENDALE GROUNDS MANAGEMENT LI,11/08/2021 00:00,255064,119.1,GL0214,GLENDALE GROUNDS MANAGEMENT LIMITED,11/01/2021 00:00,28/11/2021 00:00:00,P08-2022
P&V,RIVER LEE COUNTRY PARK,PREMISES RELATED EXPENDITURE,GM HORTICULTURE SCHEDULED,2143,GLENDALE GROUNDS MANAGEMENT LI,11/08/2021 00:00,255064,61.08,GL0214,GLENDALE GROUNDS MANAGEMENT LIMITED,11/01/2021 00:00,28/11/2021 00:00:00,P08-2022
,LEE VALLEY VELOPARK,PREMISES RELATED EXPENDITURE,GM HORTICULTURE SCHEDULED,2143,GLENDALE GROUNDS MANAGEMENT LI,11/08/2021 00:00,255064,19.66,GL0214,GLENDALE GROUNDS MANAGEMENT LIMITED,11/01/2021 00:00,28/11/2021 00:00:00,P08-2022
,LV HOCKEY AND TENNIS CENTRE,PREMISES RELATED EXPENDITURE,GM HORTICULTURE SCHEDULED,2143,GLENDALE GROUNDS MANAGEMENT LI,11/08/2021 00:00,255064,528.43,GL0214,GLENDALE GROUNDS MANAGEMENT LIMITED,11/01/2021 00:00,28/11/2021 00:00:00,P08-2022
P&V,THREE MILLS,PREMISES RELATED EXPENDITURE,GM HORTICULTURE SCHEDULED,2143,GLENDALE GROUNDS MANAGEMENT LI,11/08/2021 00:00,255064,20,GL0214,GLENDALE GROUNDS MANAGEMENT LIMITED,11/01/2021 00:00,28/11/2021 00:00:00,P08-2022
,LEE VALLEY RIDING CENTRE,PREMISES RELATED EXPENDITURE,GM HORTICULTURE SCHEDULED,2143,GLENDALE GROUNDS MANAGEMENT LI,11/08/2021 00:00,255064,6.19,GL0214,GLENDALE GROUNDS MANAGEMENT LIMITED,11/01/2021 00:00,28/11/2021 00:00:00,P08-2022
,LEE VALLEY WHITE WATER CENTRE,PREMISES RELATED EXPENDITURE,GM HORTICULTURE SCHEDULED,2143,GLENDALE GROUNDS MANAGEMENT LI,11/08/2021 00:00,255064,2.87,GL0214,GLENDALE GROUNDS MANAGEMENT LIMITED,11/01/2021 00:00,28/11/2021 00:00:00,P08-2022
P&V,THREE MILLS,PREMISES RELATED EXPENDITURE,GM NON MAIN CONT UNSCHEDULED,2147,P115064-SERVICE-Reinstatement Works at Three Mills,28/11/2021 00:00:00,255718,600,BU0090,BUSH WHEELER SERVICES LTD,11/01/2021 00:00,28/11/2021 00:00:00,P08-2022
P&V,SOUTH AREA RANGERS,PREMISES RELATED EXPENDITURE,HABITAT MANAGEMENT WORKS,2149,P115107-SERVICE-Move Concrete Block at Lee Park Way down Pick,22/11/2021 00:00:00,255719,250,BU0090,BUSH WHEELER SERVICES LTD,11/01/2021 00:00,28/11/2021 00:00:00,P08-2022
P&V,SOUTH AREA RANGERS,PREMISES RELATED EXPENDITURE,HABITAT MANAGEMENT WORKS,2149,P114915-SERVICE-RORO Green Waste Skip,22/11/2021 00:00:00,255922,420,MC0331,MCGRATH BROS WASTE CONTROL LIMITED,11/01/2021 00:00,28/11/2021 00:00:00,P08-2022
P&V,SOUTH AREA RANGERS,PREMISES RELATED EXPENDITURE,HABITAT MANAGEMENT WORKS,2149,P114847-SERVICE-RORO Green Waste Skip,28/11/2021 00:00:00,256211,420,MC0331,MCGRATH BROS WASTE CONTROL LIMITED,11/01/2021 00:00,28/11/2021 00:00:00,P08-2022
P&V,SOUTH AREA RANGERS,PREMISES RELATED EXPENDITURE,HABITAT MANAGEMENT WORKS,2149,P115194-SERVICE-1 x 20 Yard RORO Green Waste Skip,28/11/2021 00:00:00,256211,420,MC0331,MCGRATH BROS WASTE CONTROL LIMITED,11/01/2021 00:00,28/11/2021 00:00:00,P08-2022
P&V,GUNPOWDER PARK,PREMISES RELATED EXPENDITURE,HABITAT MANAGEMENT WORKS,2149,P114742-SERVICE-Tree Works Along Black Ditch,22/11/2021 00:00:00,255694,1450,PA0222,PARKIN & PARKER TREE SPECIALISTS,11/01/2021 00:00,28/11/2021 00:00:00,P08-2022
P&V,RIVER LEE COUNTRY PARK,PREMISES RELATED EXPENDITURE,HABITAT MANAGEMENT WORKS,2149,P112583-SERVICE-Crassula Treatment at Hall Marsh Scrape,28/11/2021 00:00:00,256208,425,GO0044,S.H.GOSS & CO LTD,11/01/2021 00:00,28/11/2021 00:00:00,P08-2022
,LEE VALLEY MARINA SPRINGFIELD,PREMISES RELATED EXPENDITURE,GENERAL WASTE,2211,P114534-SERVICE-Site general waste & Recyling Sep & Oct 2021,11/08/2021 00:00,255100,850.99,CL0037,VEOLIA ES (UK) LTD,11/01/2021 00:00,28/11/2021 00:00:00,P08-2022
,LEE VALLEY MARINA STANSTEAD,PREMISES RELATED EXPENDITURE,GENERAL WASTE,2211,P112012-SERVICE-Annual waste removal RH &SA moorings,11/10/2021 00:00,255094,104.16,CL0037,VEOLIA ES (UK) LTD,11/01/2021 00:00,28/11/2021 00:00:00,P08-2022
,LEE VALLEY MARINA STANSTEAD,PREMISES RELATED EXPENDITURE,GENERAL WASTE,2211,P112012-SERVICE-Annual waste removal RH &SA moorings,11/10/2021 00:00,255096,451.68,CL0037,VEOLIA ES (UK) LTD,11/01/2021 00:00,28/11/2021 00:00:00,P08-2022
,LEE VALLEY FARM HAYES HILL,PREMISES RELATED EXPENDITURE,GENERAL WASTE,2211,BYWATERS (LEYTON) LTD,22/11/2021 00:00:00,252545,27.9,BY0049,BYWATERS (LEYTON) LTD,11/01/2021 00:00,28/11/2021 00:00:00,P08-2022
,LEE VALLEY FARM HAYES HILL,PREMISES RELATED EXPENDITURE,GENERAL WASTE,2211,BYWATERS (LEYTON) LTD,22/11/2021 00:00:00,255914,-27.9,BY0049,BYWATERS (LEYTON) LTD,11/01/2021 00:00,28/11/2021 00:00:00,P08-2022
,LEE VALLEY CAMPSITE,PREMISES RELATED EXPENDITURE,GENERAL WASTE,2211,P115024-SERVICE-October skip hire,11/10/2021 00:00,255093,980.67,CL0037,VEOLIA ES (UK) LTD,11/01/2021 00:00,28/11/2021 00:00:00,P08-2022
,LEE VALLEY CARAVAN PARK,PREMISES RELATED EXPENDITURE,GENERAL WASTE,2211,P114970-SERVICE-Monthly duty of care,11/08/2021 00:00,255095,1710.92,CL0037,VEOLIA ES (UK) LTD,11/01/2021 00:00,28/11/2021 00:00:00,P08-2022
P&V,SOUTH AREA RANGERS,PREMISES RELATED EXPENDITURE,GENERAL WASTE,2211,P114533-SERVICE-Remove Fridges / Fire Extinguishers,11/08/2021 00:00,255001,1074,CH0537,CHL WASTE CLEARANCE,11/01/2021 00:00,28/11/2021 00:00:00,P08-2022
P&V,SOUTH AREA RANGERS,PREMISES RELATED EXPENDITURE,GENERAL WASTE,2211,P114549-SERVICE-Skip at WaterWorks Centre,28/11/2021 00:00:00,255786,280,GB0239,GBN SERVICES LTD,11/01/2021 00:00,28/11/2021 00:00:00,P08-2022
P&V,RIVER LEE COUNTRY PARK,PREMISES RELATED EXPENDITURE,GENERAL WASTE,2211,P114286-SERVICE-12yd General Rubbish Skip at Holyfield Hall F,22/11/2021 00:00:00,255734,280,GB0239,GBN SERVICES LTD,11/01/2021 00:00,28/11/2021 00:00:00,P08-2022
,LEE VALLEY VELOPARK,PREMISES RELATED EXPENDITURE,GENERAL WASTE,2211,P115005-SERVICE-Sanitary Products and Disposal,15/11/2021 00:00:00,255035,285.27,PE0015,PHS GROUP PLC,11/01/2021 00:00,28/11/2021 00:00:00,P08-2022
,LEE VALLEY VELOPARK,PREMISES RELATED EXPENDITURE,GENERAL WASTE,2211,P115008-SERVICE-Waste Disposal,15/11/2021 00:00:00,255098,411.73,CL0037,VEOLIA ES (UK) LTD,11/01/2021 00:00,28/11/2021 00:00:00,P08-2022
,LEE VALLEY VELOPARK,PREMISES RELATED EXPENDITURE,GENERAL WASTE,2211,P115143-SERVICE-Skip Services,18/11/2021 00:00:00,255278,600,BR0453,BREWSTERS WASTE MANAGEMENT LIMITED,11/01/2021 00:00,28/11/2021 00:00:00,P08-2022
,LEE VALLEY VELOPARK,PREMISES RELATED EXPENDITURE,GENERAL WASTE,2211,P115144-SERVICE-Skip Services,18/11/2021 00:00:00,255279,760,BR0453,BREWSTERS WASTE MANAGEMENT LIMITED,11/01/2021 00:00,28/11/2021 00:00:00,P08-2022
,LV HOCKEY AND TENNIS CENTRE,PREMISES RELATED EXPENDITURE,GENERAL WASTE,2211,P113890-SERVICE-waste removal and duty of care,11/10/2021 00:00,255099,396.97,CL0037,VEOLIA ES (UK) LTD,11/01/2021 00:00,28/11/2021 00:00:00,P08-2022
,LEE VALLEY RIDING CENTRE,PREMISES RELATED EXPENDITURE,GENERAL WASTE,2211,P112045-SERVICE-Recycling waste & compactor,11/10/2021 00:00,255321,686.21,BY0049,BYWATERS (LEYTON) LTD,11/01/2021 00:00,28/11/2021 00:00:00,P08-2022
,LEE VALLEY RIDING CENTRE,PREMISES RELATED EXPENDITURE,GENERAL WASTE,2211,P112045-SERVICE-Recycling waste & compactor,15/11/2021 00:00:00,255322,1111.96,BY0049,BYWATERS (LEYTON) LTD,11/01/2021 00:00,28/11/2021 00:00:00,P08-2022
,LV LEISURE CENTRE CAMPSITE,PREMISES RELATED EXPENDITURE,GENERAL WASTE,2211,P115269-SERVICE-Annual Waste Services,23/11/2021 00:00:00,255067,650,AC0400,ACUMEN WASTE SERVICES LTD,11/01/2021 00:00,28/11/2021 00:00:00,P08-2022
,LV LEISURE CENTRE CAMPSITE,PREMISES RELATED EXPENDITURE,GENERAL WASTE,2211,P115085-SERVICE-Waste services,16/11/2021 00:00:00,255097,139.17,CL0037,VEOLIA ES (UK) LTD,11/01/2021 00:00,28/11/2021 00:00:00,P08-2022
,LV LEISURE CENTRE CAMPSITE,PREMISES RELATED EXPENDITURE,GENERAL WASTE,2211,P115263-SERVICE-Recycling bins emptied,23/11/2021 00:00:00,255323,180.42,BY0049,BYWATERS (LEYTON) LTD,11/01/2021 00:00,28/11/2021 00:00:00,P08-2022
,LEE VALLEY WHITE WATER CENTRE,PREMISES RELATED EXPENDITURE,GENERAL WASTE,2211,P114687-SERVICE-Oct to Mar Refuse collection,11/10/2021 00:00,255320,1972.14,BY0049,BYWATERS (LEYTON) LTD,11/01/2021 00:00,28/11/2021 00:00:00,P08-2022
,LEE VALLEY ICE CENTRE,PREMISES RELATED EXPENDITURE,HAZARDOUS WASTE DISPOSAL,2212,P112958-SERVICE-Sanitary 25/4/21-24/5/21,11/08/2021 00:00,254989,32.17,PE0015,PHS GROUP PLC,11/01/2021 00:00,28/11/2021 00:00:00,P08-2022
,LEE VALLEY ICE CENTRE,PREMISES RELATED EXPENDITURE,HAZARDOUS WASTE DISPOSAL,2212,P112958-SERVICE-Sanitary 25/4/21-24/5/21,11/08/2021 00:00,254990,-32.17,PE0015,PHS GROUP PLC,11/01/2021 00:00,28/11/2021 00:00:00,P08-2022
P&V,MYDDELTON HOUSE,PREMISES RELATED EXPENDITURE,RECYCLING,2214,P113574-SERVICE-Recycling,11/09/2021 00:00,255348,147.37,CA0341,F & R CAWLEY LTD,11/01/2021 00:00,28/11/2021 00:00:00,P08-2022
P&V,MYDDELTON HOUSE,PREMISES RELATED EXPENDITURE,BUILDING SERVICE AGREEMENTS,2220,P114889-SERVICE-Gas service cooker tightness check etc,15/11/2021 00:00:00,255060,90,AS0039,ASTON GROUP,11/01/2021 00:00,28/11/2021 00:00:00,P08-2022
P&V,MYDDELTON HOUSE,PREMISES RELATED EXPENDITURE,BUILDING SERVICE AGREEMENTS,2220,P114973-SERVICE-Portable Appliance Testing September 21,11/08/2021 00:00,255285,849.6,EL0258,ELECTRICO TESTING SERVICES LTD,11/01/2021 00:00,28/11/2021 00:00:00,P08-2022
P&V,MYDDELTON HOUSE,PREMISES RELATED EXPENDITURE,BUILDING SERVICE AGREEMENTS,2220,P114433-SERVICE-Spare Parts,15/11/2021 00:00:00,255444,169.99,TJ0009,T.J.FIRE & SECURITY,11/01/2021 00:00,28/11/2021 00:00:00,P08-2022
P&V,MYDDELTON HOUSE,PREMISES RELATED EXPENDITURE,BUILDING SERVICE AGREEMENTS,2220,P114433-SERVICE-Extinguisher Attendance Fee,15/11/2021 00:00:00,255444,6.88,TJ0009,T.J.FIRE & SECURITY,11/01/2021 00:00,28/11/2021 00:00:00,P08-2022
P&V,MYDDELTON HOUSE,PREMISES RELATED EXPENDITURE,BUILDING SERVICE AGREEMENTS,2220,P114433-SERVICE-5 x Fire Blanket Inspection,15/11/2021 00:00:00,255444,4.7,TJ0009,T.J.FIRE & SECURITY,11/01/2021 00:00,28/11/2021 00:00:00,P08-2022
P&V,MYDDELTON HOUSE,PREMISES RELATED EXPENDITURE,BUILDING SERVICE AGREEMENTS,2220,P114433-SERVICE-59 x Extinguisher Inspections,15/11/2021 00:00:00,255444,55.46,TJ0009,T.J.FIRE & SECURITY,11/01/2021 00:00,28/11/2021 00:00:00,P08-2022
P&V,MYDDELTON HOUSE,PREMISES RELATED EXPENDITURE,BUILDING SERVICE AGREEMENTS,2220,P114366-SERVICE-Sanitary Services,28/11/2021 00:00:00,256161,53.44,PE0015,PHS GROUP PLC,11/01/2021 00:00,28/11/2021 00:00:00,P08-2022
P&V,MYDDELTON HOUSE,PREMISES RELATED EXPENDITURE,BUILDING SERVICE AGREEMENTS,2220,P115335-SERVICE-water heater inspection nov 21,28/11/2021 00:00:00,256168,200,GI0137,R & P GIBBS LIMITED,11/01/2021 00:00,28/11/2021 00:00:00,P08-2022
,LEE VALLEY WATERWORKS CENTRE,PREMISES RELATED EXPENDITURE,BUILDING SERVICE AGREEMENTS,2220,P115061-SERVICE-Washrooms Pre Acceptance Audit Charge,11/10/2021 00:00,252566,50,PE0015,PHS GROUP PLC,11/01/2021 00:00,28/11/2021 00:00:00,P08-2022
,LEE VALLEY WATERWORKS CENTRE,PREMISES RELATED EXPENDITURE,BUILDING SERVICE AGREEMENTS,2220,P114191-SERVICE-Fire Safety Risk Assessment at WaterWorks,28/11/2021 00:00:00,255803,500,RI0181,RD HEALTH & SAFETY LIMITED,11/01/2021 00:00,28/11/2021 00:00:00,P08-2022
,LEE VALLEY CAMPSITE,PREMISES RELATED EXPENDITURE,BUILDING SERVICE AGREEMENTS,2220,P115246-SERVICE-Shop Intruder Alarm repair,18/11/2021 00:00:00,255355,105,AC0012,SCUTUM SOUTH EAST LTD (frmly Active Security),11/01/2021 00:00,28/11/2021 00:00:00,P08-2022
,LEE VALLEY CAMPSITE,PREMISES RELATED EXPENDITURE,BUILDING SERVICE AGREEMENTS,2220,P115245-SERVICE-Monthly pest control Oct/Nov21,18/11/2021 00:00:00,255480,70,VE0006,VERMINATE CITY & RURAL PEST CONTROL LTD,11/01/2021 00:00,28/11/2021 00:00:00,P08-2022
,LEE VALLEY CAMPSITE,PREMISES RELATED EXPENDITURE,BUILDING SERVICE AGREEMENTS,2220,P115245-SERVICE-Monthly pest control Oct/Nov21,18/11/2021 00:00:00,255481,70,VE0006,VERMINATE CITY & RURAL PEST CONTROL LTD,11/01/2021 00:00,28/11/2021 00:00:00,P08-2022
,LEE VALLEY CARAVAN PARK,PREMISES RELATED EXPENDITURE,BUILDING SERVICE AGREEMENTS,2220,P115155-SERVICE-Monthly pest control,15/11/2021 00:00:00,255482,70,VE0006,VERMINATE CITY & RURAL PEST CONTROL LTD,11/01/2021 00:00,28/11/2021 00:00:00,P08-2022
,LEE VALLEY CARAVAN PARK,PREMISES RELATED EXPENDITURE,BUILDING SERVICE AGREEMENTS,2220,P115157-SERVICE-Monthly pest control,15/11/2021 00:00:00,255483,70,VE0006,VERMINATE CITY & RURAL PEST CONTROL LTD,11/01/2021 00:00,28/11/2021 00:00:00,P08-2022
P&V,NORTH AREA RANGERS,PREMISES RELATED EXPENDITURE,BUILDING SERVICE AGREEMENTS,2220,P111201-SERVICE-Sanitary Disposal - Old Mill & Meadows Toilet,28/11/2021 00:00:00,256160,17.58,PE0015,PHS GROUP PLC,11/01/2021 00:00,28/11/2021 00:00:00,P08-2022
P&V,SOUTH AREA RANGERS,PREMISES RELATED EXPENDITURE,BUILDING SERVICE AGREEMENTS,2220,P115012-SERVICE-PAT Testing - WWK's,11/08/2021 00:00,254981,416.1,BR0018,BRADSHAW ELECTRICAL LIMITED,11/01/2021 00:00,28/11/2021 00:00:00,P08-2022
,LEE VALLEY VELOPARK,PREMISES RELATED EXPENDITURE,BUILDING SERVICE AGREEMENTS,2220,P114544-SERVICE-Quarterly Maintenance,24/11/2021 00:00:00,253893,1956.6,ST0642,STANLEY SECURITY SOLUTIONS LTD,11/01/2021 00:00,28/11/2021 00:00:00,P08-2022
,LEE VALLEY VELOPARK,PREMISES RELATED EXPENDITURE,BUILDING SERVICE AGREEMENTS,2220,P110516-SERVICE-Service Contract Renewal 2021-2022,11/08/2021 00:00,255125,835,GO0211,GOODWATER LTD,11/01/2021 00:00,28/11/2021 00:00:00,P08-2022
,LEE VALLEY VELOPARK,PREMISES RELATED EXPENDITURE,BUILDING SERVICE AGREEMENTS,2220,P112097-SERVICE-Pest Control 2021-2022,15/11/2021 00:00:00,255478,350,VE0006,VERMINATE CITY & RURAL PEST CONTROL LTD,11/01/2021 00:00,28/11/2021 00:00:00,P08-2022
,LEE VALLEY VELOPARK,PREMISES RELATED EXPENDITURE,BUILDING SERVICE AGREEMENTS,2220,P111429-SERVICE-BMS Contract VP,28/11/2021 00:00:00,255957,590,IN0197,INTEGRATED BUILDING MANAGEMENT SYSTEMS LTD,11/01/2021 00:00,28/11/2021 00:00:00,P08-2022
,LEE VALLEY VELOPARK,PREMISES RELATED EXPENDITURE,BUILDING SERVICE AGREEMENTS,2220,P114759-SERVICE-Door Lock Maintenance,28/11/2021 00:00:00,255982,217,AD0015,ADT FIRE & SECURITY PLC,11/01/2021 00:00,28/11/2021 00:00:00,P08-2022
,LEE VALLEY VELOPARK,PREMISES RELATED EXPENDITURE,BUILDING SERVICE AGREEMENTS,2220,P110516-SERVICE-Service Contract Renewal 2021-2022,28/11/2021 00:00:00,256148,835,GO0211,GOODWATER LTD,11/01/2021 00:00,28/11/2021 00:00:00,P08-2022
,LEE VALLEY VELOPARK,PREMISES RELATED EXPENDITURE,BUILDING SERVICE AGREEMENTS,2220,P114354-SERVICE-Fire Damper Inspection,28/11/2021 00:00:00,256162,1750,UK0079,UK FM SERVICES,11/01/2021 00:00,28/11/2021 00:00:00,P08-2022
,LEE VALLEY VELOPARK,PREMISES RELATED EXPENDITURE,BUILDING SERVICE AGREEMENTS,2220,P115126-SERVICE-Compressed Air Equipment,28/11/2021 00:00:00,256245,416.6,GT0261,GTEC A DIV OF GT COMPRESSORS LTD,11/01/2021 00:00,28/11/2021 00:00:00,P08-2022
,LV HOCKEY AND TENNIS CENTRE,PREMISES RELATED EXPENDITURE,BUILDING SERVICE AGREEMENTS,2220,P110517-SERVICE-Service Contract Renewal 2021-2022,11/08/2021 00:00,255059,1385,GO0211,GOODWATER LTD,11/01/2021 00:00,28/11/2021 00:00:00,P08-2022
,LV HOCKEY AND TENNIS CENTRE,PREMISES RELATED EXPENDITURE,BUILDING SERVICE AGREEMENTS,2220,P112911-SERVICE-Site Visit,11/10/2021 00:00,255103,700,LU0392,LUTRON EA LTD,11/01/2021 00:00,28/11/2021 00:00:00,P08-2022
,LV HOCKEY AND TENNIS CENTRE,PREMISES RELATED EXPENDITURE,BUILDING SERVICE AGREEMENTS,2220,P113102-SERVICE-Fixed Electrical Testing,15/11/2021 00:00:00,255389,3162,NA0192,NAVITAS ELECTRICAL LIMITED,11/01/2021 00:00,28/11/2021 00:00:00,P08-2022
,LV HOCKEY AND TENNIS CENTRE,PREMISES RELATED EXPENDITURE,BUILDING SERVICE AGREEMENTS,2220,P110517-SERVICE-Service Contract Renewal 2021-2022,15/11/2021 00:00:00,255419,185,GO0211,GOODWATER LTD,11/01/2021 00:00,28/11/2021 00:00:00,P08-2022
,LV HOCKEY AND TENNIS CENTRE,PREMISES RELATED EXPENDITURE,BUILDING SERVICE AGREEMENTS,2220,P112098-SERVICE-Pest Control 2021-2022,15/11/2021 00:00:00,255478,50,VE0006,VERMINATE CITY & RURAL PEST CONTROL LTD,11/01/2021 00:00,28/11/2021 00:00:00,P08-2022
,LV HOCKEY AND TENNIS CENTRE,PREMISES RELATED EXPENDITURE,BUILDING SERVICE AGREEMENTS,2220,P111429-SERVICE-BMS Contract HTC,28/11/2021 00:00:00,255956,590,IN0197,INTEGRATED BUILDING MANAGEMENT SYSTEMS LTD,11/01/2021 00:00,28/11/2021 00:00:00,P08-2022
,LV HOCKEY AND TENNIS CENTRE,PREMISES RELATED EXPENDITURE,BUILDING SERVICE AGREEMENTS,2220,P110517-SERVICE-Service Contract Renewal 2021-2022,28/11/2021 00:00:00,256149,1385,GO0211,GOODWATER LTD,11/01/2021 00:00,28/11/2021 00:00:00,P08-2022
,LEE VALLEY RIDING CENTRE,PREMISES RELATED EXPENDITURE,BUILDING SERVICE AGREEMENTS,2220,P115307-SERVICE-replace equipment as required,23/11/2021 00:00:00,254809,392.71,AD0015,ADT FIRE & SECURITY PLC,11/01/2021 00:00,28/11/2021 00:00:00,P08-2022
,LEE VALLEY ICE CENTRE,PREMISES RELATED EXPENDITURE,BUILDING SERVICE AGREEMENTS,2220,P111916-SERVICE-Drains/Fogging Service,24/11/2021 00:00:00,250264,557.98,RE0215,RENTOKIL SPECIALIST HYGIENE,11/01/2021 00:00,28/11/2021 00:00:00,P08-2022
,LEE VALLEY ICE CENTRE,PREMISES RELATED EXPENDITURE,BUILDING SERVICE AGREEMENTS,2220,P111916-SERVICE-Drains/Fogging Service,24/11/2021 00:00:00,254456,-557.98,RE0215,RENTOKIL SPECIALIST HYGIENE,11/01/2021 00:00,28/11/2021 00:00:00,P08-2022
,LV LEISURE CENTRE CAMPSITE,PREMISES RELATED EXPENDITURE,BUILDING SERVICE AGREEMENTS,2220,P114906-SERVICE-Fire extinguisher for yard,17/11/2021 00:00:00,253282,80.45,MO0478,MORGAN FIRE PROTECTION LTD,11/01/2021 00:00,28/11/2021 00:00:00,P08-2022
,LV LEISURE CENTRE CAMPSITE,PREMISES RELATED EXPENDITURE,BUILDING SERVICE AGREEMENTS,2220,P114910-SERVICE-Cleaning supplies,11/10/2021 00:00,255343,284.36,HY0043,HYGIENE SYSTEMS LTD,11/01/2021 00:00,28/11/2021 00:00:00,P08-2022
,LV LEISURE CENTRE CAMPSITE,PREMISES RELATED EXPENDITURE,BUILDING SERVICE AGREEMENTS,2220,P115267-SERVICE-Pest control,23/11/2021 00:00:00,255479,70,VE0006,VERMINATE CITY & RURAL PEST CONTROL LTD,11/01/2021 00:00,28/11/2021 00:00:00,P08-2022
,LV LEISURE CENTRE GOLF COURSE,PREMISES RELATED EXPENDITURE,BUILDING SERVICE AGREEMENTS,2220,P114675-SERVICE-sjs irrigation contract,18/11/2021 00:00:00,254526,900,SJ0635,SJS IRRIGATION,11/01/2021 00:00,28/11/2021 00:00:00,P08-2022
,LEE VALLEY WHITE WATER CENTRE,PREMISES RELATED EXPENDITURE,BUILDING SERVICE AGREEMENTS,2220,P113608-SERVICE-Olympic 2 maintenance,11/10/2021 00:00,255288,9176.84,CL0039,XYLEM WATER SOLUTIONS UK  LIMITED,11/01/2021 00:00,28/11/2021 00:00:00,P08-2022
,LEE VALLEY WHITE WATER CENTRE,PREMISES RELATED EXPENDITURE,BUILDING SERVICE AGREEMENTS,2220,P113466-SERVICE-Fire Risk Assessment,18/11/2021 00:00:00,255801,500,RI0181,RD HEALTH & SAFETY LIMITED,11/01/2021 00:00,28/11/2021 00:00:00,P08-2022
,LEE VALLEY CARAVAN PARK,PREMISES RELATED EXPENDITURE,ENGINEERING SERVICE AGREEMENTS,2221,P115390-SERVICE-new static gardens lightening,28/11/2021 00:00:00,256138,810,BR0018,BRADSHAW ELECTRICAL LIMITED,11/01/2021 00:00,28/11/2021 00:00:00,P08-2022
,LV LEISURE CENTRE CAMPSITE,PREMISES RELATED EXPENDITURE,ENGINEERING SERVICE AGREEMENTS,2221,P115262-SERVICE-Sanitary bins etc emptied,23/11/2021 00:00:00,255399,142.29,PE0015,PHS GROUP PLC,11/01/2021 00:00,28/11/2021 00:00:00,P08-2022
P&V,MYDDELTON HOUSE,PREMISES RELATED EXPENDITURE,BUILDING REPAIRS & MAINTENANCE,2222,P115025-SERVICE-Remedial works fire extinguisher Nov 21,16/11/2021 00:00:00,255443,255.68,TJ0009,T.J.FIRE & SECURITY,11/01/2021 00:00,28/11/2021 00:00:00,P08-2022
P&V,MYDDELTON HOUSE,PREMISES RELATED EXPENDITURE,BUILDING REPAIRS & MAINTENANCE,2222,P115001-SERVICE-remedial on the water systems MH,16/11/2021 00:00:00,255687,480,JA0177,JASUN ENVIROCARE PLC,11/01/2021 00:00,28/11/2021 00:00:00,P08-2022
P&V,MYDDELTON HOUSE,PREMISES RELATED EXPENDITURE,BUILDING REPAIRS & MAINTENANCE,2222,P115001-SERVICE-remedial on the garden potting shed,16/11/2021 00:00:00,255687,120,JA0177,JASUN ENVIROCARE PLC,11/01/2021 00:00,28/11/2021 00:00:00,P08-2022
P&V,MYDDELTON HOUSE,PREMISES RELATED EXPENDITURE,BUILDING REPAIRS & MAINTENANCE,2222,P115001-SERVICE-Replace TMV in bungalow,16/11/2021 00:00:00,255687,188,JA0177,JASUN ENVIROCARE PLC,11/01/2021 00:00,28/11/2021 00:00:00,P08-2022
P&V,MYDDELTON HOUSE,PREMISES RELATED EXPENDITURE,BUILDING REPAIRS & MAINTENANCE,2222,P114159-SERVICE-Myddelton House Emergency Lighting Remedial W,28/11/2021 00:00:00,256145,1050,BR0018,BRADSHAW ELECTRICAL LIMITED,11/01/2021 00:00,28/11/2021 00:00:00,P08-2022
CEO,RESIDENTIAL ACCOMMODATION,PREMISES RELATED EXPENDITURE,BUILDING REPAIRS & MAINTENANCE,2222,P114961-SERVICE-Fix Leak for Inverted Cylinder - The Lodge,11/08/2021 00:00,254779,181.3,GI0137,R & P GIBBS LIMITED,11/01/2021 00:00,28/11/2021 00:00:00,P08-2022
CEO,RESIDENTIAL ACCOMMODATION,PREMISES RELATED EXPENDITURE,BUILDING REPAIRS & MAINTENANCE,2222,P113155-SERVICE-Repairs & Maintenance,11/08/2021 00:00,254967,250,CA0165,CASTLES,11/01/2021 00:00,28/11/2021 00:00:00,P08-2022
CEO,RESIDENTIAL ACCOMMODATION,PREMISES RELATED EXPENDITURE,BUILDING REPAIRS & MAINTENANCE,2222,P114962-SERVICE-Pest Control - Roselea Bungalow,11/08/2021 00:00,254968,60,CA0165,CASTLES,11/01/2021 00:00,28/11/2021 00:00:00,P08-2022
CEO,RESIDENTIAL ACCOMMODATION,PREMISES RELATED EXPENDITURE,BUILDING REPAIRS & MAINTENANCE,2222,P114809-SERVICE-LVRC Bunglows 3 x EPCs,15/11/2021 00:00:00,255375,285,ST0447,E R HERITAGE,11/01/2021 00:00,28/11/2021 00:00:00,P08-2022
CEO,RESIDENTIAL ACCOMMODATION,PREMISES RELATED EXPENDITURE,BUILDING REPAIRS & MAINTENANCE,2222,P115168-SERVICE-Pest Control - Connaught Close,16/11/2021 00:00:00,255474,70,VE0006,VERMINATE CITY & RURAL PEST CONTROL LTD,11/01/2021 00:00,28/11/2021 00:00:00,P08-2022
CEO,RESIDENTIAL ACCOMMODATION,PREMISES RELATED EXPENDITURE,BUILDING REPAIRS & MAINTENANCE,2222,P115169-SERVICE-Pest Control,16/11/2021 00:00:00,255475,53.34,VE0006,VERMINATE CITY & RURAL PEST CONTROL LTD,11/01/2021 00:00,28/11/2021 00:00:00,P08-2022
CEO,RESIDENTIAL ACCOMMODATION,PREMISES RELATED EXPENDITURE,BUILDING REPAIRS & MAINTENANCE,2222,P115169-SERVICE-Pest Control,16/11/2021 00:00:00,255476,53.34,VE0006,VERMINATE CITY & RURAL PEST CONTROL LTD,11/01/2021 00:00,28/11/2021 00:00:00,P08-2022
,LEE VALLEY MARINA SPRINGFIELD,PREMISES RELATED EXPENDITURE,BUILDING REPAIRS & MAINTENANCE,2222,P112205-SERVICE-To supply vermin & pest control,16/11/2021 00:00:00,255477,375,VE0006,VERMINATE CITY & RURAL PEST CONTROL LTD,11/01/2021 00:00,28/11/2021 00:00:00,P08-2022
,LEE VALLEY MARINA SPRINGFIELD,PREMISES RELATED EXPENDITURE,BUILDING REPAIRS & MAINTENANCE,2222,P112675-SERVICE-Dennis Security emergency call outs,22/11/2021 00:00:00,255923,86,DE0013,DENNIS SECURITY CENTRE,11/01/2021 00:00,28/11/2021 00:00:00,P08-2022
,LEE VALLEY MARINA STANSTEAD,PREMISES RELATED EXPENDITURE,BUILDING REPAIRS & MAINTENANCE,2222,P114362-SERVICE-raise to meet invoice,22/11/2021 00:00:00,254098,65.78,TJ0009,T.J.FIRE & SECURITY,11/01/2021 00:00,28/11/2021 00:00:00,P08-2022
,LEE VALLEY MARINA STANSTEAD,PREMISES RELATED EXPENDITURE,BUILDING REPAIRS & MAINTENANCE,2222,P114362-SERVICE-2 x Co2 2kg Fire Extinguishers,22/11/2021 00:00:00,254098,47.16,TJ0009,T.J.FIRE & SECURITY,11/01/2021 00:00,28/11/2021 00:00:00,P08-2022
,LEE VALLEY MARINA STANSTEAD,PREMISES RELATED EXPENDITURE,BUILDING REPAIRS & MAINTENANCE,2222,P114758-SERVICE-screwfix disabled system for toilets,11/08/2021 00:00,254735,44.16,SC0057,SCREWFIX DIRECT LTD,11/01/2021 00:00,28/11/2021 00:00:00,P08-2022
,LEE VALLEY MARINA STANSTEAD,PREMISES RELATED EXPENDITURE,BUILDING REPAIRS & MAINTENANCE,2222,P114361-SERVICE-Fire extinguisher service,16/11/2021 00:00:00,254794,147.56,TJ0009,T.J.FIRE & SECURITY,11/01/2021 00:00,28/11/2021 00:00:00,P08-2022
,LEE VALLEY MARINA STANSTEAD,PREMISES RELATED EXPENDITURE,BUILDING REPAIRS & MAINTENANCE,2222,"P114359-SERVICE-Garden Maintenance, grass cutting etc..",22/11/2021 00:00:00,255065,217.96,GL0214,GLENDALE GROUNDS MANAGEMENT LIMITED,11/01/2021 00:00,28/11/2021 00:00:00,P08-2022
,LEE VALLEY MARINA STANSTEAD,PREMISES RELATED EXPENDITURE,BUILDING REPAIRS & MAINTENANCE,2222,"P114871-SERVICE-T&P service plus minor repairs, call out etc.",15/11/2021 00:00:00,255312,750.69,FA0269,FAST FUEL SERVICES,11/01/2021 00:00,28/11/2021 00:00:00,P08-2022
,LEE VALLEY MARINA STANSTEAD,PREMISES RELATED EXPENDITURE,BUILDING REPAIRS & MAINTENANCE,2222,P114358-SERVICE-TNV service,22/11/2021 00:00:00,255729,68.25,KI0090,KINGFISHER ENVIRONMENTAL SERVICES LTD,11/01/2021 00:00,28/11/2021 00:00:00,P08-2022
,LEE VALLEY WATERWORKS CENTRE,PREMISES RELATED EXPENDITURE,BUILDING REPAIRS & MAINTENANCE,2222,P112894-SERVICE-Replace Mens Hand Dryer,11/08/2021 00:00,254436,313.12,CO0199,ENGIE FM LIMITED,11/01/2021 00:00,28/11/2021 00:00:00,P08-2022
,LEE VALLEY WATERWORKS CENTRE,PREMISES RELATED EXPENDITURE,BUILDING REPAIRS & MAINTENANCE,2222,P113231-SERVICE-Supply & Fit Replacement Mixer Valve in Ladie,11/08/2021 00:00,254437,443.55,CO0199,ENGIE FM LIMITED,11/01/2021 00:00,28/11/2021 00:00:00,P08-2022
P&V,LEE VALLEY FARM HOLYFIELDHALL,PREMISES RELATED EXPENDITURE,BUILDING REPAIRS & MAINTENANCE,2222,P114293-SERVICE-Fit New Door,24/11/2021 00:00:00,253607,262.62,KE0023,KENDALL & SONS LIMITED,11/01/2021 00:00,28/11/2021 00:00:00,P08-2022
P&V,LEE VALLEY FARM HOLYFIELDHALL,PREMISES RELATED EXPENDITURE,BUILDING REPAIRS & MAINTENANCE,2222,KENDALL & SONS LIMITED,24/11/2021 00:00:00,253607,80,KE0023,KENDALL & SONS LIMITED,11/01/2021 00:00,28/11/2021 00:00:00,P08-2022
P&V,LEE VALLEY FARM HOLYFIELDHALL,PREMISES RELATED EXPENDITURE,BUILDING REPAIRS & MAINTENANCE,2222,KENDALL & SONS LIMITED,24/11/2021 00:00:00,253607,-262.62,KE0023,KENDALL & SONS LIMITED,11/01/2021 00:00,28/11/2021 00:00:00,P08-2022
P&V,LEE VALLEY FARM HOLYFIELDHALL,PREMISES RELATED EXPENDITURE,BUILDING REPAIRS & MAINTENANCE,2222,KENDALL & SONS LIMITED,24/11/2021 00:00:00,253607,182.62,KE0023,KENDALL & SONS LIMITED,11/01/2021 00:00,28/11/2021 00:00:00,P08-2022
P&V,LEE VALLEY FARM HOLYFIELDHALL,PREMISES RELATED EXPENDITURE,BUILDING REPAIRS & MAINTENANCE,2222,P115088-SERVICE-New Sliding Gate,11/10/2021 00:00,255246,255,PS0429,PSL AUTOMATION,11/01/2021 00:00,28/11/2021 00:00:00,P08-2022
P&V,LEE VALLEY FARM HOLYFIELDHALL,PREMISES RELATED EXPENDITURE,BUILDING REPAIRS & MAINTENANCE,2222,P111466-SERVICE-Building Repairs,17/11/2021 00:00:00,255706,74.3,JE0011,SAINT-GOBAIN BUILDING DISTRIBUTION,11/01/2021 00:00,28/11/2021 00:00:00,P08-2022
,LEE VALLEY CAMPSITE,PREMISES RELATED EXPENDITURE,BUILDING REPAIRS & MAINTENANCE,2222,P114927-SERVICE-Bradshaws,11/08/2021 00:00,254532,120,BR0018,BRADSHAW ELECTRICAL LIMITED,11/01/2021 00:00,28/11/2021 00:00:00,P08-2022
P&V,MYDDELTON HOUSE GARDENS,PREMISES RELATED EXPENDITURE,BUILDING REPAIRS & MAINTENANCE,2222,P115341-SERVICE-boiler services october 21,28/11/2021 00:00:00,256171,505,GI0137,R & P GIBBS LIMITED,11/01/2021 00:00,28/11/2021 00:00:00,P08-2022
P&V,NORTH AREA RANGERS,PREMISES RELATED EXPENDITURE,BUILDING REPAIRS & MAINTENANCE,2222,P114281-SERVICE-Fire Safety Assessment at Ranger Base,22/11/2021 00:00:00,255805,500,RI0181,RD HEALTH & SAFETY LIMITED,11/01/2021 00:00,28/11/2021 00:00:00,P08-2022
P&V,GUNPOWDER PARK,PREMISES RELATED EXPENDITURE,BUILDING REPAIRS & MAINTENANCE,2222,REACT 2 IT (BUILDING & REFURBI,16/11/2021 00:00:00,255081,3,RE0094,REACT 2 IT (BUILDING & REFURBISHMENT) LTD,11/01/2021 00:00,28/11/2021 00:00:00,P08-2022
P&V,GUNPOWDER PARK,PREMISES RELATED EXPENDITURE,BUILDING REPAIRS & MAINTENANCE,2222,REACT 2 IT (BUILDING & REFURBI,16/11/2021 00:00:00,255081,-150,RE0094,REACT 2 IT (BUILDING & REFURBISHMENT) LTD,11/01/2021 00:00,28/11/2021 00:00:00,P08-2022
P&V,GUNPOWDER PARK,PREMISES RELATED EXPENDITURE,BUILDING REPAIRS & MAINTENANCE,2222,P114731-SERVICE-Toilet Repairs at Gunpowder Park,16/11/2021 00:00:00,255081,150,RE0094,REACT 2 IT (BUILDING & REFURBISHMENT) LTD,11/01/2021 00:00,28/11/2021 00:00:00,P08-2022
P&V,GUNPOWDER PARK,PREMISES RELATED EXPENDITURE,BUILDING REPAIRS & MAINTENANCE,2222,P114731-SERVICE-Toilet Repairs at Gunpowder Park,16/11/2021 00:00:00,255081,318,RE0094,REACT 2 IT (BUILDING & REFURBISHMENT) LTD,11/01/2021 00:00,28/11/2021 00:00:00,P08-2022
P&V,GUNPOWDER PARK,PREMISES RELATED EXPENDITURE,BUILDING REPAIRS & MAINTENANCE,2222,REACT 2 IT (BUILDING & REFURBI,16/11/2021 00:00:00,255081,147,RE0094,REACT 2 IT (BUILDING & REFURBISHMENT) LTD,11/01/2021 00:00,28/11/2021 00:00:00,P08-2022
P&V,GUNPOWDER PARK,PREMISES RELATED EXPENDITURE,BUILDING REPAIRS & MAINTENANCE,2222,P114731-SERVICE-Toilet Repairs at Gunpowder Park,11/08/2021 00:00,255082,150,RE0094,REACT 2 IT (BUILDING & REFURBISHMENT) LTD,11/01/2021 00:00,28/11/2021 00:00:00,P08-2022
P&V,GUNPOWDER PARK,PREMISES RELATED EXPENDITURE,BUILDING REPAIRS & MAINTENANCE,2222,P115045-SERVICE-Gunpowder Park Toilet Maintenance,18/11/2021 00:00:00,255783,245,RE0094,REACT 2 IT (BUILDING & REFURBISHMENT) LTD,11/01/2021 00:00,28/11/2021 00:00:00,P08-2022
P&V,RIVER LEE COUNTRY PARK,PREMISES RELATED EXPENDITURE,BUILDING REPAIRS & MAINTENANCE,2222,P115136-SERVICE-Pump Out Septic Tank at Fishers Green Toilets,22/11/2021 00:00:00,255730,520,CO0550,CONVERT WATER LTD,11/01/2021 00:00,28/11/2021 00:00:00,P08-2022
,LEE VALLEY VELOPARK,PREMISES RELATED EXPENDITURE,BUILDING REPAIRS & MAINTENANCE,2222,P114881-SERVICE-Parts for Repairs,11/08/2021 00:00,254700,30.94,SC0057,SCREWFIX DIRECT LTD,11/01/2021 00:00,28/11/2021 00:00:00,P08-2022
,LEE VALLEY VELOPARK,PREMISES RELATED EXPENDITURE,BUILDING REPAIRS & MAINTENANCE,2222,P114882-SERVICE-Access System Service,11/08/2021 00:00,254952,323.58,AD0015,ADT FIRE & SECURITY PLC,11/01/2021 00:00,28/11/2021 00:00:00,P08-2022
,LEE VALLEY VELOPARK,PREMISES RELATED EXPENDITURE,BUILDING REPAIRS & MAINTENANCE,2222,P114869-SERVICE-Scissor Lift Inspection,11/08/2021 00:00,255137,227.9,PA0500,PARAMOUNT PLATFORMS LTD,11/01/2021 00:00,28/11/2021 00:00:00,P08-2022
,LEE VALLEY VELOPARK,PREMISES RELATED EXPENDITURE,BUILDING REPAIRS & MAINTENANCE,2222,P114537-SERVICE-Air Conditioning Service,15/11/2021 00:00:00,255345,2482.43,PO0412,PROTOCOOL LIMITED,11/01/2021 00:00,28/11/2021 00:00:00,P08-2022
,LEE VALLEY VELOPARK,PREMISES RELATED EXPENDITURE,BUILDING REPAIRS & MAINTENANCE,2222,P115153-SERVICE-Air Con Maintenance,18/11/2021 00:00:00,255378,4551.25,PO0412,PROTOCOOL LIMITED,11/01/2021 00:00,28/11/2021 00:00:00,P08-2022
,LEE VALLEY VELOPARK,PREMISES RELATED EXPENDITURE,BUILDING REPAIRS & MAINTENANCE,2222,P115109-SERVICE-Replacement Diffusers,15/11/2021 00:00:00,255637,362,VI0125,VIERLIGHT LIMITED,11/01/2021 00:00,28/11/2021 00:00:00,P08-2022
,LEE VALLEY VELOPARK,PREMISES RELATED EXPENDITURE,BUILDING REPAIRS & MAINTENANCE,2222,P115277-SERVICE-Engineer Site Visit,28/11/2021 00:00:00,255731,250,CO0550,CONVERT WATER LTD,11/01/2021 00:00,28/11/2021 00:00:00,P08-2022
,LEE VALLEY VELOPARK,PREMISES RELATED EXPENDITURE,BUILDING REPAIRS & MAINTENANCE,2222,P114867-SERVICE-Gate Maintenance,22/11/2021 00:00:00,255743,3342,LO0465,LONDON GATE SOLUTIONS LTD,11/01/2021 00:00,28/11/2021 00:00:00,P08-2022
,LEE VALLEY VELOPARK,PREMISES RELATED EXPENDITURE,BUILDING REPAIRS & MAINTENANCE,2222,P114874-SERVICE-Toilet Extractor Fan,28/11/2021 00:00:00,256007,448.84,FY0056,FYFE WILSON LTD,11/01/2021 00:00,28/11/2021 00:00:00,P08-2022
,LEE VALLEY VELOPARK,PREMISES RELATED EXPENDITURE,BUILDING REPAIRS & MAINTENANCE,2222,VIERLIGHT LIMITED,28/11/2021 00:00:00,256227,0,VI0125,VIERLIGHT LIMITED,11/01/2021 00:00,28/11/2021 00:00:00,P08-2022
,LV HOCKEY AND TENNIS CENTRE,PREMISES RELATED EXPENDITURE,BUILDING REPAIRS & MAINTENANCE,2222,P114609-SERVICE-shutter repair,11/10/2021 00:00,254954,450,GU0198,GUARDIAN INDUSTRIAL DOORS LIMITED,11/01/2021 00:00,28/11/2021 00:00:00,P08-2022
,LV HOCKEY AND TENNIS CENTRE,PREMISES RELATED EXPENDITURE,BUILDING REPAIRS & MAINTENANCE,2222,P115207-SERVICE-machine spray device for sport champ,22/11/2021 00:00:00,255363,5595,TE0273,TECHNICAL SURFACES LTD,11/01/2021 00:00,28/11/2021 00:00:00,P08-2022
,LV HOCKEY AND TENNIS CENTRE,PREMISES RELATED EXPENDITURE,BUILDING REPAIRS & MAINTENANCE,2222,P114586-SERVICE-replacement small cog,15/11/2021 00:00:00,255365,152.55,TE0273,TECHNICAL SURFACES LTD,11/01/2021 00:00,28/11/2021 00:00:00,P08-2022
,LV HOCKEY AND TENNIS CENTRE,PREMISES RELATED EXPENDITURE,BUILDING REPAIRS & MAINTENANCE,2222,P114586-SERVICE-replacement accelerator cable,15/11/2021 00:00:00,255365,122.31,TE0273,TECHNICAL SURFACES LTD,11/01/2021 00:00,28/11/2021 00:00:00,P08-2022
,LV HOCKEY AND TENNIS CENTRE,PREMISES RELATED EXPENDITURE,BUILDING REPAIRS & MAINTENANCE,2222,P114586-SERVICE-replacement pro cable,15/11/2021 00:00:00,255365,106.05,TE0273,TECHNICAL SURFACES LTD,11/01/2021 00:00,28/11/2021 00:00:00,P08-2022
,LV HOCKEY AND TENNIS CENTRE,PREMISES RELATED EXPENDITURE,BUILDING REPAIRS & MAINTENANCE,2222,P114586-SERVICE-parts and labour,15/11/2021 00:00:00,255365,230,TE0273,TECHNICAL SURFACES LTD,11/01/2021 00:00,28/11/2021 00:00:00,P08-2022
,LV HOCKEY AND TENNIS CENTRE,PREMISES RELATED EXPENDITURE,BUILDING REPAIRS & MAINTENANCE,2222,P114586-SERVICE-replacement main brush,15/11/2021 00:00:00,255365,413.85,TE0273,TECHNICAL SURFACES LTD,11/01/2021 00:00,28/11/2021 00:00:00,P08-2022
,LV HOCKEY AND TENNIS CENTRE,PREMISES RELATED EXPENDITURE,BUILDING REPAIRS & MAINTENANCE,2222,P114586-SERVICE-replacement side brush,15/11/2021 00:00:00,255365,44.73,TE0273,TECHNICAL SURFACES LTD,11/01/2021 00:00,28/11/2021 00:00:00,P08-2022
,LV HOCKEY AND TENNIS CENTRE,PREMISES RELATED EXPENDITURE,BUILDING REPAIRS & MAINTENANCE,2222,P114586-SERVICE-replace x 4 main brishes,15/11/2021 00:00:00,255365,374.8,TE0273,TECHNICAL SURFACES LTD,11/01/2021 00:00,28/11/2021 00:00:00,P08-2022
,LV HOCKEY AND TENNIS CENTRE,PREMISES RELATED EXPENDITURE,BUILDING REPAIRS & MAINTENANCE,2222,P114578-SERVICE-fire damper testing 56 dampers,28/11/2021 00:00:00,256163,1500,UK0079,UK FM SERVICES,11/01/2021 00:00,28/11/2021 00:00:00,P08-2022
,LV HOCKEY AND TENNIS CENTRE,PREMISES RELATED EXPENDITURE,BUILDING REPAIRS & MAINTENANCE,2222,P114578-SERVICE-bolster software,28/11/2021 00:00:00,256163,250,UK0079,UK FM SERVICES,11/01/2021 00:00,28/11/2021 00:00:00,P08-2022
,LEE VALLEY RIDING CENTRE,PREMISES RELATED EXPENDITURE,BUILDING REPAIRS & MAINTENANCE,2222,P115142-SERVICE-december 2021 to November 2022 mainteance cct,15/11/2021 00:00:00,255372,350,CA0334,CAM-TECH SECURITY SYSTEMS LTD,11/01/2021 00:00,28/11/2021 00:00:00,P08-2022
,LEE VALLEY RIDING CENTRE,PREMISES RELATED EXPENDITURE,BUILDING REPAIRS & MAINTENANCE,2222,P115071-SERVICE-gate call out,28/11/2021 00:00:00,256012,180,EA0001,EAGLE AUTOMATION SYSTEMS LTD,11/01/2021 00:00,28/11/2021 00:00:00,P08-2022
,LV LEISURE CENTRE CAMPSITE,PREMISES RELATED EXPENDITURE,BUILDING REPAIRS & MAINTENANCE,2222,P113707-SERVICE-NEW BOILER,11/10/2021 00:00,255294,8900,GI0137,R & P GIBBS LIMITED,11/01/2021 00:00,28/11/2021 00:00:00,P08-2022
,LV LEISURE CENTRE CAMPSITE,PREMISES RELATED EXPENDITURE,BUILDING REPAIRS & MAINTENANCE,2222,P115265-SERVICE-Emergency pump ou/flush,23/11/2021 00:00:00,255688,695,CO0550,CONVERT WATER LTD,11/01/2021 00:00,28/11/2021 00:00:00,P08-2022
,LEE VALLEY ATHLETICS CENTRE,PREMISES RELATED EXPENDITURE,BUILDING REPAIRS & MAINTENANCE,2222,P115063-SERVICE-LVAC CALL OUT DOCKET CY722822 INV 48126220 7/,11/09/2021 00:00,255436,296,AD0015,ADT FIRE & SECURITY PLC,11/01/2021 00:00,28/11/2021 00:00:00,P08-2022
,LEE VALLEY ATHLETICS CENTRE,PREMISES RELATED EXPENDITURE,BUILDING REPAIRS & MAINTENANCE,2222,P113630-SERVICE-LVAC FIRE RISK ASSESSMENT,28/11/2021 00:00:00,255802,500,RI0181,RD HEALTH & SAFETY LIMITED,11/01/2021 00:00,28/11/2021 00:00:00,P08-2022
,LEE VALLEY ATHLETICS CENTRE,PREMISES RELATED EXPENDITURE,BUILDING REPAIRS & MAINTENANCE,2222,"P115325-SERVICE-LVAC TROJAN 6 VOLT BATT, LABOUR, CALL OUT",28/11/2021 00:00:00,256204,82.5,GO0221,GOLF CAR UK LIMITED,11/01/2021 00:00,28/11/2021 00:00:00,P08-2022
,LEE VALLEY WHITE WATER CENTRE,PREMISES RELATED EXPENDITURE,BUILDING REPAIRS & MAINTENANCE,2222,P113609-SERVICE-Legacy pump installation,11/10/2021 00:00,255289,2396,CL0039,XYLEM WATER SOLUTIONS UK  LIMITED,11/01/2021 00:00,28/11/2021 00:00:00,P08-2022
,LEE VALLEY WHITE WATER CENTRE,PREMISES RELATED EXPENDITURE,BUILDING REPAIRS & MAINTENANCE,2222,P114997-SERVICE-Docket CZ004877,11/10/2021 00:00,255290,176.78,AD0015,ADT FIRE & SECURITY PLC,11/01/2021 00:00,28/11/2021 00:00:00,P08-2022
,LEE VALLEY WHITE WATER CENTRE,PREMISES RELATED EXPENDITURE,BUILDING REPAIRS & MAINTENANCE,2222,P114552-SERVICE-Fire Extinguisher Service,22/11/2021 00:00:00,255778,433.95,TJ0009,T.J.FIRE & SECURITY,11/01/2021 00:00,28/11/2021 00:00:00,P08-2022
,LEE VALLEY WHITE WATER CENTRE,PREMISES RELATED EXPENDITURE,BUILDING REPAIRS & MAINTENANCE,2222,P114552-SERVICE-Fire Extinguisher Service,22/11/2021 00:00:00,255779,99.09,TJ0009,T.J.FIRE & SECURITY,11/01/2021 00:00,28/11/2021 00:00:00,P08-2022
,LEE VALLEY WHITE WATER CENTRE,PREMISES RELATED EXPENDITURE,BUILDING REPAIRS & MAINTENANCE,2222,P115276-SERVICE-callout on the 12th November,28/11/2021 00:00:00,256131,295.96,BR0378,BROADWATER TECHNOLOGIES LTD,11/01/2021 00:00,28/11/2021 00:00:00,P08-2022
,LEE VALLEY WHITE WATER CENTRE,PREMISES RELATED EXPENDITURE,BUILDING REPAIRS & MAINTENANCE,2222,P115318-SERVICE-Emergency Light Tests Sept to March,28/11/2021 00:00:00,256170,660,GI0137,R & P GIBBS LIMITED,11/01/2021 00:00,28/11/2021 00:00:00,P08-2022
CEO,LVLC SERVICE CHARGE,PREMISES RELATED EXPENDITURE,BUILDING REPAIRS & MAINTENANCE,2222,P112704-SERVICE-Contract Sweep,16/11/2021 00:00:00,255670,150,SE0374,SELECT SWEEPER HIRE LTD,11/01/2021 00:00,28/11/2021 00:00:00,P08-2022
,LEE VALLEY ATHLETICS CENTRE,PREMISES RELATED EXPENDITURE,ENGINEERING SERVICES CONTRACT,2223,P114952-SERVICE-LVAC STOCK TAKE 22.10.21 - INV V21100975,11/08/2021 00:00,255055,133,VE0038,VENNERS LTD,11/01/2021 00:00,28/11/2021 00:00:00,P08-2022
,LEE VALLEY ATHLETICS CENTRE,PREMISES RELATED EXPENDITURE,ENGINEERING SERVICES CONTRACT,2223,P111604-SERVICE-LVAC ANNUAL REFUSE COLLECTION 21/22,11/08/2021 00:00,255091,334.8,SI0659,SIMPLY WASTE SOLUTIONS,11/01/2021 00:00,28/11/2021 00:00:00,P08-2022
,LEE VALLEY ATHLETICS CENTRE,PREMISES RELATED EXPENDITURE,ENGINEERING SERVICES CONTRACT,2223,P111755-SERVICE-LVAC ANNUAL MAINTENANCE 21/22,28/11/2021 00:00:00,255968,1415,KE0163,KERSHAW MECHANICAL SERVICES LTD,11/01/2021 00:00,28/11/2021 00:00:00,P08-2022
,LEE VALLEY WHITE WATER CENTRE,PREMISES RELATED EXPENDITURE,ENGINEERING SERVICES CONTRACT,2223,P114402-SERVICE-Service of unvented water heaters,11/10/2021 00:00,255296,115,GI0137,R & P GIBBS LIMITED,11/01/2021 00:00,28/11/2021 00:00:00,P08-2022
,LEE VALLEY WHITE WATER CENTRE,PREMISES RELATED EXPENDITURE,ENGINEERING SERVICES CONTRACT,2223,P113679-SERVICE-Extension of Access Control System,23/11/2021 00:00:00,255704,870,AD0015,ADT FIRE & SECURITY PLC,11/01/2021 00:00,28/11/2021 00:00:00,P08-2022
P&V,NORTH AREA RANGERS,SUPPLIES AND SERVICES,FENCES/GATES ETC.,2231,"P115135-SERVICE-5x 6"" Round Strainer Pointed",15/11/2021 00:00:00,254459,100.25,FA0099,FARM & COUNTRY SUPPLIES LTD,11/01/2021 00:00,28/11/2021 00:00:00,P08-2022
P&V,NORTH AREA RANGERS,SUPPLIES AND SERVICES,FENCES/GATES ETC.,2231,"P115135-SERVICE-20x 4"" Round Pointed Rails",15/11/2021 00:00:00,254459,123,FA0099,FARM & COUNTRY SUPPLIES LTD,11/01/2021 00:00,28/11/2021 00:00:00,P08-2022
P&V,NORTH AREA RANGERS,SUPPLIES AND SERVICES,FENCES/GATES ETC.,2231,P113225-SERVICE-Install Gates at Rye House Gatehouse,15/11/2021 00:00:00,254473,650,JO0019,R G JOYCE,11/01/2021 00:00,28/11/2021 00:00:00,P08-2022
P&V,NORTH AREA RANGERS,SUPPLIES AND SERVICES,FENCES/GATES ETC.,2231,P115041-SERVICE-Install Memorial Bench - Amwell,28/11/2021 00:00:00,256233,250,JO0019,R G JOYCE,11/01/2021 00:00,28/11/2021 00:00:00,P08-2022
P&V,GUNPOWDER PARK,SUPPLIES AND SERVICES,FENCES/GATES ETC.,2231,P114184-SERVICE-Install Fence at Patty Pool,16/11/2021 00:00:00,255361,3762,FA0099,FARM & COUNTRY SUPPLIES LTD,11/01/2021 00:00,28/11/2021 00:00:00,P08-2022
P&V,MYDDELTON HOUSE GARDENS,PREMISES RELATED EXPENDITURE,CAR PARKS/ACCESS TRACKS,2235,P114160-SERVICE-Labour 1 hour,22/11/2021 00:00:00,255738,32.4,PA0317,FLOWBIRD SMART CITY UK LTD (FRMLYPARKEON LTD),11/01/2021 00:00,28/11/2021 00:00:00,P08-2022
P&V,MYDDELTON HOUSE GARDENS,PREMISES RELATED EXPENDITURE,CAR PARKS/ACCESS TRACKS,2235,P114160-SERVICE-call out,22/11/2021 00:00:00,255738,156,PA0317,FLOWBIRD SMART CITY UK LTD (FRMLYPARKEON LTD),11/01/2021 00:00,28/11/2021 00:00:00,P08-2022
CEO,COMMERCIAL ACCOMMODATION,PREMISES RELATED EXPENDITURE,EAST HALE ALLOTMENTS,2261,P112083-SERVICE-Allotment Bins,11/08/2021 00:00,255101,86.12,CL0037,VEOLIA ES (UK) LTD,11/01/2021 00:00,28/11/2021 00:00:00,P08-2022
P&V,MYDDELTON HOUSE,PREMISES RELATED EXPENDITURE,ENERGY COSTS (ELECTRICITY),2332,KENT COUNTY COUNCIL (KCS),28/11/2021 00:00:00,255998,1162.96,KE0007,KENT COUNTY COUNCIL (KCS),11/01/2021 00:00,28/11/2021 00:00:00,P08-2022
CEO,RESIDENTIAL ACCOMMODATION,PREMISES RELATED EXPENDITURE,ENERGY COSTS (ELECTRICITY),2332,BRITISH GAS BUSINESS,23/11/2021 00:00:00,255934,52.37,BR0030,BRITISH GAS BUSINESS,11/01/2021 00:00,28/11/2021 00:00:00,P08-2022
CEO,RESIDENTIAL ACCOMMODATION,PREMISES RELATED EXPENDITURE,ENERGY COSTS (ELECTRICITY),2332,BRITISH GAS BUSINESS,23/11/2021 00:00:00,255935,13,BR0030,BRITISH GAS BUSINESS,11/01/2021 00:00,28/11/2021 00:00:00,P08-2022
CEO,RESIDENTIAL ACCOMMODATION,PREMISES RELATED EXPENDITURE,ENERGY COSTS (ELECTRICITY),2332,BRITISH GAS BUSINESS,23/11/2021 00:00:00,255935,53.45,BR0030,BRITISH GAS BUSINESS,11/01/2021 00:00,28/11/2021 00:00:00,P08-2022
CEO,COMMERCIAL ACCOMMODATION,PREMISES RELATED EXPENDITURE,ENERGY COSTS (ELECTRICITY),2332,E-ON,11/08/2021 00:00,254768,25.33,PO0025,E-ON,11/01/2021 00:00,28/11/2021 00:00:00,P08-2022
CEO,COMMERCIAL ACCOMMODATION,PREMISES RELATED EXPENDITURE,ENERGY COSTS (ELECTRICITY),2332,E-ON,11/08/2021 00:00,254768,10,PO0025,E-ON,11/01/2021 00:00,28/11/2021 00:00:00,P08-2022
CEO,COMMERCIAL ACCOMMODATION,PREMISES RELATED EXPENDITURE,ENERGY COSTS (ELECTRICITY),2332,E-ON NEXT ENERGY LTD,15/11/2021 00:00:00,255380,45.99,EO0398,E-ON NEXT ENERGY LTD,11/01/2021 00:00,28/11/2021 00:00:00,P08-2022
CEO,COMMERCIAL ACCOMMODATION,PREMISES RELATED EXPENDITURE,ENERGY COSTS (ELECTRICITY),2332,E-ON NEXT ENERGY LTD,23/11/2021 00:00:00,255456,35.03,EO0398,E-ON NEXT ENERGY LTD,11/01/2021 00:00,28/11/2021 00:00:00,P08-2022
CEO,COMMERCIAL ACCOMMODATION,PREMISES RELATED EXPENDITURE,ENERGY COSTS (ELECTRICITY),2332,E-ON NEXT ENERGY LTD,23/11/2021 00:00:00,255766,17.49,EO0398,E-ON NEXT ENERGY LTD,11/01/2021 00:00,28/11/2021 00:00:00,P08-2022
,LEE VALLEY MARINA SPRINGFIELD,PREMISES RELATED EXPENDITURE,ENERGY COSTS (ELECTRICITY),2332,KENT COUNTY COUNCIL (KCS),11/08/2021 00:00,254721,2070.35,KE0007,KENT COUNTY COUNCIL (KCS),11/01/2021 00:00,28/11/2021 00:00:00,P08-2022
,LEE VALLEY MARINA SPRINGFIELD,PREMISES RELATED EXPENDITURE,ENERGY COSTS (ELECTRICITY),2332,KENT COUNTY COUNCIL (KCS),28/11/2021 00:00:00,255962,2969.94,KE0007,KENT COUNTY COUNCIL (KCS),11/01/2021 00:00,28/11/2021 00:00:00,P08-2022
,LEE VALLEY WATERWORKS CENTRE,PREMISES RELATED EXPENDITURE,ENERGY COSTS (ELECTRICITY),2332,NPOWER LIMITED,16/11/2021 00:00:00,254783,677.71,NP0123,NPOWER LIMITED,11/01/2021 00:00,28/11/2021 00:00:00,P08-2022
,LEE VALLEY WATERWORKS CENTRE,PREMISES RELATED EXPENDITURE,ENERGY COSTS (ELECTRICITY),2332,NPOWER LIMITED,28/11/2021 00:00:00,255761,895.83,NP0123,NPOWER LIMITED,11/01/2021 00:00,28/11/2021 00:00:00,P08-2022
P&V,LEE VALLEY FARM HOLYFIELDHALL,PREMISES RELATED EXPENDITURE,ENERGY COSTS (ELECTRICITY),2332,KENT COUNTY COUNCIL (KCS),28/11/2021 00:00:00,253277,107.86,KE0007,KENT COUNTY COUNCIL (KCS),11/01/2021 00:00,28/11/2021 00:00:00,P08-2022
P&V,LEE VALLEY FARM HOLYFIELDHALL,PREMISES RELATED EXPENDITURE,ENERGY COSTS (ELECTRICITY),2332,BRITISH GAS BUSINESS,15/11/2021 00:00:00,255509,88.43,BR0030,BRITISH GAS BUSINESS,11/01/2021 00:00,28/11/2021 00:00:00,P08-2022
,LEE VALLEY FARM HAYES HILL,PREMISES RELATED EXPENDITURE,ENERGY COSTS (ELECTRICITY),2332,1ST-26T APRIL 2021 ONLY,15/11/2021 00:00:00,255666,1502.29,KE0007,KENT COUNTY COUNCIL (KCS),11/01/2021 00:00,28/11/2021 00:00:00,P08-2022
,LEE VALLEY CAMPSITE,PREMISES RELATED EXPENDITURE,ENERGY COSTS (ELECTRICITY),2332,KENT COUNTY COUNCIL (KCS),11/08/2021 00:00,254722,1371.68,KE0007,KENT COUNTY COUNCIL (KCS),11/01/2021 00:00,28/11/2021 00:00:00,P08-2022
,LEE VALLEY CAMPSITE,PREMISES RELATED EXPENDITURE,ENERGY COSTS (ELECTRICITY),2332,KENT COUNTY COUNCIL (KCS),11/08/2021 00:00,254723,1645.98,KE0007,KENT COUNTY COUNCIL (KCS),11/01/2021 00:00,28/11/2021 00:00:00,P08-2022
,LEE VALLEY CAMPSITE,PREMISES RELATED EXPENDITURE,ENERGY COSTS (ELECTRICITY),2332,KENT COUNTY COUNCIL (KCS),28/11/2021 00:00:00,255963,1942.5,KE0007,KENT COUNTY COUNCIL (KCS),11/01/2021 00:00,28/11/2021 00:00:00,P08-2022
,LEE VALLEY CAMPSITE,PREMISES RELATED EXPENDITURE,ENERGY COSTS (ELECTRICITY),2332,KENT COUNTY COUNCIL (KCS),28/11/2021 00:00:00,255964,2540.79,KE0007,KENT COUNTY COUNCIL (KCS),11/01/2021 00:00,28/11/2021 00:00:00,P08-2022
,LEE VALLEY CARAVAN PARK,PREMISES RELATED EXPENDITURE,ENERGY COSTS (ELECTRICITY),2332,KENT COUNTY COUNCIL (KCS),28/11/2021 00:00:00,255966,7786.48,KE0007,KENT COUNTY COUNCIL (KCS),11/01/2021 00:00,28/11/2021 00:00:00,P08-2022
,LEE VALLEY VELOPARK,PREMISES RELATED EXPENDITURE,ENERGY COSTS (ELECTRICITY),2332,KENT COUNTY COUNCIL (KCS),11/08/2021 00:00,254719,0.99,KE0007,KENT COUNTY COUNCIL (KCS),11/01/2021 00:00,28/11/2021 00:00:00,P08-2022
,LEE VALLEY VELOPARK,PREMISES RELATED EXPENDITURE,ENERGY COSTS (ELECTRICITY),2332,KENT COUNTY COUNCIL (KCS),11/08/2021 00:00,254719,77.36,KE0007,KENT COUNTY COUNCIL (KCS),11/01/2021 00:00,28/11/2021 00:00:00,P08-2022
,LEE VALLEY VELOPARK,PREMISES RELATED EXPENDITURE,ENERGY COSTS (ELECTRICITY),2332,KENT COUNTY COUNCIL (KCS),11/08/2021 00:00,255010,104.74,KE0007,KENT COUNTY COUNCIL (KCS),11/01/2021 00:00,28/11/2021 00:00:00,P08-2022
,LEE VALLEY VELOPARK,PREMISES RELATED EXPENDITURE,ENERGY COSTS (ELECTRICITY),2332,KENT COUNTY COUNCIL (KCS),28/11/2021 00:00:00,255965,1.02,KE0007,KENT COUNTY COUNCIL (KCS),11/01/2021 00:00,28/11/2021 00:00:00,P08-2022
,LEE VALLEY VELOPARK,PREMISES RELATED EXPENDITURE,ENERGY COSTS (ELECTRICITY),2332,KENT COUNTY COUNCIL (KCS),28/11/2021 00:00:00,255965,84.8,KE0007,KENT COUNTY COUNCIL (KCS),11/01/2021 00:00,28/11/2021 00:00:00,P08-2022
,LEE VALLEY VELOPARK,PREMISES RELATED EXPENDITURE,ENERGY COSTS (ELECTRICITY),2332,KENT COUNTY COUNCIL (KCS),28/11/2021 00:00:00,255972,46.51,KE0007,KENT COUNTY COUNCIL (KCS),11/01/2021 00:00,28/11/2021 00:00:00,P08-2022
,LEE VALLEY VELOPARK,PREMISES RELATED EXPENDITURE,ENERGY COSTS (ELECTRICITY),2332,KENT COUNTY COUNCIL (KCS),28/11/2021 00:00:00,255973,42.04,KE0007,KENT COUNTY COUNCIL (KCS),11/01/2021 00:00,28/11/2021 00:00:00,P08-2022
,LV HOCKEY AND TENNIS CENTRE,PREMISES RELATED EXPENDITURE,ENERGY COSTS (ELECTRICITY),2332,NPOWER LIMITED,18/11/2021 00:00:00,255760,11986.19,NP0123,NPOWER LIMITED,11/01/2021 00:00,28/11/2021 00:00:00,P08-2022
,LEE VALLEY RIDING CENTRE,PREMISES RELATED EXPENDITURE,ENERGY COSTS (ELECTRICITY),2332,NPOWER LIMITED,18/11/2021 00:00:00,255762,840.23,NP0123,NPOWER LIMITED,11/01/2021 00:00,28/11/2021 00:00:00,P08-2022
,LEE VALLEY RIDING CENTRE,PREMISES RELATED EXPENDITURE,ENERGY COSTS (ELECTRICITY),2332,EDF ENERGY 1 LIMITED,22/11/2021 00:00:00,255936,80.58,ED0077,EDF ENERGY 1 LIMITED,11/01/2021 00:00,28/11/2021 00:00:00,P08-2022
,LEE VALLEY ICE CENTRE,PREMISES RELATED EXPENDITURE,ENERGY COSTS (ELECTRICITY),2332,NPOWER LIMITED,18/11/2021 00:00:00,253264,4292.7,NP0123,NPOWER LIMITED,11/01/2021 00:00,28/11/2021 00:00:00,P08-2022
,LV LEISURE CENTRE CAMPSITE,PREMISES RELATED EXPENDITURE,ENERGY COSTS (ELECTRICITY),2332,NPOWER LIMITED,18/11/2021 00:00:00,255759,5798.59,NP0123,NPOWER LIMITED,11/01/2021 00:00,28/11/2021 00:00:00,P08-2022
,LEE VALLEY WHITE WATER CENTRE,PREMISES RELATED EXPENDITURE,ENERGY COSTS (ELECTRICITY),2332,BRITISH GAS BUSINESS,15/11/2021 00:00:00,255502,131.47,BR0030,BRITISH GAS BUSINESS,11/01/2021 00:00,28/11/2021 00:00:00,P08-2022
,LEE VALLEY WHITE WATER CENTRE,PREMISES RELATED EXPENDITURE,ENERGY COSTS (ELECTRICITY),2332,NPOWER LIMITED,18/11/2021 00:00:00,255757,25686.14,NP0123,NPOWER LIMITED,11/01/2021 00:00,28/11/2021 00:00:00,P08-2022
,LEE VALLEY WHITE WATER CENTRE,PREMISES RELATED EXPENDITURE,ENERGY COSTS (ELECTRICITY),2332,NPOWER LIMITED,18/11/2021 00:00:00,255758,542.53,NP0123,NPOWER LIMITED,11/01/2021 00:00,28/11/2021 00:00:00,P08-2022
CEO,RESIDENTIAL ACCOMMODATION,PREMISES RELATED EXPENDITURE,ENERGY COSTS (GAS),2333,BRITISH GAS BUSINESS,23/11/2021 00:00:00,255754,35.96,BR0030,BRITISH GAS BUSINESS,11/01/2021 00:00,28/11/2021 00:00:00,P08-2022
CEO,COMMERCIAL ACCOMMODATION,PREMISES RELATED EXPENDITURE,ENERGY COSTS (GAS),2333,P114960-SERVICE-LV Forge Gas,11/08/2021 00:00,254773,19.61,CA0006,CALOR GAS LIMITED,11/01/2021 00:00,28/11/2021 00:00:00,P08-2022
,LEE VALLEY MARINA SPRINGFIELD,PREMISES RELATED EXPENDITURE,ENERGY COSTS (GAS),2333,KENT COUNTY COUNCIL (KCS),15/11/2021 00:00:00,255678,247.52,KE0007,KENT COUNTY COUNCIL (KCS),11/01/2021 00:00,28/11/2021 00:00:00,P08-2022
,LEE VALLEY MARINA STANSTEAD,PREMISES RELATED EXPENDITURE,ENERGY COSTS (GAS),2333,KENT COUNTY COUNCIL (KCS),17/11/2021 00:00:00,255676,153.51,KE0007,KENT COUNTY COUNCIL (KCS),11/01/2021 00:00,28/11/2021 00:00:00,P08-2022
,LEE VALLEY MARINA STANSTEAD,PREMISES RELATED EXPENDITURE,ENERGY COSTS (GAS),2333,KENT COUNTY COUNCIL (KCS),17/11/2021 00:00:00,255677,91.21,KE0007,KENT COUNTY COUNCIL (KCS),11/01/2021 00:00,28/11/2021 00:00:00,P08-2022
,LEE VALLEY WATERWORKS CENTRE,PREMISES RELATED EXPENDITURE,ENERGY COSTS (GAS),2333,KENT COUNTY COUNCIL (KCS),16/11/2021 00:00:00,255682,285.64,KE0007,KENT COUNTY COUNCIL (KCS),11/01/2021 00:00,28/11/2021 00:00:00,P08-2022
,LEE VALLEY CAMPSITE,PREMISES RELATED EXPENDITURE,ENERGY COSTS (GAS),2333,KENT COUNTY COUNCIL (KCS),17/11/2021 00:00:00,255680,391.34,KE0007,KENT COUNTY COUNCIL (KCS),11/01/2021 00:00,28/11/2021 00:00:00,P08-2022
,LEE VALLEY CARAVAN PARK,PREMISES RELATED EXPENDITURE,ENERGY COSTS (GAS),2333,P115228-SERVICE-Gas,17/11/2021 00:00:00,255683,4235.9,AV0327,AVANTI GAS LIMITED,11/01/2021 00:00,28/11/2021 00:00:00,P08-2022
,LEE VALLEY CARAVAN PARK,PREMISES RELATED EXPENDITURE,ENERGY COSTS (GAS),2333,P115389-SERVICE-Wardens lodge gas,28/11/2021 00:00:00,256008,580.65,AV0327,AVANTI GAS LIMITED,11/01/2021 00:00,28/11/2021 00:00:00,P08-2022
P&V,MYDDELTON HOUSE GARDENS,PREMISES RELATED EXPENDITURE,ENERGY COSTS (GAS),2333,KENT COUNTY COUNCIL (KCS),22/11/2021 00:00:00,255765,508.73,KE0007,KENT COUNTY COUNCIL (KCS),11/01/2021 00:00,28/11/2021 00:00:00,P08-2022
,LEE VALLEY RIDING CENTRE,PREMISES RELATED EXPENDITURE,ENERGY COSTS (GAS),2333,TOTALENERGIES GAS & POWER LIMI,15/11/2021 00:00:00,255697,130.88,TO0168,TOTALENERGIES GAS & POWER LIMITED,11/01/2021 00:00,28/11/2021 00:00:00,P08-2022
,LEE VALLEY RIDING CENTRE,PREMISES RELATED EXPENDITURE,ENERGY COSTS (GAS),2333,BRITISH GAS BUSINESS,28/11/2021 00:00:00,256224,113.14,BR0029,BRITISH GAS BUSINESS,11/01/2021 00:00,28/11/2021 00:00:00,P08-2022
,LV LEISURE CENTRE CAMPSITE,PREMISES RELATED EXPENDITURE,ENERGY COSTS (GAS),2333,KENT COUNTY COUNCIL (KCS),16/11/2021 00:00:00,255679,1006.28,KE0007,KENT COUNTY COUNCIL (KCS),11/01/2021 00:00,28/11/2021 00:00:00,P08-2022
,LEE VALLEY WHITE WATER CENTRE,PREMISES RELATED EXPENDITURE,ENERGY COSTS (GAS),2333,BRITISH GAS BUSINESS,15/11/2021 00:00:00,255502,27.52,BR0030,BRITISH GAS BUSINESS,11/01/2021 00:00,28/11/2021 00:00:00,P08-2022
,LEE VALLEY WHITE WATER CENTRE,PREMISES RELATED EXPENDITURE,ENERGY COSTS (GAS),2333,P114779-SERVICE-To cover call out attendance to investigate w,18/11/2021 00:00:00,255768,678,CL0039,XYLEM WATER SOLUTIONS UK  LIMITED,11/01/2021 00:00,28/11/2021 00:00:00,P08-2022
,LEE VALLEY MARINA STANSTEAD,PREMISES RELATED EXPENDITURE,RENT (EXTERNAL),2442,CANAL & RIVER TRUST,28/11/2021 00:00:00,255960,11875,BR0036,CANAL & RIVER TRUST,11/01/2021 00:00,28/11/2021 00:00:00,P08-2022
,LEE VALLEY MARINA STANSTEAD,PREMISES RELATED EXPENDITURE,BUSINESS RATES,2444,LIABILITY ORDER FOR STANSTEAD-BOAT YAR,15/11/2021 00:00:00,255672,80,EA0086,EAST HERTS COUNCIL,11/01/2021 00:00,28/11/2021 00:00:00,P08-2022
,LEE VALLEY MARINA STANSTEAD,PREMISES RELATED EXPENDITURE,BUSINESS RATES,2444,LIABILITY ORDER FOR SHOWROOM,15/11/2021 00:00:00,255673,80,EA0086,EAST HERTS COUNCIL,11/01/2021 00:00,28/11/2021 00:00:00,P08-2022
CEO,RESIDENTIAL ACCOMMODATION,PREMISES RELATED EXPENDITURE,PROPERTY MANAGEMT/LETTING FEES,2447,P114965-SERVICE-Landlord Fees - 2 Connaught Close,11/08/2021 00:00,254724,2100,CA0165,CASTLES,11/01/2021 00:00,28/11/2021 00:00:00,P08-2022
CEO,RESIDENTIAL ACCOMMODATION,PREMISES RELATED EXPENDITURE,PROPERTY MANAGEMT/LETTING FEES,2447,P114966-SERVICE-Landlord Warranty - 2 Connaught Close,11/08/2021 00:00,254725,357,CA0165,CASTLES,11/01/2021 00:00,28/11/2021 00:00:00,P08-2022
CEO,RESIDENTIAL ACCOMMODATION,PREMISES RELATED EXPENDITURE,PROPERTY MANAGEMT/LETTING FEES,2447,P114963-SERVICE-Landlord Warranty Fee - Roselea Bungalow,11/08/2021 00:00,254974,214.2,CA0165,CASTLES,11/01/2021 00:00,28/11/2021 00:00:00,P08-2022
CEO,RESIDENTIAL ACCOMMODATION,PREMISES RELATED EXPENDITURE,PROPERTY MANAGEMT/LETTING FEES,2447,P114964-SERVICE-Letting Fee - Roselea Bungalow,11/08/2021 00:00,254975,1260,CA0165,CASTLES,11/01/2021 00:00,28/11/2021 00:00:00,P08-2022
,LEE VALLEY MARINA STANSTEAD,PREMISES RELATED EXPENDITURE,WATER,2555,CASTLE WATER LIMITED,11/09/2021 00:00,255071,121.41,CA0625,CASTLE WATER LIMITED,11/01/2021 00:00,28/11/2021 00:00:00,P08-2022
,LEE VALLEY MARINA STANSTEAD,PREMISES RELATED EXPENDITURE,WATER,2555,CASTLE WATER LIMITED,11/09/2021 00:00,255071,127.16,CA0625,CASTLE WATER LIMITED,11/01/2021 00:00,28/11/2021 00:00:00,P08-2022
,LEE VALLEY CAMPSITE,PREMISES RELATED EXPENDITURE,WATER,2555,CASTLE WATER LIMITED,11/08/2021 00:00,255070,1594.29,CA0625,CASTLE WATER LIMITED,11/01/2021 00:00,28/11/2021 00:00:00,P08-2022
,LEE VALLEY CAMPSITE,PREMISES RELATED EXPENDITURE,WATER,2555,CASTLE WATER LIMITED,28/11/2021 00:00:00,256248,693.22,CA0625,CASTLE WATER LIMITED,11/01/2021 00:00,28/11/2021 00:00:00,P08-2022
,LV LEISURE CENTRE CAMPSITE,PREMISES RELATED EXPENDITURE,WATER,2555,CASTLE WATER LIMITED,11/10/2021 00:00,255388,146.31,CA0625,CASTLE WATER LIMITED,11/01/2021 00:00,28/11/2021 00:00:00,P08-2022
,LV LEISURE CENTRE CAMPSITE,PREMISES RELATED EXPENDITURE,WATER,2555,CASTLE WATER LIMITED,11/10/2021 00:00,255388,433.35,CA0625,CASTLE WATER LIMITED,11/01/2021 00:00,28/11/2021 00:00:00,P08-2022
,LV LEISURE CENTRE CAMPSITE,PREMISES RELATED EXPENDITURE,WATER,2555,CASTLE WATER LIMITED,28/11/2021 00:00:00,256250,61.6,CA0625,CASTLE WATER LIMITED,11/01/2021 00:00,28/11/2021 00:00:00,P08-2022
,LEE VALLEY MARINA SPRINGFIELD,PREMISES RELATED EXPENDITURE,CLEANING & DOMESTIC SUPPLIES,2666,P114767-SERVICE-Sanitary Disposal/Dust Mats ect rental,11/08/2021 00:00,254697,179.8,PE0015,PHS GROUP PLC,11/01/2021 00:00,28/11/2021 00:00:00,P08-2022
,LEE VALLEY MARINA SPRINGFIELD,PREMISES RELATED EXPENDITURE,CLEANING & DOMESTIC SUPPLIES,2666,"P114471-SERVICE-Site cleaning for Sept,Oct,Nov & Dec 2021",11/08/2021 00:00,255015,912.33,MA0015,MAYFAIR CLEANING COMPANY LIMITED,11/01/2021 00:00,28/11/2021 00:00:00,P08-2022
,LEE VALLEY MARINA SPRINGFIELD,PREMISES RELATED EXPENDITURE,CLEANING & DOMESTIC SUPPLIES,2666,P114767-SERVICE-Sanitary Disposal/Dust Mats ect rental,28/11/2021 00:00:00,256159,184.54,PE0015,PHS GROUP PLC,11/01/2021 00:00,28/11/2021 00:00:00,P08-2022
,LEE VALLEY WATERWORKS CENTRE,PREMISES RELATED EXPENDITURE,CLEANING & DOMESTIC SUPPLIES,2666,P114919-SERVICE-Cleaning WaterWorks Centre - Oct 2021,11/09/2021 00:00,255066,526,GL0214,GLENDALE GROUNDS MANAGEMENT LIMITED,11/01/2021 00:00,28/11/2021 00:00:00,P08-2022
,LEE VALLEY CAMPSITE,PREMISES RELATED EXPENDITURE,CLEANING & DOMESTIC SUPPLIES,2666,P115244-SERVICE-CLEANING MATERIALS,18/11/2021 00:00:00,255633,9.6,HY0043,HYGIENE SYSTEMS LTD,11/01/2021 00:00,28/11/2021 00:00:00,P08-2022
,LEE VALLEY CAMPSITE,PREMISES RELATED EXPENDITURE,CLEANING & DOMESTIC SUPPLIES,2666,P115370-SERVICE-Compactor sacks x10 boxes,28/11/2021 00:00:00,255742,141.3,HY0043,HYGIENE SYSTEMS LTD,11/01/2021 00:00,28/11/2021 00:00:00,P08-2022
,LEE VALLEY CARAVAN PARK,PREMISES RELATED EXPENDITURE,CLEANING & DOMESTIC SUPPLIES,2666,P115296-SERVICE-monthly hygene,22/11/2021 00:00:00,255930,90.39,IN0012,INITIAL WASHROOM HYGIENE,11/01/2021 00:00,28/11/2021 00:00:00,P08-2022
,LV HOCKEY AND TENNIS CENTRE,PREMISES RELATED EXPENDITURE,CLEANING & DOMESTIC SUPPLIES,2666,P113781-SERVICE-Hygiene prducts August - Dec 2021,11/10/2021 00:00,255034,364.82,PE0015,PHS GROUP PLC,11/01/2021 00:00,28/11/2021 00:00:00,P08-2022
,LV HOCKEY AND TENNIS CENTRE,PREMISES RELATED EXPENDITURE,CLEANING & DOMESTIC SUPPLIES,2666,P115141-SERVICE-cleaning supplies until March 2022,15/11/2021 00:00:00,255636,379.69,BR0025,BREEZE SOUTHERN LTD,11/01/2021 00:00,28/11/2021 00:00:00,P08-2022
,LEE VALLEY ATHLETICS CENTRE,PREMISES RELATED EXPENDITURE,CLEANING & DOMESTIC SUPPLIES,2666,P114734-SERVICE-LVAC ORDER EMAILED 21.10.21 A BEACON,15/11/2021 00:00:00,255346,295.56,HY0043,HYGIENE SYSTEMS LTD,11/01/2021 00:00,28/11/2021 00:00:00,P08-2022
,LEE VALLEY ATHLETICS CENTRE,PREMISES RELATED EXPENDITURE,CLEANING & DOMESTIC SUPPLIES,2666,P115111-SERVICE-STOCK REF: EMALI AMBER BEACON 11.11.21,28/11/2021 00:00:00,255777,266.84,HY0043,HYGIENE SYSTEMS LTD,11/01/2021 00:00,28/11/2021 00:00:00,P08-2022
,LEE VALLEY WHITE WATER CENTRE,PREMISES RELATED EXPENDITURE,CLEANING & DOMESTIC SUPPLIES,2666,P115004-SERVICE-Cleaning supplies,16/11/2021 00:00:00,255413,219.31,SU0595,SUMMIT HYGIENE LTD,11/01/2021 00:00,28/11/2021 00:00:00,P08-2022
,LEE VALLEY WHITE WATER CENTRE,PREMISES RELATED EXPENDITURE,CLEANING & DOMESTIC SUPPLIES,2666,P115113-SERVICE-2 x wire brushes and handles,18/11/2021 00:00:00,255674,24.64,AM0406,AMAZON PAYMENTS UK LIMITED,11/01/2021 00:00,28/11/2021 00:00:00,P08-2022
P&V,LEE VALLEY FARM HOLYFIELDHALL,TRANSPORT RELATED EXPENDITURE,TRANSPORT RUNNING EXPENSES,3333,P114981-SERVICE-Izuzu Service,11/09/2021 00:00,255374,2067.84,RW0257,R. W. CRAWFORD AGRICULTURAL MACHINERY LTD,11/01/2021 00:00,28/11/2021 00:00:00,P08-2022
P&V,LEE VALLEY FARM HOLYFIELDHALL,TRANSPORT RELATED EXPENDITURE,TRANSPORT RUNNING EXPENSES,3333,P115192-SERVICE-Clip Drop Rod/Retaining Pin,22/11/2021 00:00:00,255495,45.58,CH0719,CHANDLERS (FARM EQUIPMENT) LTD,11/01/2021 00:00,28/11/2021 00:00:00,P08-2022
P&V,LEE VALLEY FARM HOLYFIELDHALL,TRANSPORT RELATED EXPENDITURE,TRANSPORT RUNNING EXPENSES,3333,P111473-SERVICE-Tractor Spares,24/11/2021 00:00:00,255769,12,OL0001,OLIVER AGRICULTURE LTD,11/01/2021 00:00,28/11/2021 00:00:00,P08-2022
P&V,LEE VALLEY FARM HOLYFIELDHALL,TRANSPORT RELATED EXPENDITURE,TRANSPORT RUNNING EXPENSES,3333,P114155-SERVICE-Hose/Ram Repairs,24/11/2021 00:00:00,255987,712.82,CO0737,COMPLETELY HYDRAULIC-PLS USE A/C CO0395,11/01/2021 00:00,28/11/2021 00:00:00,P08-2022
P&V,LEE VALLEY FARM HOLYFIELDHALL,TRANSPORT RELATED EXPENDITURE,TRANSPORT RUNNING EXPENSES,3333,P113006-SERVICE-Tyres,28/11/2021 00:00:00,256003,15,KB0006,KB TYRES LTD,11/01/2021 00:00,28/11/2021 00:00:00,P08-2022
,LV LEISURE CENTRE GOLF COURSE,TRANSPORT RELATED EXPENDITURE,TRANSPORT RUNNING EXPENSES,3333,P114802-SERVICE-tining machine running expenses,11/09/2021 00:00,255105,1163.37,CA0698,CAMBRIDGE GOLF COMPANY,11/01/2021 00:00,28/11/2021 00:00:00,P08-2022
P&V,FISHERIES MANAGEMENT,TRANSPORT RELATED EXPENDITURE,VEHICLE FUEL,3335,ALLSTAR BUSINESS SOLUTIONS LTD,11/09/2021 00:00,255050,83.44,AR0035,ALLSTAR BUSINESS SOLUTIONS LTD,11/01/2021 00:00,28/11/2021 00:00:00,P08-2022
,LEE VALLEY MARINA STANSTEAD,TRANSPORT RELATED EXPENDITURE,VEHICLE FUEL,3335,ALLSTAR BUSINESS SOLUTIONS LTD,11/09/2021 00:00,255050,189.11,AR0035,ALLSTAR BUSINESS SOLUTIONS LTD,11/01/2021 00:00,28/11/2021 00:00:00,P08-2022
P&V,LEE VALLEY FARM HOLYFIELDHALL,TRANSPORT RELATED EXPENDITURE,VEHICLE FUEL,3335,ALLSTAR BUSINESS SOLUTIONS LTD,11/09/2021 00:00,255050,110.05,AR0035,ALLSTAR BUSINESS SOLUTIONS LTD,11/01/2021 00:00,28/11/2021 00:00:00,P08-2022
,LEE VALLEY CARAVAN PARK,TRANSPORT RELATED EXPENDITURE,VEHICLE FUEL,3335,ALLSTAR BUSINESS SOLUTIONS LTD,11/09/2021 00:00,255050,105.24,AR0035,ALLSTAR BUSINESS SOLUTIONS LTD,11/01/2021 00:00,28/11/2021 00:00:00,P08-2022
P&V,NORTH AREA RANGERS,TRANSPORT RELATED EXPENDITURE,VEHICLE FUEL,3335,ALLSTAR BUSINESS SOLUTIONS LTD,11/09/2021 00:00,255050,76.98,AR0035,ALLSTAR BUSINESS SOLUTIONS LTD,11/01/2021 00:00,28/11/2021 00:00:00,P08-2022
P&V,SOUTH AREA RANGERS,TRANSPORT RELATED EXPENDITURE,VEHICLE FUEL,3335,ALLSTAR BUSINESS SOLUTIONS LTD,11/09/2021 00:00,255050,104.33,AR0035,ALLSTAR BUSINESS SOLUTIONS LTD,11/01/2021 00:00,28/11/2021 00:00:00,P08-2022
P&V,GUNPOWDER PARK,TRANSPORT RELATED EXPENDITURE,VEHICLE FUEL,3335,ALLSTAR BUSINESS SOLUTIONS LTD,11/09/2021 00:00,255050,56.99,AR0035,ALLSTAR BUSINESS SOLUTIONS LTD,11/01/2021 00:00,28/11/2021 00:00:00,P08-2022
P&V,RIVER LEE COUNTRY PARK,TRANSPORT RELATED EXPENDITURE,VEHICLE FUEL,3335,ALLSTAR BUSINESS SOLUTIONS LTD,11/09/2021 00:00,255050,90.57,AR0035,ALLSTAR BUSINESS SOLUTIONS LTD,11/01/2021 00:00,28/11/2021 00:00:00,P08-2022
P&V,RIVER LEE COUNTRY PARK,TRANSPORT RELATED EXPENDITURE,VEHICLE FUEL,3335,ALLSTAR BUSINESS SOLUTIONS LTD,11/09/2021 00:00,255050,416.28,AR0035,ALLSTAR BUSINESS SOLUTIONS LTD,11/01/2021 00:00,28/11/2021 00:00:00,P08-2022
,LEE VALLEY RIDING CENTRE,TRANSPORT RELATED EXPENDITURE,VEHICLE FUEL,3335,ALLSTAR BUSINESS SOLUTIONS LTD,11/09/2021 00:00,255051,32.61,AR0035,ALLSTAR BUSINESS SOLUTIONS LTD,11/01/2021 00:00,28/11/2021 00:00:00,P08-2022
P&V,NORTH AREA RANGERS,TRANSPORT RELATED EXPENDITURE,VEHICLE REPAIRS & MAINTENANCE,3338,P115132-SERVICE-Full Service - GD65UTK,15/11/2021 00:00:00,255667,378.44,AB0153,ABBEY SERVICE CENTRE,11/01/2021 00:00,28/11/2021 00:00:00,P08-2022
P&V,NORTH AREA RANGERS,TRANSPORT RELATED EXPENDITURE,VEHICLE REPAIRS & MAINTENANCE,3338,P115132-SERVICE-Full Service - GD65UTF,15/11/2021 00:00:00,255668,209.9,AB0153,ABBEY SERVICE CENTRE,11/01/2021 00:00,28/11/2021 00:00:00,P08-2022
P&V,NORTH AREA RANGERS,TRANSPORT RELATED EXPENDITURE,VEHICLE REPAIRS & MAINTENANCE,3338,P115339-SERVICE-Service - Tipper - GL16WJZ,28/11/2021 00:00:00,256133,263.75,AB0153,ABBEY SERVICE CENTRE,11/01/2021 00:00,28/11/2021 00:00:00,P08-2022
P&V,NORTH AREA RANGERS,TRANSPORT RELATED EXPENDITURE,VEHICLE REPAIRS & MAINTENANCE,3338,P115339-SERVICE-MOT - Tipper - GL16WJZ,28/11/2021 00:00:00,256133,50,AB0153,ABBEY SERVICE CENTRE,11/01/2021 00:00,28/11/2021 00:00:00,P08-2022
P&V,SOUTH AREA RANGERS,TRANSPORT RELATED EXPENDITURE,VEHICLE REPAIRS & MAINTENANCE,3338,P114415-SERVICE-Supply and  Fit Lee Valley Logos to Vehicles,16/11/2021 00:00:00,255498,354,TO0314,TOTALLY DYNAMIC NORTH LONDON,11/01/2021 00:00,28/11/2021 00:00:00,P08-2022
P&V,SOUTH AREA RANGERS,TRANSPORT RELATED EXPENDITURE,VEHICLE REPAIRS & MAINTENANCE,3338,P114415-SERVICE-Supply and Fit Lee Valley Logos to Vehicles,16/11/2021 00:00:00,255499,180,TO0314,TOTALLY DYNAMIC NORTH LONDON,11/01/2021 00:00,28/11/2021 00:00:00,P08-2022
P&V,FISHERIES MANAGEMENT,SUPPLIES AND SERVICES,EQUIPMENT & MATERIALS,4111,P115055-SERVICE-1x Oil Spill Wheelie Bin Kit 580I,15/11/2021 00:00:00,255695,659,OI0120,OIL SPILL PRODUCTS LIMITED,11/01/2021 00:00,28/11/2021 00:00:00,P08-2022
P&V,FISHERIES MANAGEMENT,SUPPLIES AND SERVICES,EQUIPMENT & MATERIALS,4111,P114746-SERVICE-1x Chainsaw Trousers,28/11/2021 00:00:00,255776,160.93,AP0245,APS LIMITED,11/01/2021 00:00,28/11/2021 00:00:00,P08-2022
P&V,FISHERIES MANAGEMENT,SUPPLIES AND SERVICES,EQUIPMENT & MATERIALS,4111,OIL SPILL PRODUCTS LIMITED,22/11/2021 00:00:00,255928,0,OI0120,OIL SPILL PRODUCTS LIMITED,11/01/2021 00:00,28/11/2021 00:00:00,P08-2022
,LEE VALLEY MARINA SPRINGFIELD,SUPPLIES AND SERVICES,EQUIPMENT & MATERIALS,4111,P111795-SERVICE-BOC Welding Consumables,11/08/2021 00:00,253845,601.25,BO0015,BOC LTD,11/01/2021 00:00,28/11/2021 00:00:00,P08-2022
,LEE VALLEY MARINA SPRINGFIELD,SUPPLIES AND SERVICES,EQUIPMENT & MATERIALS,4111,P111795-SERVICE-BOC Welding Consumables,11/08/2021 00:00,254484,72.95,BO0015,BOC LTD,11/01/2021 00:00,28/11/2021 00:00:00,P08-2022
,LEE VALLEY MARINA SPRINGFIELD,SUPPLIES AND SERVICES,EQUIPMENT & MATERIALS,4111,P111795-SERVICE-BOC Welding Consumables,11/08/2021 00:00,255111,-498.54,BO0015,BOC LTD,11/01/2021 00:00,28/11/2021 00:00:00,P08-2022
,STANSTEAD RECHARGEABLE WORKS,SUPPLIES AND SERVICES,EQUIPMENT & MATERIALS,4111,P113495-SERVICE-parts supplied,22/11/2021 00:00:00,255655,155.25,EN0309,PRH ENGINEERING LIMITED,11/01/2021 00:00,28/11/2021 00:00:00,P08-2022
,LEE VALLEY WATERWORKS CENTRE,SUPPLIES AND SERVICES,EQUIPMENT & MATERIALS,4111,P115056-SERVICE-Delivery to address below,16/11/2021 00:00:00,255630,5.95,WE0172,WEL MEDICAL LIMITED,11/01/2021 00:00,28/11/2021 00:00:00,P08-2022
,LEE VALLEY WATERWORKS CENTRE,SUPPLIES AND SERVICES,EQUIPMENT & MATERIALS,4111,"P115056-SERVICE-2x iPAD SP1 Adult/Child Electrode Pads	",16/11/2021 00:00:00,255630,72,WE0172,WEL MEDICAL LIMITED,11/01/2021 00:00,28/11/2021 00:00:00,P08-2022
,LEE VALLEY CAMPSITE,SUPPLIES AND SERVICES,EQUIPMENT & MATERIALS,4111,P115034-SERVICE-Bathroom paint & brushes,11/10/2021 00:00,255300,37.69,SC0057,SCREWFIX DIRECT LTD,11/01/2021 00:00,28/11/2021 00:00:00,P08-2022
,LEE VALLEY CAMPSITE,SUPPLIES AND SERVICES,EQUIPMENT & MATERIALS,4111,P115128-SERVICE-amazon supplies,23/11/2021 00:00:00,255675,6.25,AM0406,AMAZON PAYMENTS UK LIMITED,11/01/2021 00:00,28/11/2021 00:00:00,P08-2022
,LEE VALLEY CARAVAN PARK,SUPPLIES AND SERVICES,EQUIPMENT & MATERIALS,4111,P114896-SERVICE-Tools,11/08/2021 00:00,254177,111.44,SC0057,SCREWFIX DIRECT LTD,11/01/2021 00:00,28/11/2021 00:00:00,P08-2022
,LEE VALLEY CARAVAN PARK,SUPPLIES AND SERVICES,EQUIPMENT & MATERIALS,4111,P114917-SERVICE-Back lights for buggy,11/09/2021 00:00,255256,12.98,AM0406,AMAZON PAYMENTS UK LIMITED,11/01/2021 00:00,28/11/2021 00:00:00,P08-2022
,LEE VALLEY CARAVAN PARK,SUPPLIES AND SERVICES,EQUIPMENT & MATERIALS,4111,P114982-SERVICE-cable for dobbs,11/09/2021 00:00,255307,15.78,AM0406,AMAZON PAYMENTS UK LIMITED,11/01/2021 00:00,28/11/2021 00:00:00,P08-2022
,LEE VALLEY CARAVAN PARK,SUPPLIES AND SERVICES,EQUIPMENT & MATERIALS,4111,P114909-SERVICE-Cleaning supplies,11/09/2021 00:00,255342,44.12,HY0043,HYGIENE SYSTEMS LTD,11/01/2021 00:00,28/11/2021 00:00:00,P08-2022
,LEE VALLEY CARAVAN PARK,SUPPLIES AND SERVICES,EQUIPMENT & MATERIALS,4111,P114975-SERVICE-pegs for tents,11/09/2021 00:00,255344,10.41,AM0406,AMAZON PAYMENTS UK LIMITED,11/01/2021 00:00,28/11/2021 00:00:00,P08-2022
P&V,NORTH AREA RANGERS,SUPPLIES AND SERVICES,EQUIPMENT & MATERIALS,4111,P114746-SERVICE-3x Chainsaw Boots,28/11/2021 00:00:00,255776,597,AP0245,APS LIMITED,11/01/2021 00:00,28/11/2021 00:00:00,P08-2022
P&V,NORTH AREA RANGERS,SUPPLIES AND SERVICES,EQUIPMENT & MATERIALS,4111,P114746-SERVICE-2x Chainsaw Trousers,28/11/2021 00:00:00,255776,321.86,AP0245,APS LIMITED,11/01/2021 00:00,28/11/2021 00:00:00,P08-2022
P&V,NORTH AREA RANGERS,SUPPLIES AND SERVICES,EQUIPMENT & MATERIALS,4111,P114746-SERVICE-2x Chainsaw Gloves,28/11/2021 00:00:00,255776,58.26,AP0245,APS LIMITED,11/01/2021 00:00,28/11/2021 00:00:00,P08-2022
P&V,NORTH AREA RANGERS,SUPPLIES AND SERVICES,EQUIPMENT & MATERIALS,4111,P115116-SERVICE-3x Sign Fold-up 750mm Classic People At Work,28/11/2021 00:00:00,256216,121.98,GR0020,GREENHAM TRADING LIMITED,11/01/2021 00:00,28/11/2021 00:00:00,P08-2022
P&V,SOUTH AREA RANGERS,SUPPLIES AND SERVICES,EQUIPMENT & MATERIALS,4111,P115003-SERVICE-2x Postmix,11/09/2021 00:00,255287,9.5,JW0004,J & W FENCING LIMITED,11/01/2021 00:00,28/11/2021 00:00:00,P08-2022
P&V,SOUTH AREA RANGERS,SUPPLIES AND SERVICES,EQUIPMENT & MATERIALS,4111,P115115-SERVICE-Decking Screws,15/11/2021 00:00:00,255391,10.29,BQ0164,TRADE UK ACCOUNT,11/01/2021 00:00,28/11/2021 00:00:00,P08-2022
P&V,SOUTH AREA RANGERS,SUPPLIES AND SERVICES,EQUIPMENT & MATERIALS,4111,P111423-SERVICE-Stem Injector Pump Cylinder,28/11/2021 00:00:00,255473,75,ST0301,STEM INJECTION SYSTEMS (EUROPE) LTD,11/01/2021 00:00,28/11/2021 00:00:00,P08-2022
P&V,SOUTH AREA RANGERS,SUPPLIES AND SERVICES,EQUIPMENT & MATERIALS,4111,P111423-SERVICE-Delivery,28/11/2021 00:00:00,255473,12,ST0301,STEM INJECTION SYSTEMS (EUROPE) LTD,11/01/2021 00:00,28/11/2021 00:00:00,P08-2022
P&V,RIVER LEE COUNTRY PARK,SUPPLIES AND SERVICES,EQUIPMENT & MATERIALS,4111,P114872-SERVICE-Delivery - First Aid Kits,28/11/2021 00:00:00,255984,4.95,ST0038,ST JOHN AMBULANCE,11/01/2021 00:00,28/11/2021 00:00:00,P08-2022
P&V,RIVER LEE COUNTRY PARK,SUPPLIES AND SERVICES,EQUIPMENT & MATERIALS,4111,P114872-SERVICE-4x Motor Vehicle First Aid Kits - F30801,28/11/2021 00:00:00,255984,62,ST0038,ST JOHN AMBULANCE,11/01/2021 00:00,28/11/2021 00:00:00,P08-2022
,LEE VALLEY VELOPARK,SUPPLIES AND SERVICES,EQUIPMENT & MATERIALS,4111,P115009-SERVICE-Sure Mix Size V,15/11/2021 00:00:00,255110,51.3,BO0015,BOC LTD,11/01/2021 00:00,28/11/2021 00:00:00,P08-2022
,LEE VALLEY VELOPARK,SUPPLIES AND SERVICES,EQUIPMENT & MATERIALS,4111,P114985-SERVICE-100 Track Tyres,22/11/2021 00:00:00,255437,1956,CA0734,CAMBRIAN TYRES LTD T/A CONTI TYRES,11/01/2021 00:00,28/11/2021 00:00:00,P08-2022
,LEE VALLEY VELOPARK,SUPPLIES AND SERVICES,EQUIPMENT & MATERIALS,4111,P115130-SERVICE-TMVs,22/11/2021 00:00:00,255924,475.5,RI0234,RICHMONDS OF LONDON LIMITED,11/01/2021 00:00,28/11/2021 00:00:00,P08-2022
,LV HOCKEY AND TENNIS CENTRE,SUPPLIES AND SERVICES,EQUIPMENT & MATERIALS,4111,P114147-SERVICE-suremix,11/10/2021 00:00,255109,16.8,BO0015,BOC LTD,11/01/2021 00:00,28/11/2021 00:00:00,P08-2022
,LV HOCKEY AND TENNIS CENTRE,SUPPLIES AND SERVICES,EQUIPMENT & MATERIALS,4111,P115201-SERVICE-smg machine collection and investigate,22/11/2021 00:00:00,255364,995,TE0273,TECHNICAL SURFACES LTD,11/01/2021 00:00,28/11/2021 00:00:00,P08-2022
,LV HOCKEY AND TENNIS CENTRE,SUPPLIES AND SERVICES,EQUIPMENT & MATERIALS,4111,"P114585-SERVICE-X 2 BATTERIES AND CALL OUT, LABOUR",11/10/2021 00:00,255386,531.3,BR0025,BREEZE SOUTHERN LTD,11/01/2021 00:00,28/11/2021 00:00:00,P08-2022
,LV HOCKEY AND TENNIS CENTRE,SUPPLIES AND SERVICES,EQUIPMENT & MATERIALS,4111,P113852-SERVICE-trophies for comps,28/11/2021 00:00:00,256238,26.67,BW0107,B & W DARTS AND TROPHIES LTD,11/01/2021 00:00,28/11/2021 00:00:00,P08-2022
,LEE VALLEY RIDING CENTRE,SUPPLIES AND SERVICES,EQUIPMENT & MATERIALS,4111,P115077-SERVICE-13 x s tines,15/11/2021 00:00:00,255634,134.94,AN0441,ANDREWS BOWEN EQUINE ENGINEERING LTD,11/01/2021 00:00,28/11/2021 00:00:00,P08-2022
,LEE VALLEY RIDING CENTRE,SUPPLIES AND SERVICES,EQUIPMENT & MATERIALS,4111,P115077-SERVICE-13x bolts and tips,15/11/2021 00:00:00,255634,27.43,AN0441,ANDREWS BOWEN EQUINE ENGINEERING LTD,11/01/2021 00:00,28/11/2021 00:00:00,P08-2022
,LEE VALLEY RIDING CENTRE,SUPPLIES AND SERVICES,EQUIPMENT & MATERIALS,4111,P115077-SERVICE-delivery,15/11/2021 00:00:00,255634,80,AN0441,ANDREWS BOWEN EQUINE ENGINEERING LTD,11/01/2021 00:00,28/11/2021 00:00:00,P08-2022
,LEE VALLEY RIDING CENTRE,SUPPLIES AND SERVICES,EQUIPMENT & MATERIALS,4111,P115166-SERVICE-gate parking sign,15/11/2021 00:00:00,255645,8.33,SC0057,SCREWFIX DIRECT LTD,11/01/2021 00:00,28/11/2021 00:00:00,P08-2022
,LEE VALLEY RIDING CENTRE,SUPPLIES AND SERVICES,EQUIPMENT & MATERIALS,4111,P115166-SERVICE-18v brushless drill,15/11/2021 00:00:00,255645,333.33,SC0057,SCREWFIX DIRECT LTD,11/01/2021 00:00,28/11/2021 00:00:00,P08-2022
,LEE VALLEY RIDING CENTRE,SUPPLIES AND SERVICES,EQUIPMENT & MATERIALS,4111,P115166-SERVICE-bulb 16 w x10,15/11/2021 00:00:00,255645,41.58,SC0057,SCREWFIX DIRECT LTD,11/01/2021 00:00,28/11/2021 00:00:00,P08-2022
,LEE VALLEY RIDING CENTRE,SUPPLIES AND SERVICES,EQUIPMENT & MATERIALS,4111,P115166-SERVICE-drain cock,15/11/2021 00:00:00,255645,1.41,SC0057,SCREWFIX DIRECT LTD,11/01/2021 00:00,28/11/2021 00:00:00,P08-2022
,LEE VALLEY RIDING CENTRE,SUPPLIES AND SERVICES,EQUIPMENT & MATERIALS,4111,P115166-SERVICE-wd40 400ml,15/11/2021 00:00:00,255645,4.98,SC0057,SCREWFIX DIRECT LTD,11/01/2021 00:00,28/11/2021 00:00:00,P08-2022
,LEE VALLEY RIDING CENTRE,SUPPLIES AND SERVICES,EQUIPMENT & MATERIALS,4111,P115166-SERVICE-no parking isgn,15/11/2021 00:00:00,255645,12.65,SC0057,SCREWFIX DIRECT LTD,11/01/2021 00:00,28/11/2021 00:00:00,P08-2022
,LEE VALLEY RIDING CENTRE,SUPPLIES AND SERVICES,EQUIPMENT & MATERIALS,4111,P115166-SERVICE-c5 bulb x 2 16 w,15/11/2021 00:00:00,255689,4.16,SC0057,SCREWFIX DIRECT LTD,11/01/2021 00:00,28/11/2021 00:00:00,P08-2022
,LEE VALLEY RIDING CENTRE,SUPPLIES AND SERVICES,EQUIPMENT & MATERIALS,4111,P115166-SERVICE-c5 bulb x 2 16 w,15/11/2021 00:00:00,255690,-4.16,SC0057,SCREWFIX DIRECT LTD,11/01/2021 00:00,28/11/2021 00:00:00,P08-2022
,LEE VALLEY RIDING CENTRE,SUPPLIES AND SERVICES,EQUIPMENT & MATERIALS,4111,P115257-SERVICE-snaffle bridle black x2,28/11/2021 00:00:00,255961,69,JE0001,B JENKINSON & SONS LTD,11/01/2021 00:00,28/11/2021 00:00:00,P08-2022
,LEE VALLEY RIDING CENTRE,SUPPLIES AND SERVICES,EQUIPMENT & MATERIALS,4111,P115257-SERVICE-elico mane and tail lotion 5 litre,28/11/2021 00:00:00,255961,16,JE0001,B JENKINSON & SONS LTD,11/01/2021 00:00,28/11/2021 00:00:00,P08-2022
,LEE VALLEY RIDING CENTRE,SUPPLIES AND SERVICES,EQUIPMENT & MATERIALS,4111,P115257-SERVICE-elico frog oil x 2,28/11/2021 00:00:00,255961,9.6,JE0001,B JENKINSON & SONS LTD,11/01/2021 00:00,28/11/2021 00:00:00,P08-2022
,LEE VALLEY RIDING CENTRE,SUPPLIES AND SERVICES,EQUIPMENT & MATERIALS,4111,P115257-SERVICE-clipper oil x 3,28/11/2021 00:00:00,255961,9,JE0001,B JENKINSON & SONS LTD,11/01/2021 00:00,28/11/2021 00:00:00,P08-2022
,LEE VALLEY RIDING CENTRE,SUPPLIES AND SERVICES,EQUIPMENT & MATERIALS,4111,P115257-SERVICE-elico bungee training reins,28/11/2021 00:00:00,255961,10.5,JE0001,B JENKINSON & SONS LTD,11/01/2021 00:00,28/11/2021 00:00:00,P08-2022
,LEE VALLEY RIDING CENTRE,SUPPLIES AND SERVICES,EQUIPMENT & MATERIALS,4111,P115257-SERVICE-snaffle bridle pony black,28/11/2021 00:00:00,255961,34.5,JE0001,B JENKINSON & SONS LTD,11/01/2021 00:00,28/11/2021 00:00:00,P08-2022
,LEE VALLEY RIDING CENTRE,SUPPLIES AND SERVICES,EQUIPMENT & MATERIALS,4111,P115257-SERVICE-snaffle bridle full size brown x3,28/11/2021 00:00:00,255961,103.5,JE0001,B JENKINSON & SONS LTD,11/01/2021 00:00,28/11/2021 00:00:00,P08-2022
,LEE VALLEY RIDING CENTRE,SUPPLIES AND SERVICES,EQUIPMENT & MATERIALS,4111,P115257-SERVICE-pig oil 1 litre x 2,28/11/2021 00:00:00,255961,8.9,JE0001,B JENKINSON & SONS LTD,11/01/2021 00:00,28/11/2021 00:00:00,P08-2022
,LEE VALLEY RIDING CENTRE,SUPPLIES AND SERVICES,EQUIPMENT & MATERIALS,4111,P115257-SERVICE-lead ropes x 40,28/11/2021 00:00:00,255961,78,JE0001,B JENKINSON & SONS LTD,11/01/2021 00:00,28/11/2021 00:00:00,P08-2022
,LEE VALLEY RIDING CENTRE,SUPPLIES AND SERVICES,EQUIPMENT & MATERIALS,4111,P115257-SERVICE-bucket covers x 4,28/11/2021 00:00:00,255961,6.8,JE0001,B JENKINSON & SONS LTD,11/01/2021 00:00,28/11/2021 00:00:00,P08-2022
,LEE VALLEY RIDING CENTRE,SUPPLIES AND SERVICES,EQUIPMENT & MATERIALS,4111,P115345-SERVICE-ITEM 5145R,28/11/2021 00:00:00,256240,34.99,SC0057,SCREWFIX DIRECT LTD,11/01/2021 00:00,28/11/2021 00:00:00,P08-2022
,LEE VALLEY RIDING CENTRE,SUPPLIES AND SERVICES,EQUIPMENT & MATERIALS,4111,P115345-SERVICE-ITEM 9484F,28/11/2021 00:00:00,256240,10.83,SC0057,SCREWFIX DIRECT LTD,11/01/2021 00:00,28/11/2021 00:00:00,P08-2022
,LEE VALLEY RIDING CENTRE,SUPPLIES AND SERVICES,EQUIPMENT & MATERIALS,4111,P115345-SERVICE-ITEM 69034,28/11/2021 00:00:00,256240,10.41,SC0057,SCREWFIX DIRECT LTD,11/01/2021 00:00,28/11/2021 00:00:00,P08-2022
,LEE VALLEY RIDING CENTRE,SUPPLIES AND SERVICES,EQUIPMENT & MATERIALS,4111,P115345-SERVICE-ITEM 34576,28/11/2021 00:00:00,256240,19.16,SC0057,SCREWFIX DIRECT LTD,11/01/2021 00:00,28/11/2021 00:00:00,P08-2022
,LEE VALLEY RIDING CENTRE,SUPPLIES AND SERVICES,EQUIPMENT & MATERIALS,4111,P115345-SERVICE-item 1277J,28/11/2021 00:00:00,256240,249.99,SC0057,SCREWFIX DIRECT LTD,11/01/2021 00:00,28/11/2021 00:00:00,P08-2022
,LV LEISURE CENTRE CAMPSITE,SUPPLIES AND SERVICES,EQUIPMENT & MATERIALS,4111,P115037-SERVICE-Maintanance equipment,11/10/2021 00:00,254701,74.19,BQ0164,TRADE UK ACCOUNT,11/01/2021 00:00,28/11/2021 00:00:00,P08-2022
,LV LEISURE CENTRE CAMPSITE,SUPPLIES AND SERVICES,EQUIPMENT & MATERIALS,4111,P115038-SERVICE-Equipment and materials,11/10/2021 00:00,254733,127.65,SC0057,SCREWFIX DIRECT LTD,11/01/2021 00:00,28/11/2021 00:00:00,P08-2022
,LV LEISURE CENTRE CAMPSITE,SUPPLIES AND SERVICES,EQUIPMENT & MATERIALS,4111,P115083-SERVICE-Equpment and materials,16/11/2021 00:00:00,254734,17.82,SC0057,SCREWFIX DIRECT LTD,11/01/2021 00:00,28/11/2021 00:00:00,P08-2022
,LV LEISURE CENTRE CAMPSITE,SUPPLIES AND SERVICES,EQUIPMENT & MATERIALS,4111,P115039-SERVICE-Equipment and materials,11/10/2021 00:00,254737,48.95,BQ0164,TRADE UK ACCOUNT,11/01/2021 00:00,28/11/2021 00:00:00,P08-2022
,LV LEISURE CENTRE CAMPSITE,SUPPLIES AND SERVICES,EQUIPMENT & MATERIALS,4111,P115084-SERVICE-Equipment and materials,16/11/2021 00:00:00,255000,27.97,BQ0164,TRADE UK ACCOUNT,11/01/2021 00:00,28/11/2021 00:00:00,P08-2022
,LV LEISURE CENTRE CAMPSITE,SUPPLIES AND SERVICES,EQUIPMENT & MATERIALS,4111,RIJO 42 INGREDIENTS LIMITED,11/10/2021 00:00,255241,330.42,RI0176,RIJO 42 INGREDIENTS LIMITED,11/01/2021 00:00,28/11/2021 00:00:00,P08-2022
,LV LEISURE CENTRE CAMPSITE,SUPPLIES AND SERVICES,EQUIPMENT & MATERIALS,4111,P115049-SERVICE-Coffee supplies for reception,11/10/2021 00:00,255241,434.22,RI0176,RIJO 42 INGREDIENTS LIMITED,11/01/2021 00:00,28/11/2021 00:00:00,P08-2022
,LV LEISURE CENTRE CAMPSITE,SUPPLIES AND SERVICES,EQUIPMENT & MATERIALS,4111,RIJO 42 INGREDIENTS LIMITED,11/10/2021 00:00,255241,-434.22,RI0176,RIJO 42 INGREDIENTS LIMITED,11/01/2021 00:00,28/11/2021 00:00:00,P08-2022
,LV LEISURE CENTRE CAMPSITE,SUPPLIES AND SERVICES,EQUIPMENT & MATERIALS,4111,RIJO 42 INGREDIENTS LIMITED,11/10/2021 00:00,255241,103.8,RI0176,RIJO 42 INGREDIENTS LIMITED,11/01/2021 00:00,28/11/2021 00:00:00,P08-2022
,LV LEISURE CENTRE CAMPSITE,SUPPLIES AND SERVICES,EQUIPMENT & MATERIALS,4111,P115266-SERVICE-knife and blades,23/11/2021 00:00:00,255646,25.81,SC0057,SCREWFIX DIRECT LTD,11/01/2021 00:00,28/11/2021 00:00:00,P08-2022
,LV LEISURE CENTRE GOLF COURSE,SUPPLIES AND SERVICES,EQUIPMENT & MATERIALS,4111,P113171-SERVICE-Amazon supplies for campsites,11/10/2021 00:00,252486,16.83,AM0406,AMAZON PAYMENTS UK LIMITED,11/01/2021 00:00,28/11/2021 00:00:00,P08-2022
,LV LEISURE CENTRE GOLF COURSE,SUPPLIES AND SERVICES,EQUIPMENT & MATERIALS,4111,P113171-SERVICE-Amazon supplies for campsites,11/10/2021 00:00,252487,74.98,AM0406,AMAZON PAYMENTS UK LIMITED,11/01/2021 00:00,28/11/2021 00:00:00,P08-2022
,LV LEISURE CENTRE GOLF COURSE,SUPPLIES AND SERVICES,EQUIPMENT & MATERIALS,4111,P113171-SERVICE-Amazon supplies for campsites,11/10/2021 00:00,252488,16.6,AM0406,AMAZON PAYMENTS UK LIMITED,11/01/2021 00:00,28/11/2021 00:00:00,P08-2022
,LV LEISURE CENTRE GOLF COURSE,SUPPLIES AND SERVICES,EQUIPMENT & MATERIALS,4111,P114316-SERVICE-x2 motor cutters,18/11/2021 00:00:00,253648,926.96,LE0279,REESINK TURFCARE UK LIMITED,11/01/2021 00:00,28/11/2021 00:00:00,P08-2022
,LV LEISURE CENTRE GOLF COURSE,SUPPLIES AND SERVICES,EQUIPMENT & MATERIALS,4111,P115098-SERVICE-Halogen heater bulbs,18/11/2021 00:00:00,255638,33.32,AM0406,AMAZON PAYMENTS UK LIMITED,11/01/2021 00:00,28/11/2021 00:00:00,P08-2022
,LV LEISURE CENTRE GOLF COURSE,SUPPLIES AND SERVICES,EQUIPMENT & MATERIALS,4111,P115139-SERVICE-golf equipment,18/11/2021 00:00:00,255732,459.81,MA0333,THE MASTERS GOLF COMPANY LTD,11/01/2021 00:00,28/11/2021 00:00:00,P08-2022
,LEE VALLEY ATHLETICS CENTRE,SUPPLIES AND SERVICES,EQUIPMENT & MATERIALS,4111,P114958-SERVICE-LVAC INV 1160 30.9.21 EDM KIT + CLOCK,11/10/2021 00:00,255265,105,PR0299,PRECISION ATHLETICS,11/01/2021 00:00,28/11/2021 00:00:00,P08-2022
,LEE VALLEY ATHLETICS CENTRE,SUPPLIES AND SERVICES,EQUIPMENT & MATERIALS,4111,P115260-SERVICE-CF217A & CF219A ONLINE REF,28/11/2021 00:00:00,256191,107.12,TH0008,JKL SOLUTIONS LTD,11/01/2021 00:00,28/11/2021 00:00:00,P08-2022
,LEE VALLEY WHITE WATER CENTRE,SUPPLIES AND SERVICES,EQUIPMENT & MATERIALS,4111,P114853-SERVICE-AA batteries,11/10/2021 00:00,255068,13.45,AM0406,AMAZON PAYMENTS UK LIMITED,11/01/2021 00:00,28/11/2021 00:00:00,P08-2022
,LEE VALLEY WHITE WATER CENTRE,SUPPLIES AND SERVICES,EQUIPMENT & MATERIALS,4111,P114560-SERVICE-Blanket Order for mats and Equipment,11/10/2021 00:00,255383,20.74,AM0406,AMAZON PAYMENTS UK LIMITED,11/01/2021 00:00,28/11/2021 00:00:00,P08-2022
,LEE VALLEY WHITE WATER CENTRE,SUPPLIES AND SERVICES,EQUIPMENT & MATERIALS,4111,P114560-SERVICE-Blanket Order for mats and Equipment,11/10/2021 00:00,255384,17.81,AM0406,AMAZON PAYMENTS UK LIMITED,11/01/2021 00:00,28/11/2021 00:00:00,P08-2022
,LEE VALLEY WHITE WATER CENTRE,SUPPLIES AND SERVICES,EQUIPMENT & MATERIALS,4111,P114560-SERVICE-Blanket Order for mats and Equipment,11/10/2021 00:00,255385,2.29,AM0406,AMAZON PAYMENTS UK LIMITED,11/01/2021 00:00,28/11/2021 00:00:00,P08-2022
,LEE VALLEY WHITE WATER CENTRE,SUPPLIES AND SERVICES,EQUIPMENT & MATERIALS,4111,P114560-SERVICE-Blanket Order for mats and Equipment,16/11/2021 00:00:00,255506,11.18,AM0406,AMAZON PAYMENTS UK LIMITED,11/01/2021 00:00,28/11/2021 00:00:00,P08-2022
,LEE VALLEY WHITE WATER CENTRE,SUPPLIES AND SERVICES,EQUIPMENT & MATERIALS,4111,P114560-SERVICE-Blanket Order for mats and Equipment,18/11/2021 00:00:00,255722,12.49,AM0406,AMAZON PAYMENTS UK LIMITED,11/01/2021 00:00,28/11/2021 00:00:00,P08-2022
,LEE VALLEY WHITE WATER CENTRE,SUPPLIES AND SERVICES,EQUIPMENT & MATERIALS,4111,P114560-SERVICE-Blanket Order for mats and Equipment,18/11/2021 00:00:00,255723,22.41,AM0406,AMAZON PAYMENTS UK LIMITED,11/01/2021 00:00,28/11/2021 00:00:00,P08-2022
,LEE VALLEY WHITE WATER CENTRE,SUPPLIES AND SERVICES,EQUIPMENT & MATERIALS,4111,P114560-SERVICE-Blanket Order for mats and Equipment,18/11/2021 00:00:00,255724,19.99,AM0406,AMAZON PAYMENTS UK LIMITED,11/01/2021 00:00,28/11/2021 00:00:00,P08-2022
,LEE VALLEY WHITE WATER CENTRE,SUPPLIES AND SERVICES,EQUIPMENT & MATERIALS,4111,P114560-SERVICE-Blanket Order for mats and Equipment,28/11/2021 00:00:00,255948,9.16,AM0406,AMAZON PAYMENTS UK LIMITED,11/01/2021 00:00,28/11/2021 00:00:00,P08-2022
,LEE VALLEY CAMPSITE,SUPPLIES AND SERVICES,EQUIPMENT MAINTENANCE,4112,P115366-SERVICE-repair to washing machine,28/11/2021 00:00:00,256010,259,AL0434,ALLSOP & FRANCIS,11/01/2021 00:00,28/11/2021 00:00:00,P08-2022
,LEE VALLEY CAMPSITE,SUPPLIES AND SERVICES,EQUIPMENT MAINTENANCE,4112,P115367-SERVICE-Repairs to lamp posts,28/11/2021 00:00:00,256143,678,BR0018,BRADSHAW ELECTRICAL LIMITED,11/01/2021 00:00,28/11/2021 00:00:00,P08-2022
,LEE VALLEY CAMPSITE,SUPPLIES AND SERVICES,EQUIPMENT MAINTENANCE,4112,P115365-SERVICE-Repair to Reception door handle,28/11/2021 00:00:00,256206,225.95,BA0005,BARNET LOCK  & SECURITY LTD,11/01/2021 00:00,28/11/2021 00:00:00,P08-2022
,LEE VALLEY CARAVAN PARK,SUPPLIES AND SERVICES,EQUIPMENT MAINTENANCE,4112,P115218-SERVICE-Barrier,17/11/2021 00:00:00,254483,325,AU0245,AUTO-MATE SYSTEMS LIMITED,11/01/2021 00:00,28/11/2021 00:00:00,P08-2022
,LEE VALLEY CARAVAN PARK,SUPPLIES AND SERVICES,EQUIPMENT MAINTENANCE,4112,P115222-SERVICE-Drain Pumps comp ref 254756,17/11/2021 00:00:00,254756,700,CO0550,CONVERT WATER LTD,11/01/2021 00:00,28/11/2021 00:00:00,P08-2022
,LEE VALLEY CARAVAN PARK,SUPPLIES AND SERVICES,EQUIPMENT MAINTENANCE,4112,P115387-SERVICE-Call out for second barrier,28/11/2021 00:00:00,256002,325,AU0245,AUTO-MATE SYSTEMS LIMITED,11/01/2021 00:00,28/11/2021 00:00:00,P08-2022
,LEE VALLEY CARAVAN PARK,SUPPLIES AND SERVICES,EQUIPMENT MAINTENANCE,4112,P115408-SERVICE-Mending lamp posts,28/11/2021 00:00:00,256142,430,BR0018,BRADSHAW ELECTRICAL LIMITED,11/01/2021 00:00,28/11/2021 00:00:00,P08-2022
P&V,MYDDELTON HOUSE GARDENS,SUPPLIES AND SERVICES,EQUIPMENT MAINTENANCE,4112,P114153-SERVICE-Service & Repair BCS 740 -- MCA40 GX 390E,11/08/2021 00:00,254731,526.01,RE0198,REACH IT - MOVE IT- CRUSH IT !,11/01/2021 00:00,28/11/2021 00:00:00,P08-2022
P&V,MYDDELTON HOUSE GARDENS,SUPPLIES AND SERVICES,EQUIPMENT MAINTENANCE,4112,P114170-SERVICE-Avant 420 to include Telescopic Boom,11/08/2021 00:00,254732,688.36,RE0198,REACH IT - MOVE IT- CRUSH IT !,11/01/2021 00:00,28/11/2021 00:00:00,P08-2022
P&V,MYDDELTON HOUSE GARDENS,SUPPLIES AND SERVICES,EQUIPMENT MAINTENANCE,4112,P114442-SERVICE-Fire Extinguisher Service October 2021,15/11/2021 00:00:00,255445,39.67,TJ0009,T.J.FIRE & SECURITY,11/01/2021 00:00,28/11/2021 00:00:00,P08-2022
P&V,MYDDELTON HOUSE GARDENS,SUPPLIES AND SERVICES,EQUIPMENT MAINTENANCE,4112,P115026-SERVICE-Remedial works Fire extinguisher Nov 2021,15/11/2021 00:00:00,255446,77.42,TJ0009,T.J.FIRE & SECURITY,11/01/2021 00:00,28/11/2021 00:00:00,P08-2022
P&V,NORTH AREA RANGERS,SUPPLIES AND SERVICES,EQUIPMENT MAINTENANCE,4112,P114743-SERVICE-Repair BCS - Replace Clutch,11/08/2021 00:00,255328,1305.97,DO0027,ERNEST DOE & SONS LTD,11/01/2021 00:00,28/11/2021 00:00:00,P08-2022
P&V,SOUTH AREA RANGERS,SUPPLIES AND SERVICES,EQUIPMENT MAINTENANCE,4112,P114713-SERVICE-BCS Repairs - A000958218,28/11/2021 00:00:00,255774,589.1,AP0245,APS LIMITED,11/01/2021 00:00,28/11/2021 00:00:00,P08-2022
,LEE VALLEY VELOPARK,SUPPLIES AND SERVICES,EQUIPMENT MAINTENANCE,4112,P114344-SERVICE-Engineer Visit,15/11/2021 00:00:00,255387,310.2,BR0025,BREEZE SOUTHERN LTD,11/01/2021 00:00,28/11/2021 00:00:00,P08-2022
,LEE VALLEY VELOPARK,SUPPLIES AND SERVICES,EQUIPMENT MAINTENANCE,4112,P114216-SERVICE-Disabled Hoist Service & Call Out,22/11/2021 00:00:00,255749,115,CA0589,"CARE SHOP, A DIVISION OF BUNZL HEALTHCARE",11/01/2021 00:00,28/11/2021 00:00:00,P08-2022
,LEE VALLEY VELOPARK,SUPPLIES AND SERVICES,EQUIPMENT MAINTENANCE,4112,P114762-SERVICE-Battery and Tyre Fitting,22/11/2021 00:00:00,255775,1635.84,AP0245,APS LIMITED,11/01/2021 00:00,28/11/2021 00:00:00,P08-2022
,LEE VALLEY VELOPARK CATERING,SUPPLIES AND SERVICES,EQUIPMENT MAINTENANCE,4112,P113414-SERVICE-Catering Equipment Maintenance,15/11/2021 00:00:00,255314,998.97,PO0412,PROTOCOOL LIMITED,11/01/2021 00:00,28/11/2021 00:00:00,P08-2022
,LEE VALLEY VELOPARK CATERING,SUPPLIES AND SERVICES,EQUIPMENT MAINTENANCE,4112,P113414-SERVICE-Catering Equipment Maintenance,22/11/2021 00:00:00,255315,-490,PO0412,PROTOCOOL LIMITED,11/01/2021 00:00,28/11/2021 00:00:00,P08-2022
,LV LEISURE CENTRE GOLF COURSE,SUPPLIES AND SERVICES,EQUIPMENT MAINTENANCE,4112,P114438-SERVICE-Cylinder repair and brake shoe kit,11/09/2021 00:00,255327,536.15,DO0027,ERNEST DOE & SONS LTD,11/01/2021 00:00,28/11/2021 00:00:00,P08-2022
R&B,INFORMATION TECHNOLOGY,SUPPLIES AND SERVICES,IT CORE SYSTEMS,4113,P115154-SERVICE-Managed Fee 14 Jan - 13 Feb 22,16/11/2021 00:00:00,255472,1246.24,CE0021,ADVANCED BUSINESS SOLUTIONS,11/01/2021 00:00,28/11/2021 00:00:00,P08-2022
R&B,INFORMATION TECHNOLOGY,SUPPLIES AND SERVICES,IT CORE SYSTEMS,4113,P115274-SERVICE-Monthly Fees 15 Nov - 14Dec 21,28/11/2021 00:00:00,255753,351,CO0440,VERIFONE SERVICES UK & IRELAND LTD,11/01/2021 00:00,28/11/2021 00:00:00,P08-2022
,LSC INFORMATION TECHNOLOGY,SUPPLIES AND SERVICES,IT CORE SYSTEMS,4113,P113717-SERVICE-Verifone renewal for the ICP services for the,15/11/2021 00:00:00,253141,3561.79,CO0440,VERIFONE SERVICES UK & IRELAND LTD,11/01/2021 00:00,28/11/2021 00:00:00,P08-2022
,LSC INFORMATION TECHNOLOGY,SUPPLIES AND SERVICES,IT CORE SYSTEMS,4113,P113717-SERVICE-Verifone renewal for the ICP services for the,15/11/2021 00:00:00,253194,652.31,CO0440,VERIFONE SERVICES UK & IRELAND LTD,11/01/2021 00:00,28/11/2021 00:00:00,P08-2022
,LSC INFORMATION TECHNOLOGY,SUPPLIES AND SERVICES,IT CORE SYSTEMS,4113,P114445-SERVICE-Acess people (HOS) Read only Licence,15/11/2021 00:00:00,253499,2776.64,SE0251,ACCESS UK LTD (FRMLY SELIMA),11/01/2021 00:00,28/11/2021 00:00:00,P08-2022
,LSC INFORMATION TECHNOLOGY,SUPPLIES AND SERVICES,IT CORE SYSTEMS,4113,P113717-SERVICE-Verifone renewal for the ICP services for the,15/11/2021 00:00:00,254496,652.31,CO0440,VERIFONE SERVICES UK & IRELAND LTD,11/01/2021 00:00,28/11/2021 00:00:00,P08-2022
,LSC INFORMATION TECHNOLOGY,SUPPLIES AND SERVICES,IT CORE SYSTEMS,4113,P113717-SERVICE-Verifone renewal for the ICP services for the,22/11/2021 00:00:00,255751,652.31,CO0440,VERIFONE SERVICES UK & IRELAND LTD,11/01/2021 00:00,28/11/2021 00:00:00,P08-2022
,LSC INFORMATION TECHNOLOGY,SUPPLIES AND SERVICES,IT CORE SYSTEMS,4113,P113699-SERVICE-Page Band7 Payment - 12 Months - PAY-BA7-RET/,22/11/2021 00:00:00,255752,375,CO0440,VERIFONE SERVICES UK & IRELAND LTD,11/01/2021 00:00,28/11/2021 00:00:00,P08-2022
R&B,INFORMATION TECHNOLOGY,SUPPLIES AND SERVICES,IT NETWORK & TELECOMS COSTS,4114,P115057-SERVICE-MPLS for all sites Nov 21,11/09/2021 00:00,255421,11996.86,PP0200,PPSNET LIMITED,11/01/2021 00:00,28/11/2021 00:00:00,P08-2022
P&V,FISHERIES MANAGEMENT,SUPPLIES AND SERVICES,EQUIPMENT HIRE,4115,"P115254-SERVICE-12 weeks hire at Stansted Innings, Marsh Lane",23/11/2021 00:00:00,255717,92,TO0092,TOILETS+ LTD,11/01/2021 00:00,28/11/2021 00:00:00,P08-2022
,LEE VALLEY CARAVAN PARK,SUPPLIES AND SERVICES,EQUIPMENT HIRE,4115,P115017-SERVICE-Excuvator 3 week hire,11/08/2021 00:00,255330,555,ED0011,EDWARDS PLANT & TOOL HIRE LIMITED,11/01/2021 00:00,28/11/2021 00:00:00,P08-2022
,LV LEISURE CENTRE CAMPSITE,SUPPLIES AND SERVICES,EQUIPMENT HIRE,4115,P114972-SERVICE-Quad November,16/11/2021 00:00:00,255447,450,CA0698,CAMBRIDGE GOLF COMPANY,11/01/2021 00:00,28/11/2021 00:00:00,P08-2022
,LEE VALLEY ATHLETICS CENTRE,SUPPLIES AND SERVICES,EQUIPMENT HIRE,4115,P112478-SERVICE-LVA INV 2021-22 HURDLES MEET 31.5.21 PHOTO-FI,11/10/2021 00:00,255392,300,WO0335,WOODFORD GREEN ATHLETICS CLUB WITH ESSEX LADI,11/01/2021 00:00,28/11/2021 00:00:00,P08-2022
,LEE VALLEY ATHLETICS CENTRE,SUPPLIES AND SERVICES,EQUIPMENT HIRE,4115,P112479-SERVICE-LVAC INV 1079 25.4.21 EDM & TIME CLOCK X 2,11/10/2021 00:00,255417,135,PR0299,PRECISION ATHLETICS,11/01/2021 00:00,28/11/2021 00:00:00,P08-2022
,LEE VALLEY ATHLETICS CENTRE,SUPPLIES AND SERVICES,EQUIPMENT HIRE,4115,P112480-SERVICE-LVAC INV 1084 23.5.21 EDM & TIME CLOCK,11/10/2021 00:00,255418,135,PR0299,PRECISION ATHLETICS,11/01/2021 00:00,28/11/2021 00:00:00,P08-2022
P&V,MYDDELTON HOUSE,SUPPLIES AND SERVICES,IT HARDWARE & SOFTWARE COSTS,4116,ZEN INTERNET LTD,15/11/2021 00:00:00,255644,42,ZE0007,ZEN INTERNET LTD,11/01/2021 00:00,28/11/2021 00:00:00,P08-2022
R&B,INFORMATION TECHNOLOGY,SUPPLIES AND SERVICES,IT HARDWARE & SOFTWARE COSTS,4116,P111692-SERVICE-Email filtering & large Files,22/11/2021 00:00:00,255926,738,IQ0022,IQUAL,11/01/2021 00:00,28/11/2021 00:00:00,P08-2022
,LEE VALLEY MARINA SPRINGFIELD,SUPPLIES AND SERVICES,IT HARDWARE & SOFTWARE COSTS,4116,ZEN INTERNET LTD,15/11/2021 00:00:00,255691,38,ZE0007,ZEN INTERNET LTD,11/01/2021 00:00,28/11/2021 00:00:00,P08-2022
,LEE VALLEY MARINA STANSTEAD,SUPPLIES AND SERVICES,IT HARDWARE & SOFTWARE COSTS,4116,ZEN INTERNET LTD,22/11/2021 00:00:00,255747,31.32,ZE0007,ZEN INTERNET LTD,11/01/2021 00:00,28/11/2021 00:00:00,P08-2022
,LEE VALLEY CARAVAN PARK,SUPPLIES AND SERVICES,IT HARDWARE & SOFTWARE COSTS,4116,P115054-SERVICE-Fibre connection Nov 2021,15/11/2021 00:00:00,255420,835,PP0200,PPSNET LIMITED,11/01/2021 00:00,28/11/2021 00:00:00,P08-2022
,LEE VALLEY RIDING CENTRE,SUPPLIES AND SERVICES,IT HARDWARE & SOFTWARE COSTS,4116,ZEN INTERNET LTD,15/11/2021 00:00:00,255394,31.32,ZE0007,ZEN INTERNET LTD,11/01/2021 00:00,28/11/2021 00:00:00,P08-2022
,LEE VALLEY WHITE WATER CENTRE,SUPPLIES AND SERVICES,IT HARDWARE & SOFTWARE COSTS,4116,ZEN INTERNET LTD,28/11/2021 00:00:00,256150,13.49,ZE0007,ZEN INTERNET LTD,11/01/2021 00:00,28/11/2021 00:00:00,P08-2022
,LEE VALLEY WHITE WATER CENTRE,SUPPLIES AND SERVICES,IT HARDWARE & SOFTWARE COSTS,4116,ZEN INTERNET LTD,28/11/2021 00:00:00,256151,17.83,ZE0007,ZEN INTERNET LTD,11/01/2021 00:00,28/11/2021 00:00:00,P08-2022
,LEE VALLEY ATHLETICS CENTRE,SUPPLIES AND SERVICES,VENDING AGREEMENTS,4117,"P114747-SERVICE- 2021/14469, 14735,17983, 20938, 24246, 27498",18/11/2021 00:00:00,254654,10.54,PA0468,PAYTER BV,11/01/2021 00:00,28/11/2021 00:00:00,P08-2022
,LEE VALLEY ATHLETICS CENTRE,SUPPLIES AND SERVICES,VENDING AGREEMENTS,4117,RIJO 42 INGREDIENTS LIMITED,28/11/2021 00:00:00,255052,577.98,RI0176,RIJO 42 INGREDIENTS LIMITED,11/01/2021 00:00,28/11/2021 00:00:00,P08-2022
,LEE VALLEY ATHLETICS CENTRE,SUPPLIES AND SERVICES,VENDING AGREEMENTS,4117,RIJO 42 INGREDIENTS LIMITED,28/11/2021 00:00:00,255052,-890.48,RI0176,RIJO 42 INGREDIENTS LIMITED,11/01/2021 00:00,28/11/2021 00:00:00,P08-2022
,LEE VALLEY ATHLETICS CENTRE,SUPPLIES AND SERVICES,VENDING AGREEMENTS,4117,RIJO 42 INGREDIENTS LIMITED,28/11/2021 00:00:00,255052,312.5,RI0176,RIJO 42 INGREDIENTS LIMITED,11/01/2021 00:00,28/11/2021 00:00:00,P08-2022
,LEE VALLEY ATHLETICS CENTRE,SUPPLIES AND SERVICES,VENDING AGREEMENTS,4117,P115324-SERVICE-RIJO STOCK (RAISED TO CAMPSITE 12830/GOLF BUT,28/11/2021 00:00:00,255052,890.48,RI0176,RIJO 42 INGREDIENTS LIMITED,11/01/2021 00:00,28/11/2021 00:00:00,P08-2022
,LEE VALLEY ATHLETICS CENTRE,SUPPLIES AND SERVICES,VENDING AGREEMENTS,4117,BRAKE BROTHERS LIMITED,11/08/2021 00:00,255061,82.76,BR0019,BRAKE BROTHERS LIMITED,11/01/2021 00:00,28/11/2021 00:00:00,P08-2022
,LEE VALLEY ATHLETICS CENTRE,SUPPLIES AND SERVICES,VENDING AGREEMENTS,4117,P114953-SERVICE-LVAC VENDING STOCK,11/08/2021 00:00,255061,945.27,BR0019,BRAKE BROTHERS LIMITED,11/01/2021 00:00,28/11/2021 00:00:00,P08-2022
,LEE VALLEY ATHLETICS CENTRE,SUPPLIES AND SERVICES,VENDING AGREEMENTS,4117,BRAKE BROTHERS LIMITED,11/08/2021 00:00,255061,-945.27,BR0019,BRAKE BROTHERS LIMITED,11/01/2021 00:00,28/11/2021 00:00:00,P08-2022
,LEE VALLEY ATHLETICS CENTRE,SUPPLIES AND SERVICES,VENDING AGREEMENTS,4117,BRAKE BROTHERS LIMITED,11/08/2021 00:00,255061,862.51,BR0019,BRAKE BROTHERS LIMITED,11/01/2021 00:00,28/11/2021 00:00:00,P08-2022
R&B,INFORMATION TECHNOLOGY,SUPPLIES AND SERVICES,IT MAINTENANCE AGREEMENTS,4119,"P115133-SERVICE-Associate Partner Support renewal, per SZ/AP",22/11/2021 00:00:00,255785,690.3,IQ0022,IQUAL,11/01/2021 00:00,28/11/2021 00:00:00,P08-2022
R&B,INFORMATION TECHNOLOGY,SUPPLIES AND SERVICES,IT MAINTENANCE AGREEMENTS,4119,P115133-SERVICE-Ruckus 1 year renewal,22/11/2021 00:00:00,255785,178.81,IQ0022,IQUAL,11/01/2021 00:00,28/11/2021 00:00:00,P08-2022
,LEE VALLEY MARINA SPRINGFIELD,SUPPLIES AND SERVICES,IT MAINTENANCE AGREEMENTS,4119,P115059-SERVICE-Supply & Data Oct 21,11/09/2021 00:00,255255,75.2,CY0653,CYBERTILL,11/01/2021 00:00,28/11/2021 00:00:00,P08-2022
,LEE VALLEY MARINA SPRINGFIELD,SUPPLIES AND SERVICES,IT MAINTENANCE AGREEMENTS,4119,P115163-SERVICE-Supply & Data July 21,16/11/2021 00:00:00,255656,72.44,CY0653,CYBERTILL,11/01/2021 00:00,28/11/2021 00:00:00,P08-2022
,LEE VALLEY MARINA STANSTEAD,SUPPLIES AND SERVICES,IT MAINTENANCE AGREEMENTS,4119,P115059-SERVICE-Supply & Data Oct21,11/09/2021 00:00,255255,75.19,CY0653,CYBERTILL,11/01/2021 00:00,28/11/2021 00:00:00,P08-2022
,LEE VALLEY MARINA STANSTEAD,SUPPLIES AND SERVICES,IT MAINTENANCE AGREEMENTS,4119,P115163-SERVICE-Supply & Data July,16/11/2021 00:00:00,255656,72.44,CY0653,CYBERTILL,11/01/2021 00:00,28/11/2021 00:00:00,P08-2022
,LEE VALLEY CAMPSITE,SUPPLIES AND SERVICES,IT MAINTENANCE AGREEMENTS,4119,P114755-SERVICE-Monthly Subscription Nov 21 - Apr 22,15/11/2021 00:00:00,254513,145.5,NE0218,NETGUIDES LIMITED,11/01/2021 00:00,28/11/2021 00:00:00,P08-2022
,LEE VALLEY CAMPSITE,SUPPLIES AND SERVICES,IT MAINTENANCE AGREEMENTS,4119,P114755-SERVICE-Monthly Subscription Nov 21 - Apr 22,22/11/2021 00:00:00,255720,145.5,NE0218,NETGUIDES LIMITED,11/01/2021 00:00,28/11/2021 00:00:00,P08-2022
,LEE VALLEY CARAVAN PARK,SUPPLIES AND SERVICES,IT MAINTENANCE AGREEMENTS,4119,P114755-SERVICE-Monthly Subscriptions Nov 21 - April 22 DW,15/11/2021 00:00:00,254513,145.5,NE0218,NETGUIDES LIMITED,11/01/2021 00:00,28/11/2021 00:00:00,P08-2022
,LEE VALLEY CARAVAN PARK,SUPPLIES AND SERVICES,IT MAINTENANCE AGREEMENTS,4119,P114755-SERVICE-Monthly Subscriptions Nov 21 - April 22 DW,22/11/2021 00:00:00,255720,145.5,NE0218,NETGUIDES LIMITED,11/01/2021 00:00,28/11/2021 00:00:00,P08-2022
P&V,ALMOST WILD CAMPSITE,SUPPLIES AND SERVICES,IT MAINTENANCE AGREEMENTS,4119,P114755-SERVICE-Monthly Subscription Nov 21 - April 22 AWC,15/11/2021 00:00:00,254513,145.5,NE0218,NETGUIDES LIMITED,11/01/2021 00:00,28/11/2021 00:00:00,P08-2022
P&V,ALMOST WILD CAMPSITE,SUPPLIES AND SERVICES,IT MAINTENANCE AGREEMENTS,4119,P114755-SERVICE-Monthly Subscription Nov 21 - April 22 AWC,22/11/2021 00:00:00,255720,145.5,NE0218,NETGUIDES LIMITED,11/01/2021 00:00,28/11/2021 00:00:00,P08-2022
,LV LEISURE CENTRE CAMPSITE,SUPPLIES AND SERVICES,IT MAINTENANCE AGREEMENTS,4119,P114755-SERVICE-Monthly Subscription Nov 21 - April 22,15/11/2021 00:00:00,254513,145.5,NE0218,NETGUIDES LIMITED,11/01/2021 00:00,28/11/2021 00:00:00,P08-2022
,LV LEISURE CENTRE CAMPSITE,SUPPLIES AND SERVICES,IT MAINTENANCE AGREEMENTS,4119,P114755-SERVICE-Monthly Subscription Nov 21 - April 22,22/11/2021 00:00:00,255720,145.5,NE0218,NETGUIDES LIMITED,11/01/2021 00:00,28/11/2021 00:00:00,P08-2022
,LV LEISURE CENTRE GOLF COURSE,SUPPLIES AND SERVICES,IT MAINTENANCE AGREEMENTS,4119,P115018-SERVICE-Digitickets Services Oct 2021,11/09/2021 00:00,255347,591.77,DI0304,DIGITAL TICKETING SYSTEMS LTD (DIGITICKETS),11/01/2021 00:00,28/11/2021 00:00:00,P08-2022
,LEE VALLEY CARAVAN PARK,SUPPLIES AND SERVICES,MATERIALS (GROUNDS MAINT),4125,P115050-SERVICE-Weed control,11/09/2021 00:00,255352,245.33,SC0057,SCREWFIX DIRECT LTD,11/01/2021 00:00,28/11/2021 00:00:00,P08-2022
,LEE VALLEY CARAVAN PARK,SUPPLIES AND SERVICES,MATERIALS (GROUNDS MAINT),4125,P115014-SERVICE-replace T bars on height barrier,11/09/2021 00:00,255366,350,LW0268,LWC ENGINEERING LIMITED,11/01/2021 00:00,28/11/2021 00:00:00,P08-2022
,LEE VALLEY CARAVAN PARK,SUPPLIES AND SERVICES,MATERIALS (GROUNDS MAINT),4125,P115291-SERVICE-light bulbs & jump lead,22/11/2021 00:00:00,255746,39.13,SC0057,SCREWFIX DIRECT LTD,11/01/2021 00:00,28/11/2021 00:00:00,P08-2022
,LEE VALLEY CARAVAN PARK,SUPPLIES AND SERVICES,MATERIALS (GROUNDS MAINT),4125,P115294-SERVICE-insulation and cable ties,22/11/2021 00:00:00,255790,25.22,SC0057,SCREWFIX DIRECT LTD,11/01/2021 00:00,28/11/2021 00:00:00,P08-2022
,LEE VALLEY CARAVAN PARK,SUPPLIES AND SERVICES,MATERIALS (GROUNDS MAINT),4125,P115391-SERVICE-Various electrical works,28/11/2021 00:00:00,256139,160,BR0018,BRADSHAW ELECTRICAL LIMITED,11/01/2021 00:00,28/11/2021 00:00:00,P08-2022
,LV LEISURE CENTRE CAMPSITE,SUPPLIES AND SERVICES,MATERIALS (GROUNDS MAINT),4125,P115268-SERVICE-Clips and locks,23/11/2021 00:00:00,255390,25.81,BQ0164,TRADE UK ACCOUNT,11/01/2021 00:00,28/11/2021 00:00:00,P08-2022
,LV LEISURE CENTRE CAMPSITE,SUPPLIES AND SERVICES,MATERIALS (GROUNDS MAINT),4125,P115261-SERVICE-manhole cover and clips,28/11/2021 00:00:00,255745,34.45,BQ0164,TRADE UK ACCOUNT,11/01/2021 00:00,28/11/2021 00:00:00,P08-2022
,LV LEISURE CENTRE CAMPSITE,SUPPLIES AND SERVICES,MATERIALS (GROUNDS MAINT),4125,P115437-SERVICE-lighting bulbs and starters,28/11/2021 00:00:00,256137,205,BR0018,BRADSHAW ELECTRICAL LIMITED,11/01/2021 00:00,28/11/2021 00:00:00,P08-2022
,LV LEISURE CENTRE CAMPSITE,SUPPLIES AND SERVICES,MATERIALS (GROUNDS MAINT),4125,P115436-SERVICE-Elictric field distribution board,28/11/2021 00:00:00,256144,3350,BR0018,BRADSHAW ELECTRICAL LIMITED,11/01/2021 00:00,28/11/2021 00:00:00,P08-2022
,LV LEISURE CENTRE CAMPSITE,SUPPLIES AND SERVICES,MATERIALS (GROUNDS MAINT),4125,P115435-SERVICE-Spade and materials,28/11/2021 00:00:00,256152,52.85,BQ0164,TRADE UK ACCOUNT,11/01/2021 00:00,28/11/2021 00:00:00,P08-2022
,LV LEISURE CENTRE GOLF COURSE,SUPPLIES AND SERVICES,MATERIALS (GROUNDS MAINT),4125,P115078-SERVICE-Materials for golf,11/10/2021 00:00,254945,179.7,LE0279,REESINK TURFCARE UK LIMITED,11/01/2021 00:00,28/11/2021 00:00:00,P08-2022
,LV LEISURE CENTRE GOLF COURSE,SUPPLIES AND SERVICES,MATERIALS (GROUNDS MAINT),4125,P115079-SERVICE-Materials for golf,11/10/2021 00:00,255036,54.96,LE0279,REESINK TURFCARE UK LIMITED,11/01/2021 00:00,28/11/2021 00:00:00,P08-2022
,LEE VALLEY MARINA SPRINGFIELD,SUPPLIES AND SERVICES,MATERIALS (TOOLS & PLANT),4127,P114558-SERVICE-To supply items on quotation No 120598,15/11/2021 00:00:00,255503,479.54,EL0281,ELTHAM WELDING SUPPLIES LIMITED,11/01/2021 00:00,28/11/2021 00:00:00,P08-2022
,LEE VALLEY MARINA SPRINGFIELD,SUPPLIES AND SERVICES,MATERIALS (TOOLS & PLANT),4127,P114258-SERVICE-LEV testing & inspection,22/11/2021 00:00:00,255795,730,CL0435,CLEAR THE AIR,11/01/2021 00:00,28/11/2021 00:00:00,P08-2022
,STANSTEAD RECHARGEABLE WORKS,SUPPLIES AND SERVICES,MATERIALS (TOOLS & PLANT),4127,P115295-SERVICE-Repairs to tractor,23/11/2021 00:00:00,255629,4918.91,RW0257,R. W. CRAWFORD AGRICULTURAL MACHINERY LTD,11/01/2021 00:00,28/11/2021 00:00:00,P08-2022
,LEE VALLEY MARINA SPRINGFIELD,SUPPLIES AND SERVICES,MATERIALS (ENG OTHER),4130,P114285-SERVICE-To supply items as reqeusted,11/08/2021 00:00,254736,95.49,BQ0164,TRADE UK ACCOUNT,11/01/2021 00:00,28/11/2021 00:00:00,P08-2022
,SPRINGFIELD RECHARGEABLE WORKS,SUPPLIES AND SERVICES,MATERIALS (ENG OTHER),4130,P114590-SERVICE-To Hire 80 Ton Crane on Wednesday 20-10-2021,11/08/2021 00:00,254995,800,BA0339,BALDWINS CRANE HIRE LTD,11/01/2021 00:00,28/11/2021 00:00:00,P08-2022
,SPRINGFIELD RECHARGEABLE WORKS,SUPPLIES AND SERVICES,MATERIALS (ENG OTHER),4130,P114590-SERVICE-To Provide Insurance @15%,11/08/2021 00:00,254995,120,BA0339,BALDWINS CRANE HIRE LTD,11/01/2021 00:00,28/11/2021 00:00:00,P08-2022
,LEE VALLEY CARAVAN PARK,SUPPLIES AND SERVICES,MATERIALS (ENG OTHER),4130,P115164-SERVICE-Call out for barrier,15/11/2021 00:00:00,255661,325,AU0245,AUTO-MATE SYSTEMS LIMITED,11/01/2021 00:00,28/11/2021 00:00:00,P08-2022
,LEE VALLEY WHITE WATER CENTRE,SUPPLIES AND SERVICES,MATERIALS (CHEMICALS),4131,P113615-SERVICE-Chemicals,16/11/2021 00:00:00,255639,398.93,AL0074,BRENNTAG UK GROUP LIMITED,11/01/2021 00:00,28/11/2021 00:00:00,P08-2022
,LEE VALLEY WHITE WATER CENTRE,SUPPLIES AND SERVICES,MATERIALS (CHEMICALS),4131,P113615-SERVICE-Chemicals,28/11/2021 00:00:00,256183,353.83,AL0074,BRENNTAG UK GROUP LIMITED,11/01/2021 00:00,28/11/2021 00:00:00,P08-2022
,LEE VALLEY WHITE WATER CENTRE,SUPPLIES AND SERVICES,MATERIALS (CHEMICALS),4131,P113615-SERVICE-Chemicals,28/11/2021 00:00:00,256184,196.2,AL0074,BRENNTAG UK GROUP LIMITED,11/01/2021 00:00,28/11/2021 00:00:00,P08-2022
,LEE VALLEY CAMPSITE,SUPPLIES AND SERVICES,MATERIALS (MEDICAL),4132,P114977-SERVICE-first aid signs,11/09/2021 00:00,255308,8.76,AM0406,AMAZON PAYMENTS UK LIMITED,11/01/2021 00:00,28/11/2021 00:00:00,P08-2022
P&V,LEE VALLEY FARM HOLYFIELDHALL,SUPPLIES AND SERVICES,FEED,4133,P115329-SERVICE-Nutrimol,28/11/2021 00:00:00,255737,2216.72,BO0246,FOR FARMERS UK LTD,11/01/2021 00:00,28/11/2021 00:00:00,P08-2022
,LEE VALLEY RIDING CENTRE,SUPPLIES AND SERVICES,FEED,4133,P113364-SERVICE-feed,15/11/2021 00:00:00,255461,1112.38,DO0029,M C DOWLING & SONS,11/01/2021 00:00,28/11/2021 00:00:00,P08-2022
,LEE VALLEY RIDING CENTRE,SUPPLIES AND SERVICES,FEED,4133,M C DOWLING & SONS,15/11/2021 00:00:00,255461,-1112.38,DO0029,M C DOWLING & SONS,11/01/2021 00:00,28/11/2021 00:00:00,P08-2022
,LEE VALLEY RIDING CENTRE,SUPPLIES AND SERVICES,FEED,4133,M C DOWLING & SONS,15/11/2021 00:00:00,255461,502.4,DO0029,M C DOWLING & SONS,11/01/2021 00:00,28/11/2021 00:00:00,P08-2022
,LEE VALLEY RIDING CENTRE,SUPPLIES AND SERVICES,FEED,4133,M C DOWLING & SONS,15/11/2021 00:00:00,255461,609.98,DO0029,M C DOWLING & SONS,11/01/2021 00:00,28/11/2021 00:00:00,P08-2022
,LEE VALLEY RIDING CENTRE,SUPPLIES AND SERVICES,FEED,4133,P113364-SERVICE-feed,22/11/2021 00:00:00,255716,1143.3,DO0029,M C DOWLING & SONS,11/01/2021 00:00,28/11/2021 00:00:00,P08-2022
,LEE VALLEY RIDING CENTRE,SUPPLIES AND SERVICES,FEED,4133,P113364-SERVICE-feed,28/11/2021 00:00:00,255955,1102.7,DO0029,M C DOWLING & SONS,11/01/2021 00:00,28/11/2021 00:00:00,P08-2022
,LEE VALLEY RIDING CENTRE,SUPPLIES AND SERVICES,FEED,4133,P113364-SERVICE-feed,28/11/2021 00:00:00,255999,1624.3,DO0029,M C DOWLING & SONS,11/01/2021 00:00,28/11/2021 00:00:00,P08-2022
,LEE VALLEY RIDING CENTRE,SUPPLIES AND SERVICES,BEDDING,4134,P113364-SERVICE-bedding,11/09/2021 00:00,255009,1790.15,DO0029,M C DOWLING & SONS,11/01/2021 00:00,28/11/2021 00:00:00,P08-2022
,LEE VALLEY RIDING CENTRE,SUPPLIES AND SERVICES,BEDDING,4134,M C DOWLING & SONS,11/09/2021 00:00,255009,-1790.15,DO0029,M C DOWLING & SONS,11/01/2021 00:00,28/11/2021 00:00:00,P08-2022
,LEE VALLEY RIDING CENTRE,SUPPLIES AND SERVICES,BEDDING,4134,M C DOWLING & SONS,11/09/2021 00:00,255009,501.35,DO0029,M C DOWLING & SONS,11/01/2021 00:00,28/11/2021 00:00:00,P08-2022
,LEE VALLEY RIDING CENTRE,SUPPLIES AND SERVICES,BEDDING,4134,M C DOWLING & SONS,11/09/2021 00:00,255009,1288.8,DO0029,M C DOWLING & SONS,11/01/2021 00:00,28/11/2021 00:00:00,P08-2022
,LEE VALLEY RIDING CENTRE,SUPPLIES AND SERVICES,BEDDING,4134,P113364-SERVICE-bedding,15/11/2021 00:00:00,255461,1358.42,DO0029,M C DOWLING & SONS,11/01/2021 00:00,28/11/2021 00:00:00,P08-2022
,LEE VALLEY RIDING CENTRE,SUPPLIES AND SERVICES,BEDDING,4134,P113364-SERVICE-bedding,28/11/2021 00:00:00,255999,696,DO0029,M C DOWLING & SONS,11/01/2021 00:00,28/11/2021 00:00:00,P08-2022
P&V,LEE VALLEY FARM HOLYFIELDHALL,SUPPLIES AND SERVICES,SPRAYS,4136,P115087-SERVICE-Sprays,22/11/2021 00:00:00,255244,2903,HA0013,HARLOW AGRICULTURAL MERCHANTS,11/01/2021 00:00,28/11/2021 00:00:00,P08-2022
P&V,LEE VALLEY FARM HOLYFIELDHALL,SUPPLIES AND SERVICES,SPRAYS,4136,P115086-SERVICE-Sprays,11/10/2021 00:00,255245,826.1,HA0013,HARLOW AGRICULTURAL MERCHANTS,11/01/2021 00:00,28/11/2021 00:00:00,P08-2022
P&V,LEE VALLEY FARM HOLYFIELDHALL,SUPPLIES AND SERVICES,DAIRY SUNDRIES,4138,P111472-SERVICE-Farm Sundries,11/10/2021 00:00,255359,57.6,FA0099,FARM & COUNTRY SUPPLIES LTD,11/01/2021 00:00,28/11/2021 00:00:00,P08-2022
P&V,LEE VALLEY FARM HOLYFIELDHALL,SUPPLIES AND SERVICES,DAIRY SUNDRIES,4138,P114432-SERVICE-Dairy Sundries,11/10/2021 00:00,255360,48.96,FA0099,FARM & COUNTRY SUPPLIES LTD,11/01/2021 00:00,28/11/2021 00:00:00,P08-2022
P&V,LEE VALLEY FARM HOLYFIELDHALL,SUPPLIES AND SERVICES,DAIRY SUNDRIES,4138,P115072-SERVICE-Radar Float Switch,11/10/2021 00:00,255369,63.25,OC0002,OCMIS IRRIGATION (UK) LTD,11/01/2021 00:00,28/11/2021 00:00:00,P08-2022
P&V,LEE VALLEY FARM HOLYFIELDHALL,SUPPLIES AND SERVICES,DAIRY SUNDRIES,4138,P115092-SERVICE-Dead Animal Removal,11/10/2021 00:00,255414,169,MA0074,W MARTIN & SON LIMITED,11/01/2021 00:00,28/11/2021 00:00:00,P08-2022
P&V,LEE VALLEY FARM HOLYFIELDHALL,SUPPLIES AND SERVICES,DAIRY SUNDRIES,4138,P111464-SERVICE-Dairy Sundries,16/11/2021 00:00:00,255631,33.22,MI0023,MILL DAIRY SERVICES,11/01/2021 00:00,28/11/2021 00:00:00,P08-2022
P&V,LEE VALLEY FARM HOLYFIELDHALL,SUPPLIES AND SERVICES,DAIRY SUNDRIES,4138,P113857-SERVICE-Dead Animal Removal,16/11/2021 00:00:00,255669,58,MA0074,W MARTIN & SON LIMITED,11/01/2021 00:00,28/11/2021 00:00:00,P08-2022
P&V,LEE VALLEY FARM HOLYFIELDHALL,SUPPLIES AND SERVICES,DAIRY SUNDRIES,4138,P112366-SERVICE-Liquid Nitrogen,16/11/2021 00:00:00,255696,55,GE0005,GENUS BREEDING LTD,11/01/2021 00:00,28/11/2021 00:00:00,P08-2022
P&V,LEE VALLEY FARM HOLYFIELDHALL,SUPPLIES AND SERVICES,DAIRY SUNDRIES,4138,P115193-SERVICE-Beeline Material/Labour,22/11/2021 00:00:00,255698,814.48,MI0023,MILL DAIRY SERVICES,11/01/2021 00:00,28/11/2021 00:00:00,P08-2022
P&V,LEE VALLEY FARM HOLYFIELDHALL,SUPPLIES AND SERVICES,DAIRY SUNDRIES,4138,P115092-SERVICE-Dead Animal Removal,17/11/2021 00:00:00,255767,58,MA0074,W MARTIN & SON LIMITED,11/01/2021 00:00,28/11/2021 00:00:00,P08-2022
P&V,LEE VALLEY FARM HOLYFIELDHALL,SUPPLIES AND SERVICES,DAIRY SUNDRIES,4138,P115330-SERVICE-Various,28/11/2021 00:00:00,255780,835.06,MI0023,MILL DAIRY SERVICES,11/01/2021 00:00,28/11/2021 00:00:00,P08-2022
P&V,MYDDLETON HSE HERITAGE CENTRE,SUPPLIES AND SERVICES,FOOD AND DRINK PURCHASES,4140,BIDFOOD,28/11/2021 00:00:00,255007,305.76,360001,BIDFOOD,11/01/2021 00:00,28/11/2021 00:00:00,P08-2022
P&V,MYDDLETON HSE HERITAGE CENTRE,SUPPLIES AND SERVICES,FOOD AND DRINK PURCHASES,4140,BIDFOOD,28/11/2021 00:00:00,255007,106.83,360001,BIDFOOD,11/01/2021 00:00,28/11/2021 00:00:00,P08-2022
P&V,MYDDLETON HSE HERITAGE CENTRE,SUPPLIES AND SERVICES,FOOD AND DRINK PURCHASES,4140,BIDFOOD,28/11/2021 00:00:00,255007,-412.59,360001,BIDFOOD,11/01/2021 00:00,28/11/2021 00:00:00,P08-2022
P&V,MYDDLETON HSE HERITAGE CENTRE,SUPPLIES AND SERVICES,FOOD AND DRINK PURCHASES,4140,P114782-SERVICE-tea rooms food/drink order w.e 31.10.21,28/11/2021 00:00:00,255007,412.59,360001,BIDFOOD,11/01/2021 00:00,28/11/2021 00:00:00,P08-2022
P&V,MYDDLETON HSE HERITAGE CENTRE,SUPPLIES AND SERVICES,FOOD AND DRINK PURCHASES,4140,P114905-SERVICE-food/drink order w.b.1.11.21,28/11/2021 00:00:00,255357,156.28,360001,BIDFOOD,11/01/2021 00:00,28/11/2021 00:00:00,P08-2022
P&V,MYDDLETON HSE HERITAGE CENTRE,SUPPLIES AND SERVICES,FOOD AND DRINK PURCHASES,4140,BIDFOOD,28/11/2021 00:00:00,255357,-156.28,360001,BIDFOOD,11/01/2021 00:00,28/11/2021 00:00:00,P08-2022
P&V,MYDDLETON HSE HERITAGE CENTRE,SUPPLIES AND SERVICES,FOOD AND DRINK PURCHASES,4140,BIDFOOD,28/11/2021 00:00:00,255357,31.07,360001,BIDFOOD,11/01/2021 00:00,28/11/2021 00:00:00,P08-2022
P&V,MYDDLETON HSE HERITAGE CENTRE,SUPPLIES AND SERVICES,FOOD AND DRINK PURCHASES,4140,BIDFOOD,28/11/2021 00:00:00,255357,125.21,360001,BIDFOOD,11/01/2021 00:00,28/11/2021 00:00:00,P08-2022
P&V,MYDDLETON HSE HERITAGE CENTRE,SUPPLIES AND SERVICES,FOOD AND DRINK PURCHASES,4140,BIDFOOD,28/11/2021 00:00:00,255685,50.94,360001,BIDFOOD,11/01/2021 00:00,28/11/2021 00:00:00,P08-2022
P&V,MYDDLETON HSE HERITAGE CENTRE,SUPPLIES AND SERVICES,FOOD AND DRINK PURCHASES,4140,BIDFOOD,28/11/2021 00:00:00,255685,110.11,360001,BIDFOOD,11/01/2021 00:00,28/11/2021 00:00:00,P08-2022
P&V,MYDDLETON HSE HERITAGE CENTRE,SUPPLIES AND SERVICES,FOOD AND DRINK PURCHASES,4140,P115070-SERVICE-food/drink order w.e. 14.11.21,28/11/2021 00:00:00,255685,161.05,360001,BIDFOOD,11/01/2021 00:00,28/11/2021 00:00:00,P08-2022
P&V,MYDDLETON HSE HERITAGE CENTRE,SUPPLIES AND SERVICES,FOOD AND DRINK PURCHASES,4140,BIDFOOD,28/11/2021 00:00:00,255685,-161.05,360001,BIDFOOD,11/01/2021 00:00,28/11/2021 00:00:00,P08-2022
P&V,MYDDLETON HSE HERITAGE CENTRE,SUPPLIES AND SERVICES,FOOD AND DRINK PURCHASES,4140,P115305-SERVICE-food/drink order w/b/ 22.11.21,28/11/2021 00:00:00,256201,400,360001,BIDFOOD,11/01/2021 00:00,28/11/2021 00:00:00,P08-2022
P&V,MYDDLETON HSE HERITAGE CENTRE,SUPPLIES AND SERVICES,FOOD AND DRINK PURCHASES,4140,BIDFOOD,28/11/2021 00:00:00,256201,-400,360001,BIDFOOD,11/01/2021 00:00,28/11/2021 00:00:00,P08-2022
P&V,MYDDLETON HSE HERITAGE CENTRE,SUPPLIES AND SERVICES,FOOD AND DRINK PURCHASES,4140,BIDFOOD,28/11/2021 00:00:00,256201,31.5,360001,BIDFOOD,11/01/2021 00:00,28/11/2021 00:00:00,P08-2022
P&V,MYDDLETON HSE HERITAGE CENTRE,SUPPLIES AND SERVICES,FOOD AND DRINK PURCHASES,4140,BIDFOOD,28/11/2021 00:00:00,256201,368.5,360001,BIDFOOD,11/01/2021 00:00,28/11/2021 00:00:00,P08-2022
P&V,MYDDLETON HSE HERITAGE CENTRE,SUPPLIES AND SERVICES,FOOD AND DRINK PURCHASES,4140,P115305-SERVICE-food/drink order w/b/ 22.11.21,28/11/2021 00:00:00,256243,-32.81,360001,BIDFOOD,11/01/2021 00:00,28/11/2021 00:00:00,P08-2022
,LEE VALLEY VELOPARK CATERING,SUPPLIES AND SERVICES,FOOD AND DRINK PURCHASES,4140,P114752-SERVICE-Food and Drink Order,11/08/2021 00:00,254745,-19.12,360001,BIDFOOD,11/01/2021 00:00,28/11/2021 00:00:00,P08-2022
,LEE VALLEY VELOPARK CATERING,SUPPLIES AND SERVICES,FOOD AND DRINK PURCHASES,4140,P114987-SERVICE-Food and Drinks Order,11/08/2021 00:00,254748,172.48,SI0589,SIMPLY LUNCH LTD,11/01/2021 00:00,28/11/2021 00:00:00,P08-2022
,LEE VALLEY VELOPARK CATERING,SUPPLIES AND SERVICES,FOOD AND DRINK PURCHASES,4140,P114987-SERVICE-Food and Drinks Order,11/08/2021 00:00,254749,-4.3,SI0589,SIMPLY LUNCH LTD,11/01/2021 00:00,28/11/2021 00:00:00,P08-2022
,LEE VALLEY VELOPARK CATERING,SUPPLIES AND SERVICES,FOOD AND DRINK PURCHASES,4140,P114987-SERVICE-Food and Drinks Order,11/08/2021 00:00,254750,-4.3,SI0589,SIMPLY LUNCH LTD,11/01/2021 00:00,28/11/2021 00:00:00,P08-2022
,LEE VALLEY VELOPARK CATERING,SUPPLIES AND SERVICES,FOOD AND DRINK PURCHASES,4140,ROMBOUTS COFFEE GB LIMITED,11/08/2021 00:00,254996,-243.55,RO0216,ROMBOUTS COFFEE GB LIMITED,11/01/2021 00:00,28/11/2021 00:00:00,P08-2022
,LEE VALLEY VELOPARK CATERING,SUPPLIES AND SERVICES,FOOD AND DRINK PURCHASES,4140,ROMBOUTS COFFEE GB LIMITED,11/08/2021 00:00,254996,63.18,RO0216,ROMBOUTS COFFEE GB LIMITED,11/01/2021 00:00,28/11/2021 00:00:00,P08-2022
,LEE VALLEY VELOPARK CATERING,SUPPLIES AND SERVICES,FOOD AND DRINK PURCHASES,4140,ROMBOUTS COFFEE GB LIMITED,11/08/2021 00:00,254996,180.37,RO0216,ROMBOUTS COFFEE GB LIMITED,11/01/2021 00:00,28/11/2021 00:00:00,P08-2022
,LEE VALLEY VELOPARK CATERING,SUPPLIES AND SERVICES,FOOD AND DRINK PURCHASES,4140,P114990-SERVICE-Coffee Products,11/08/2021 00:00,254996,243.55,RO0216,ROMBOUTS COFFEE GB LIMITED,11/01/2021 00:00,28/11/2021 00:00:00,P08-2022
,LEE VALLEY VELOPARK CATERING,SUPPLIES AND SERVICES,FOOD AND DRINK PURCHASES,4140,P113921-SERVICE-Food Products,11/08/2021 00:00,255005,-9,360001,BIDFOOD,11/01/2021 00:00,28/11/2021 00:00:00,P08-2022
,LEE VALLEY VELOPARK CATERING,SUPPLIES AND SERVICES,FOOD AND DRINK PURCHASES,4140,P114992-SERVICE-Food and Drinks Order,11/08/2021 00:00,255006,334.82,360001,BIDFOOD,11/01/2021 00:00,28/11/2021 00:00:00,P08-2022
,LEE VALLEY VELOPARK CATERING,SUPPLIES AND SERVICES,FOOD AND DRINK PURCHASES,4140,BIDFOOD,11/08/2021 00:00,255006,261.93,360001,BIDFOOD,11/01/2021 00:00,28/11/2021 00:00:00,P08-2022
,LEE VALLEY VELOPARK CATERING,SUPPLIES AND SERVICES,FOOD AND DRINK PURCHASES,4140,BIDFOOD,11/08/2021 00:00,255006,72.89,360001,BIDFOOD,11/01/2021 00:00,28/11/2021 00:00:00,P08-2022
,LEE VALLEY VELOPARK CATERING,SUPPLIES AND SERVICES,FOOD AND DRINK PURCHASES,4140,BIDFOOD,11/08/2021 00:00,255006,-334.82,360001,BIDFOOD,11/01/2021 00:00,28/11/2021 00:00:00,P08-2022
,LEE VALLEY VELOPARK CATERING,SUPPLIES AND SERVICES,FOOD AND DRINK PURCHASES,4140,P114993-SERVICE-Food and Drinks Order,11/08/2021 00:00,255023,128.72,SI0589,SIMPLY LUNCH LTD,11/01/2021 00:00,28/11/2021 00:00:00,P08-2022
,LEE VALLEY VELOPARK CATERING,SUPPLIES AND SERVICES,FOOD AND DRINK PURCHASES,4140,P114994-SERVICE-Food and Drinks Order,11/08/2021 00:00,255033,249.88,360001,BIDFOOD,11/01/2021 00:00,28/11/2021 00:00:00,P08-2022
,LEE VALLEY VELOPARK CATERING,SUPPLIES AND SERVICES,FOOD AND DRINK PURCHASES,4140,BIDFOOD,11/08/2021 00:00,255033,-249.88,360001,BIDFOOD,11/01/2021 00:00,28/11/2021 00:00:00,P08-2022
,LEE VALLEY VELOPARK CATERING,SUPPLIES AND SERVICES,FOOD AND DRINK PURCHASES,4140,BIDFOOD,11/08/2021 00:00,255033,199.03,360001,BIDFOOD,11/01/2021 00:00,28/11/2021 00:00:00,P08-2022
,LEE VALLEY VELOPARK CATERING,SUPPLIES AND SERVICES,FOOD AND DRINK PURCHASES,4140,BIDFOOD,11/08/2021 00:00,255033,50.85,360001,BIDFOOD,11/01/2021 00:00,28/11/2021 00:00:00,P08-2022
,LEE VALLEY VELOPARK CATERING,SUPPLIES AND SERVICES,FOOD AND DRINK PURCHASES,4140,P115006-SERVICE-Stocktaking,11/08/2021 00:00,255054,266,VE0038,VENNERS LTD,11/01/2021 00:00,28/11/2021 00:00:00,P08-2022
,LEE VALLEY VELOPARK CATERING,SUPPLIES AND SERVICES,FOOD AND DRINK PURCHASES,4140,BIDFOOD,15/11/2021 00:00:00,255311,303.1,360001,BIDFOOD,11/01/2021 00:00,28/11/2021 00:00:00,P08-2022
,LEE VALLEY VELOPARK CATERING,SUPPLIES AND SERVICES,FOOD AND DRINK PURCHASES,4140,P115149-SERVICE-Food and Drinks Order,15/11/2021 00:00:00,255311,578.8,360001,BIDFOOD,11/01/2021 00:00,28/11/2021 00:00:00,P08-2022
,LEE VALLEY VELOPARK CATERING,SUPPLIES AND SERVICES,FOOD AND DRINK PURCHASES,4140,BIDFOOD,15/11/2021 00:00:00,255311,275.7,360001,BIDFOOD,11/01/2021 00:00,28/11/2021 00:00:00,P08-2022
,LEE VALLEY VELOPARK CATERING,SUPPLIES AND SERVICES,FOOD AND DRINK PURCHASES,4140,BIDFOOD,15/11/2021 00:00:00,255311,-578.8,360001,BIDFOOD,11/01/2021 00:00,28/11/2021 00:00:00,P08-2022
,LEE VALLEY VELOPARK CATERING,SUPPLIES AND SERVICES,FOOD AND DRINK PURCHASES,4140,P115152-SERVICE-Food and Drinks Order,15/11/2021 00:00:00,255377,227.25,SI0589,SIMPLY LUNCH LTD,11/01/2021 00:00,28/11/2021 00:00:00,P08-2022
,LEE VALLEY VELOPARK CATERING,SUPPLIES AND SERVICES,FOOD AND DRINK PURCHASES,4140,BIDFOOD,15/11/2021 00:00:00,255453,545.28,360001,BIDFOOD,11/01/2021 00:00,28/11/2021 00:00:00,P08-2022
,LEE VALLEY VELOPARK CATERING,SUPPLIES AND SERVICES,FOOD AND DRINK PURCHASES,4140,BIDFOOD,15/11/2021 00:00:00,255453,-708.52,360001,BIDFOOD,11/01/2021 00:00,28/11/2021 00:00:00,P08-2022
,LEE VALLEY VELOPARK CATERING,SUPPLIES AND SERVICES,FOOD AND DRINK PURCHASES,4140,BIDFOOD,15/11/2021 00:00:00,255453,163.24,360001,BIDFOOD,11/01/2021 00:00,28/11/2021 00:00:00,P08-2022
,LEE VALLEY VELOPARK CATERING,SUPPLIES AND SERVICES,FOOD AND DRINK PURCHASES,4140,P115159-SERVICE-Food and Drinks Order,15/11/2021 00:00:00,255453,708.52,360001,BIDFOOD,11/01/2021 00:00,28/11/2021 00:00:00,P08-2022
,LEE VALLEY VELOPARK CATERING,SUPPLIES AND SERVICES,FOOD AND DRINK PURCHASES,4140,ROMBOUTS COFFEE GB LIMITED,15/11/2021 00:00:00,255466,291.76,RO0216,ROMBOUTS COFFEE GB LIMITED,11/01/2021 00:00,28/11/2021 00:00:00,P08-2022
,LEE VALLEY VELOPARK CATERING,SUPPLIES AND SERVICES,FOOD AND DRINK PURCHASES,4140,P115160-SERVICE-Coffee Products,15/11/2021 00:00:00,255466,418.12,RO0216,ROMBOUTS COFFEE GB LIMITED,11/01/2021 00:00,28/11/2021 00:00:00,P08-2022
,LEE VALLEY VELOPARK CATERING,SUPPLIES AND SERVICES,FOOD AND DRINK PURCHASES,4140,ROMBOUTS COFFEE GB LIMITED,15/11/2021 00:00:00,255466,-418.12,RO0216,ROMBOUTS COFFEE GB LIMITED,11/01/2021 00:00,28/11/2021 00:00:00,P08-2022
,LEE VALLEY VELOPARK CATERING,SUPPLIES AND SERVICES,FOOD AND DRINK PURCHASES,4140,ROMBOUTS COFFEE GB LIMITED,15/11/2021 00:00:00,255466,126.36,RO0216,ROMBOUTS COFFEE GB LIMITED,11/01/2021 00:00,28/11/2021 00:00:00,P08-2022
,LEE VALLEY VELOPARK CATERING,SUPPLIES AND SERVICES,FOOD AND DRINK PURCHASES,4140,P115158-SERVICE-Coffee Vending,15/11/2021 00:00:00,255624,294.12,TA0272,TASTEBUDS VENDING LI MITED,11/01/2021 00:00,28/11/2021 00:00:00,P08-2022
,LEE VALLEY VELOPARK CATERING,SUPPLIES AND SERVICES,FOOD AND DRINK PURCHASES,4140,P115159-SERVICE-Food and Drinks Order,15/11/2021 00:00:00,255647,-48.46,360001,BIDFOOD,11/01/2021 00:00,28/11/2021 00:00:00,P08-2022
,LEE VALLEY VELOPARK CATERING,SUPPLIES AND SERVICES,FOOD AND DRINK PURCHASES,4140,BIDFOOD,15/11/2021 00:00:00,255649,-413.9,360001,BIDFOOD,11/01/2021 00:00,28/11/2021 00:00:00,P08-2022
,LEE VALLEY VELOPARK CATERING,SUPPLIES AND SERVICES,FOOD AND DRINK PURCHASES,4140,P115162-SERVICE-Food and Drinks Order,15/11/2021 00:00:00,255649,413.9,360001,BIDFOOD,11/01/2021 00:00,28/11/2021 00:00:00,P08-2022
,LEE VALLEY VELOPARK CATERING,SUPPLIES AND SERVICES,FOOD AND DRINK PURCHASES,4140,BIDFOOD,15/11/2021 00:00:00,255649,253.92,360001,BIDFOOD,11/01/2021 00:00,28/11/2021 00:00:00,P08-2022
,LEE VALLEY VELOPARK CATERING,SUPPLIES AND SERVICES,FOOD AND DRINK PURCHASES,4140,BIDFOOD,15/11/2021 00:00:00,255649,159.98,360001,BIDFOOD,11/01/2021 00:00,28/11/2021 00:00:00,P08-2022
,LEE VALLEY VELOPARK CATERING,SUPPLIES AND SERVICES,FOOD AND DRINK PURCHASES,4140,BIDFOOD,22/11/2021 00:00:00,255686,-1041,360001,BIDFOOD,11/01/2021 00:00,28/11/2021 00:00:00,P08-2022
,LEE VALLEY VELOPARK CATERING,SUPPLIES AND SERVICES,FOOD AND DRINK PURCHASES,4140,BIDFOOD,22/11/2021 00:00:00,255686,643.2,360001,BIDFOOD,11/01/2021 00:00,28/11/2021 00:00:00,P08-2022
,LEE VALLEY VELOPARK CATERING,SUPPLIES AND SERVICES,FOOD AND DRINK PURCHASES,4140,BIDFOOD,22/11/2021 00:00:00,255686,397.8,360001,BIDFOOD,11/01/2021 00:00,28/11/2021 00:00:00,P08-2022
,LEE VALLEY VELOPARK CATERING,SUPPLIES AND SERVICES,FOOD AND DRINK PURCHASES,4140,P115171-SERVICE-Food and Drinks Order,22/11/2021 00:00:00,255686,1041,360001,BIDFOOD,11/01/2021 00:00,28/11/2021 00:00:00,P08-2022
,LEE VALLEY VELOPARK CATERING,SUPPLIES AND SERVICES,FOOD AND DRINK PURCHASES,4140,P115278-SERVICE-Food and Drinks Order,28/11/2021 00:00:00,255741,329.83,SI0589,SIMPLY LUNCH LTD,11/01/2021 00:00,28/11/2021 00:00:00,P08-2022
,LEE VALLEY VELOPARK CATERING,SUPPLIES AND SERVICES,FOOD AND DRINK PURCHASES,4140,BIDFOOD,28/11/2021 00:00:00,255772,173.55,360001,BIDFOOD,11/01/2021 00:00,28/11/2021 00:00:00,P08-2022
,LEE VALLEY VELOPARK CATERING,SUPPLIES AND SERVICES,FOOD AND DRINK PURCHASES,4140,BIDFOOD,28/11/2021 00:00:00,255772,-226.3,360001,BIDFOOD,11/01/2021 00:00,28/11/2021 00:00:00,P08-2022
,LEE VALLEY VELOPARK CATERING,SUPPLIES AND SERVICES,FOOD AND DRINK PURCHASES,4140,BIDFOOD,28/11/2021 00:00:00,255772,52.75,360001,BIDFOOD,11/01/2021 00:00,28/11/2021 00:00:00,P08-2022
,LEE VALLEY VELOPARK CATERING,SUPPLIES AND SERVICES,FOOD AND DRINK PURCHASES,4140,P115280-SERVICE-Food and Drinks Order,28/11/2021 00:00:00,255772,226.3,360001,BIDFOOD,11/01/2021 00:00,28/11/2021 00:00:00,P08-2022
,LEE VALLEY VELOPARK CATERING,SUPPLIES AND SERVICES,FOOD AND DRINK PURCHASES,4140,P115281-SERVICE-Food and Drinks Order,28/11/2021 00:00:00,255921,281.42,360001,BIDFOOD,11/01/2021 00:00,28/11/2021 00:00:00,P08-2022
,LEE VALLEY VELOPARK CATERING,SUPPLIES AND SERVICES,FOOD AND DRINK PURCHASES,4140,BIDFOOD,28/11/2021 00:00:00,255921,101.5,360001,BIDFOOD,11/01/2021 00:00,28/11/2021 00:00:00,P08-2022
,LEE VALLEY VELOPARK CATERING,SUPPLIES AND SERVICES,FOOD AND DRINK PURCHASES,4140,BIDFOOD,28/11/2021 00:00:00,255921,179.92,360001,BIDFOOD,11/01/2021 00:00,28/11/2021 00:00:00,P08-2022
,LEE VALLEY VELOPARK CATERING,SUPPLIES AND SERVICES,FOOD AND DRINK PURCHASES,4140,BIDFOOD,28/11/2021 00:00:00,255921,-281.42,360001,BIDFOOD,11/01/2021 00:00,28/11/2021 00:00:00,P08-2022
,LV HOCKEY AND TENNIS CATERING,SUPPLIES AND SERVICES,FOOD AND DRINK PURCHASES,4140,P114249-SERVICE-food and drink orders,15/11/2021 00:00:00,254747,345.79,360001,BIDFOOD,11/01/2021 00:00,28/11/2021 00:00:00,P08-2022
,LV HOCKEY AND TENNIS CATERING,SUPPLIES AND SERVICES,FOOD AND DRINK PURCHASES,4140,P114249-SERVICE-food and drink orders,15/11/2021 00:00:00,254747,88.43,360001,BIDFOOD,11/01/2021 00:00,28/11/2021 00:00:00,P08-2022
,LV HOCKEY AND TENNIS CATERING,SUPPLIES AND SERVICES,FOOD AND DRINK PURCHASES,4140,BIDFOOD,15/11/2021 00:00:00,255264,546.71,360001,BIDFOOD,11/01/2021 00:00,28/11/2021 00:00:00,P08-2022
,LV HOCKEY AND TENNIS CATERING,SUPPLIES AND SERVICES,FOOD AND DRINK PURCHASES,4140,P114249-SERVICE-food and drink orders,15/11/2021 00:00:00,255264,1082.42,360001,BIDFOOD,11/01/2021 00:00,28/11/2021 00:00:00,P08-2022
,LV HOCKEY AND TENNIS CATERING,SUPPLIES AND SERVICES,FOOD AND DRINK PURCHASES,4140,BIDFOOD,15/11/2021 00:00:00,255264,535.71,360001,BIDFOOD,11/01/2021 00:00,28/11/2021 00:00:00,P08-2022
,LV HOCKEY AND TENNIS CATERING,SUPPLIES AND SERVICES,FOOD AND DRINK PURCHASES,4140,BIDFOOD,15/11/2021 00:00:00,255264,-1082.42,360001,BIDFOOD,11/01/2021 00:00,28/11/2021 00:00:00,P08-2022
,LV WHITE WATER CATERING,SUPPLIES AND SERVICES,FOOD AND DRINK PURCHASES,4140,P114855-SERVICE-stocktake,11/08/2021 00:00,254457,532,VE0038,VENNERS LTD,11/01/2021 00:00,28/11/2021 00:00:00,P08-2022
,LV WHITE WATER CATERING,SUPPLIES AND SERVICES,FOOD AND DRINK PURCHASES,4140,BIDFOOD,11/08/2021 00:00,254746,-411.62,360001,BIDFOOD,11/01/2021 00:00,28/11/2021 00:00:00,P08-2022
,LV WHITE WATER CATERING,SUPPLIES AND SERVICES,FOOD AND DRINK PURCHASES,4140,BIDFOOD,11/08/2021 00:00,254746,384.37,360001,BIDFOOD,11/01/2021 00:00,28/11/2021 00:00:00,P08-2022
,LV WHITE WATER CATERING,SUPPLIES AND SERVICES,FOOD AND DRINK PURCHASES,4140,BIDFOOD,11/08/2021 00:00,254746,27.25,360001,BIDFOOD,11/01/2021 00:00,28/11/2021 00:00:00,P08-2022
,LV WHITE WATER CATERING,SUPPLIES AND SERVICES,FOOD AND DRINK PURCHASES,4140,P114726-SERVICE-kitchen food,11/08/2021 00:00,254746,411.62,360001,BIDFOOD,11/01/2021 00:00,28/11/2021 00:00:00,P08-2022
,LV WHITE WATER CATERING,SUPPLIES AND SERVICES,FOOD AND DRINK PURCHASES,4140,P114819-SERVICE-sandwiches,11/08/2021 00:00,254757,506.12,AN0324,ANCHOR CATERING,11/01/2021 00:00,28/11/2021 00:00:00,P08-2022
,LV WHITE WATER CATERING,SUPPLIES AND SERVICES,FOOD AND DRINK PURCHASES,4140,ROMBOUTS COFFEE GB LIMITED,11/08/2021 00:00,254997,291.39,RO0216,ROMBOUTS COFFEE GB LIMITED,11/01/2021 00:00,28/11/2021 00:00:00,P08-2022
,LV WHITE WATER CATERING,SUPPLIES AND SERVICES,FOOD AND DRINK PURCHASES,4140,ROMBOUTS COFFEE GB LIMITED,11/08/2021 00:00,254997,11,RO0216,ROMBOUTS COFFEE GB LIMITED,11/01/2021 00:00,28/11/2021 00:00:00,P08-2022
,LV WHITE WATER CATERING,SUPPLIES AND SERVICES,FOOD AND DRINK PURCHASES,4140,ROMBOUTS COFFEE GB LIMITED,11/08/2021 00:00,254997,-302.89,RO0216,ROMBOUTS COFFEE GB LIMITED,11/01/2021 00:00,28/11/2021 00:00:00,P08-2022
,LV WHITE WATER CATERING,SUPPLIES AND SERVICES,FOOD AND DRINK PURCHASES,4140,P114850-SERVICE-coffee hot chocolate,11/08/2021 00:00,254997,302.89,RO0216,ROMBOUTS COFFEE GB LIMITED,11/01/2021 00:00,28/11/2021 00:00:00,P08-2022
,LV WHITE WATER CATERING,SUPPLIES AND SERVICES,FOOD AND DRINK PURCHASES,4140,P114849-SERVICE-cups,11/08/2021 00:00,254998,260.89,CA0585,CAFE CONNECTIONS,11/01/2021 00:00,28/11/2021 00:00:00,P08-2022
,LV WHITE WATER CATERING,SUPPLIES AND SERVICES,FOOD AND DRINK PURCHASES,4140,P114833-SERVICE-Ad hoc order for milk,11/08/2021 00:00,255008,100,360001,BIDFOOD,11/01/2021 00:00,28/11/2021 00:00:00,P08-2022
,LV WHITE WATER CATERING,SUPPLIES AND SERVICES,FOOD AND DRINK PURCHASES,4140,BIDFOOD,11/08/2021 00:00,255008,41.96,360001,BIDFOOD,11/01/2021 00:00,28/11/2021 00:00:00,P08-2022
,LV WHITE WATER CATERING,SUPPLIES AND SERVICES,FOOD AND DRINK PURCHASES,4140,BIDFOOD,11/08/2021 00:00,255008,11.49,360001,BIDFOOD,11/01/2021 00:00,28/11/2021 00:00:00,P08-2022
,LV WHITE WATER CATERING,SUPPLIES AND SERVICES,FOOD AND DRINK PURCHASES,4140,BIDFOOD,11/08/2021 00:00,255008,-53.45,360001,BIDFOOD,11/01/2021 00:00,28/11/2021 00:00:00,P08-2022
,LV WHITE WATER CATERING,SUPPLIES AND SERVICES,FOOD AND DRINK PURCHASES,4140,P114726-SERVICE-kitchen food,11/08/2021 00:00,255008,53.45,360001,BIDFOOD,11/01/2021 00:00,28/11/2021 00:00:00,P08-2022
,LV WHITE WATER CATERING,SUPPLIES AND SERVICES,FOOD AND DRINK PURCHASES,4140,P114722-SERVICE-fronbt of housed food,11/08/2021 00:00,255029,-19.58,360001,BIDFOOD,11/01/2021 00:00,28/11/2021 00:00:00,P08-2022
,LV WHITE WATER CATERING,SUPPLIES AND SERVICES,FOOD AND DRINK PURCHASES,4140,BIDFOOD,11/08/2021 00:00,255030,187.81,360001,BIDFOOD,11/01/2021 00:00,28/11/2021 00:00:00,P08-2022
,LV WHITE WATER CATERING,SUPPLIES AND SERVICES,FOOD AND DRINK PURCHASES,4140,P114848-SERVICE-front of house,11/08/2021 00:00,255030,500,360001,BIDFOOD,11/01/2021 00:00,28/11/2021 00:00:00,P08-2022
,LV WHITE WATER CATERING,SUPPLIES AND SERVICES,FOOD AND DRINK PURCHASES,4140,BIDFOOD,11/08/2021 00:00,255030,312.19,360001,BIDFOOD,11/01/2021 00:00,28/11/2021 00:00:00,P08-2022
,LV WHITE WATER CATERING,SUPPLIES AND SERVICES,FOOD AND DRINK PURCHASES,4140,P114856-SERVICE-kitchen food,11/08/2021 00:00,255030,134.29,360001,BIDFOOD,11/01/2021 00:00,28/11/2021 00:00:00,P08-2022
,LV WHITE WATER CATERING,SUPPLIES AND SERVICES,FOOD AND DRINK PURCHASES,4140,BIDFOOD,11/08/2021 00:00,255030,-500,360001,BIDFOOD,11/01/2021 00:00,28/11/2021 00:00:00,P08-2022
,LV WHITE WATER CATERING,SUPPLIES AND SERVICES,FOOD AND DRINK PURCHASES,4140,P114856-SERVICE-kitchen food,11/08/2021 00:00,255032,308.83,360001,BIDFOOD,11/01/2021 00:00,28/11/2021 00:00:00,P08-2022
,LV WHITE WATER CATERING,SUPPLIES AND SERVICES,FOOD AND DRINK PURCHASES,4140,P114861-SERVICE-fruit & veg,11/08/2021 00:00,255037,78.94,PA0362,P A SPARKS & SONS LTD,11/01/2021 00:00,28/11/2021 00:00:00,P08-2022
,LV WHITE WATER CATERING,SUPPLIES AND SERVICES,FOOD AND DRINK PURCHASES,4140,P114861-SERVICE-fruit & veg,11/08/2021 00:00,255038,64.62,PA0362,P A SPARKS & SONS LTD,11/01/2021 00:00,28/11/2021 00:00:00,P08-2022
,LV WHITE WATER CATERING,SUPPLIES AND SERVICES,FOOD AND DRINK PURCHASES,4140,P114861-SERVICE-fruit & veg,11/08/2021 00:00,255039,18.05,PA0362,P A SPARKS & SONS LTD,11/01/2021 00:00,28/11/2021 00:00:00,P08-2022
,LV WHITE WATER CATERING,SUPPLIES AND SERVICES,FOOD AND DRINK PURCHASES,4140,P113989-SERVICE-Ad hoc Dayla order 7.9.21,11/08/2021 00:00,255040,143.29,DA0268,DAYLA DRINKS,11/01/2021 00:00,28/11/2021 00:00:00,P08-2022
,LV WHITE WATER CATERING,SUPPLIES AND SERVICES,FOOD AND DRINK PURCHASES,4140,P114425-SERVICE-sandwiches wc 041021,11/08/2021 00:00,255073,101.37,AN0324,ANCHOR CATERING,11/01/2021 00:00,28/11/2021 00:00:00,P08-2022
,LV WHITE WATER CATERING,SUPPLIES AND SERVICES,FOOD AND DRINK PURCHASES,4140,P114819-SERVICE-sandwiches,11/08/2021 00:00,255073,293.88,AN0324,ANCHOR CATERING,11/01/2021 00:00,28/11/2021 00:00:00,P08-2022
,LV WHITE WATER CATERING,SUPPLIES AND SERVICES,FOOD AND DRINK PURCHASES,4140,P114861-SERVICE-fruit & veg,11/10/2021 00:00,255086,97.35,PA0362,P A SPARKS & SONS LTD,11/01/2021 00:00,28/11/2021 00:00:00,P08-2022
,LV WHITE WATER CATERING,SUPPLIES AND SERVICES,FOOD AND DRINK PURCHASES,4140,BIDFOOD,11/09/2021 00:00,255261,58.67,360001,BIDFOOD,11/01/2021 00:00,28/11/2021 00:00:00,P08-2022
,LV WHITE WATER CATERING,SUPPLIES AND SERVICES,FOOD AND DRINK PURCHASES,4140,BIDFOOD,11/09/2021 00:00,255261,142.72,360001,BIDFOOD,11/01/2021 00:00,28/11/2021 00:00:00,P08-2022
,LV WHITE WATER CATERING,SUPPLIES AND SERVICES,FOOD AND DRINK PURCHASES,4140,BIDFOOD,11/09/2021 00:00,255261,-201.39,360001,BIDFOOD,11/01/2021 00:00,28/11/2021 00:00:00,P08-2022
,LV WHITE WATER CATERING,SUPPLIES AND SERVICES,FOOD AND DRINK PURCHASES,4140,P114858-SERVICE-kitchen food 011121,11/09/2021 00:00,255261,201.39,360001,BIDFOOD,11/01/2021 00:00,28/11/2021 00:00:00,P08-2022
,LV WHITE WATER CATERING,SUPPLIES AND SERVICES,FOOD AND DRINK PURCHASES,4140,P114920-SERVICE-milk,11/09/2021 00:00,255263,181.12,360001,BIDFOOD,11/01/2021 00:00,28/11/2021 00:00:00,P08-2022
,LV WHITE WATER CATERING,SUPPLIES AND SERVICES,FOOD AND DRINK PURCHASES,4140,P114983-SERVICE-coffee,11/09/2021 00:00,255354,303.29,RO0216,ROMBOUTS COFFEE GB LIMITED,11/01/2021 00:00,28/11/2021 00:00:00,P08-2022
,LV WHITE WATER CATERING,SUPPLIES AND SERVICES,FOOD AND DRINK PURCHASES,4140,BIDFOOD,11/09/2021 00:00,255358,293.39,360001,BIDFOOD,11/01/2021 00:00,28/11/2021 00:00:00,P08-2022
,LV WHITE WATER CATERING,SUPPLIES AND SERVICES,FOOD AND DRINK PURCHASES,4140,BIDFOOD,11/09/2021 00:00,255358,-412.46,360001,BIDFOOD,11/01/2021 00:00,28/11/2021 00:00:00,P08-2022
,LV WHITE WATER CATERING,SUPPLIES AND SERVICES,FOOD AND DRINK PURCHASES,4140,BIDFOOD,11/09/2021 00:00,255358,119.07,360001,BIDFOOD,11/01/2021 00:00,28/11/2021 00:00:00,P08-2022
,LV WHITE WATER CATERING,SUPPLIES AND SERVICES,FOOD AND DRINK PURCHASES,4140,P114984-SERVICE-froont of house food,11/09/2021 00:00,255358,412.46,360001,BIDFOOD,11/01/2021 00:00,28/11/2021 00:00:00,P08-2022
,LV WHITE WATER CATERING,SUPPLIES AND SERVICES,FOOD AND DRINK PURCHASES,4140,P115020-SERVICE-fruit & veg,11/09/2021 00:00,255367,85.05,PA0362,P A SPARKS & SONS LTD,11/01/2021 00:00,28/11/2021 00:00:00,P08-2022
,LV WHITE WATER CATERING,SUPPLIES AND SERVICES,FOOD AND DRINK PURCHASES,4140,P114984-SERVICE-froont of house food,15/11/2021 00:00:00,255454,-2.7,360001,BIDFOOD,11/01/2021 00:00,28/11/2021 00:00:00,P08-2022
,LV WHITE WATER CATERING,SUPPLIES AND SERVICES,FOOD AND DRINK PURCHASES,4140,P114857-SERVICE-sandwiches wc 011121,15/11/2021 00:00:00,255623,305.82,AN0324,ANCHOR CATERING,11/01/2021 00:00,28/11/2021 00:00:00,P08-2022
,LV WHITE WATER CATERING,SUPPLIES AND SERVICES,FOOD AND DRINK PURCHASES,4140,P115097-SERVICE-cups and lids,15/11/2021 00:00:00,255628,193.34,CA0585,CAFE CONNECTIONS,11/01/2021 00:00,28/11/2021 00:00:00,P08-2022
,LV WHITE WATER CATERING,SUPPLIES AND SERVICES,FOOD AND DRINK PURCHASES,4140,P115096-SERVICE-kitchen food,15/11/2021 00:00:00,255648,382.23,360001,BIDFOOD,11/01/2021 00:00,28/11/2021 00:00:00,P08-2022
,LV WHITE WATER CATERING,SUPPLIES AND SERVICES,FOOD AND DRINK PURCHASES,4140,BIDFOOD,16/11/2021 00:00:00,255684,153.04,360001,BIDFOOD,11/01/2021 00:00,28/11/2021 00:00:00,P08-2022
,LV WHITE WATER CATERING,SUPPLIES AND SERVICES,FOOD AND DRINK PURCHASES,4140,BIDFOOD,16/11/2021 00:00:00,255684,545,360001,BIDFOOD,11/01/2021 00:00,28/11/2021 00:00:00,P08-2022
,LV WHITE WATER CATERING,SUPPLIES AND SERVICES,FOOD AND DRINK PURCHASES,4140,P115137-SERVICE-front of house,16/11/2021 00:00:00,255684,698.04,360001,BIDFOOD,11/01/2021 00:00,28/11/2021 00:00:00,P08-2022
,LV WHITE WATER CATERING,SUPPLIES AND SERVICES,FOOD AND DRINK PURCHASES,4140,BIDFOOD,16/11/2021 00:00:00,255684,-698.04,360001,BIDFOOD,11/01/2021 00:00,28/11/2021 00:00:00,P08-2022
,LV WHITE WATER CATERING,SUPPLIES AND SERVICES,FOOD AND DRINK PURCHASES,4140,P114425-SERVICE-sandwiches wc 041021,16/11/2021 00:00:00,255701,24.9,AN0324,ANCHOR CATERING,11/01/2021 00:00,28/11/2021 00:00:00,P08-2022
,LV WHITE WATER CATERING,SUPPLIES AND SERVICES,FOOD AND DRINK PURCHASES,4140,P114857-SERVICE-sandwiches wc 011121,16/11/2021 00:00:00,255701,394.18,AN0324,ANCHOR CATERING,11/01/2021 00:00,28/11/2021 00:00:00,P08-2022
,LV WHITE WATER CATERING,SUPPLIES AND SERVICES,FOOD AND DRINK PURCHASES,4140,P115301-SERVICE-november stocktake,23/11/2021 00:00:00,255728,532,VE0038,VENNERS LTD,11/01/2021 00:00,28/11/2021 00:00:00,P08-2022
,LV WHITE WATER CATERING,SUPPLIES AND SERVICES,FOOD AND DRINK PURCHASES,4140,P115137-SERVICE-front of house,28/11/2021 00:00:00,255763,-17.79,360001,BIDFOOD,11/01/2021 00:00,28/11/2021 00:00:00,P08-2022
,LV WHITE WATER CATERING,SUPPLIES AND SERVICES,FOOD AND DRINK PURCHASES,4140,P115096-SERVICE-kitchen food,22/11/2021 00:00:00,255764,-31.58,360001,BIDFOOD,11/01/2021 00:00,28/11/2021 00:00:00,P08-2022
,LV WHITE WATER CATERING,SUPPLIES AND SERVICES,FOOD AND DRINK PURCHASES,4140,P115231-SERVICE-cups,28/11/2021 00:00:00,255915,352.8,CA0585,CAFE CONNECTIONS,11/01/2021 00:00,28/11/2021 00:00:00,P08-2022
,LV WHITE WATER CATERING,SUPPLIES AND SERVICES,FOOD AND DRINK PURCHASES,4140,P115247-SERVICE-front of house,22/11/2021 00:00:00,255920,923.92,360001,BIDFOOD,11/01/2021 00:00,28/11/2021 00:00:00,P08-2022
,LV WHITE WATER CATERING,SUPPLIES AND SERVICES,FOOD AND DRINK PURCHASES,4140,BIDFOOD,22/11/2021 00:00:00,255920,52.61,360001,BIDFOOD,11/01/2021 00:00,28/11/2021 00:00:00,P08-2022
,LV WHITE WATER CATERING,SUPPLIES AND SERVICES,FOOD AND DRINK PURCHASES,4140,BIDFOOD,22/11/2021 00:00:00,255920,-923.92,360001,BIDFOOD,11/01/2021 00:00,28/11/2021 00:00:00,P08-2022
,LV WHITE WATER CATERING,SUPPLIES AND SERVICES,FOOD AND DRINK PURCHASES,4140,BIDFOOD,22/11/2021 00:00:00,255920,871.31,360001,BIDFOOD,11/01/2021 00:00,28/11/2021 00:00:00,P08-2022
,LV WHITE WATER CATERING,SUPPLIES AND SERVICES,FOOD AND DRINK PURCHASES,4140,P115232-SERVICE-extra ordered before increase price end nov,22/11/2021 00:00:00,255925,569.44,RO0216,ROMBOUTS COFFEE GB LIMITED,11/01/2021 00:00,28/11/2021 00:00:00,P08-2022
,LV WHITE WATER CATERING,SUPPLIES AND SERVICES,FOOD AND DRINK PURCHASES,4140,P115179-SERVICE-sandwiches,23/11/2021 00:00:00,255981,255.17,AN0324,ANCHOR CATERING,11/01/2021 00:00,28/11/2021 00:00:00,P08-2022
,LV CAMPSITE CARAVAN SALES,SUPPLIES AND SERVICES,CARAVAN PURCHASES,4171,P114669-SERVICE-Atlas Debonairfor Dobbs,11/09/2021 00:00,255133,49995,LO0459,LONDON LODGES UK,11/01/2021 00:00,28/11/2021 00:00:00,P08-2022
,LV CAMPSITE CARAVAN SALES,SUPPLIES AND SERVICES,CARAVAN PURCHASES,4171,P114769-SERVICE-Riverside lodge,11/09/2021 00:00,255134,67750,LO0459,LONDON LODGES UK,11/01/2021 00:00,28/11/2021 00:00:00,P08-2022
,LV CAMPSITE CARAVAN SALES,SUPPLIES AND SERVICES,DECKING PURCHASES,4173,P114670-SERVICE-Decking plot 45,11/09/2021 00:00,255129,9600,LO0459,LONDON LODGES UK,11/01/2021 00:00,28/11/2021 00:00:00,P08-2022
,LV CAMPSITE CARAVAN SALES,SUPPLIES AND SERVICES,DECKING PURCHASES,4173,P114671-SERVICE-Decking for plot 3 sewardstone,11/09/2021 00:00,255130,9300,LO0459,LONDON LODGES UK,11/01/2021 00:00,28/11/2021 00:00:00,P08-2022
,LV CAMPSITE CARAVAN SALES,SUPPLIES AND SERVICES,DECKING PURCHASES,4173,P114673-SERVICE-skirting for plot 6 sewardstone,11/09/2021 00:00,255131,2070,LO0459,LONDON LODGES UK,11/01/2021 00:00,28/11/2021 00:00:00,P08-2022
,LV CAMPSITE CARAVAN SALES,SUPPLIES AND SERVICES,DECKING PURCHASES,4173,P115042-SERVICE-Decking,18/11/2021 00:00:00,255450,8350.4,LO0459,LONDON LODGES UK,11/01/2021 00:00,28/11/2021 00:00:00,P08-2022
,LV CAMPSITE CARAVAN SALES,SUPPLIES AND SERVICES,MISCELLANEOUS CARAVAN COSTS,4174,P114629-SERVICE-pitch 3 induction,15/11/2021 00:00:00,255128,2500,LO0459,LONDON LODGES UK,11/01/2021 00:00,28/11/2021 00:00:00,P08-2022
,LV CAMPSITE CARAVAN SALES,SUPPLIES AND SERVICES,MISCELLANEOUS CARAVAN COSTS,4174,P114674-SERVICE-REFIT FOR STAFF STATIC,11/09/2021 00:00,255132,2375,LO0459,LONDON LODGES UK,11/01/2021 00:00,28/11/2021 00:00:00,P08-2022
,LV CAMPSITE CARAVAN SALES,SUPPLIES AND SERVICES,MISCELLANEOUS CARAVAN COSTS,4174,P114838-SERVICE-Transportation,18/11/2021 00:00:00,255448,4600,LO0459,LONDON LODGES UK,11/01/2021 00:00,28/11/2021 00:00:00,P08-2022
,LV CAMPSITE CARAVAN SALES,SUPPLIES AND SERVICES,MISCELLANEOUS CARAVAN COSTS,4174,P114976-SERVICE-Induction of debonair,18/11/2021 00:00:00,255449,2500,LO0459,LONDON LODGES UK,11/01/2021 00:00,28/11/2021 00:00:00,P08-2022
,LEE VALLEY CARAVAN PARK,SUPPLIES AND SERVICES,CONSUMABLES - LODGES,4181,P114483-SERVICE-Country - Replacements Washing & Coffee Machi,11/10/2021 00:00,255504,279.2,PC0336,PC WORLD BUSINESS,11/01/2021 00:00,28/11/2021 00:00:00,P08-2022
,LEE VALLEY MARINA SPRINGFIELD,SUPPLIES AND SERVICES,CLOTHING & UNIFORMS,4225,P115101-SERVICE-To supply the following items,28/11/2021 00:00:00,255627,97.95,DI0017,DIRECT BOOT & SHOE SUPPLIES,11/01/2021 00:00,28/11/2021 00:00:00,P08-2022
,LEE VALLEY MARINA STANSTEAD,SUPPLIES AND SERVICES,CLOTHING & UNIFORMS,4225,P114738-SERVICE-direct boot - SA Marina Uniform order,24/11/2021 00:00:00,255018,45,DI0017,DIRECT BOOT & SHOE SUPPLIES,11/01/2021 00:00,28/11/2021 00:00:00,P08-2022
,LEE VALLEY MARINA STANSTEAD,SUPPLIES AND SERVICES,CLOTHING & UNIFORMS,4225,P114846-SERVICE-Toms fire overalls and chandlery,11/08/2021 00:00,255042,80.6,SC0057,SCREWFIX DIRECT LTD,11/01/2021 00:00,28/11/2021 00:00:00,P08-2022
,LEE VALLEY MARINA STANSTEAD,SUPPLIES AND SERVICES,CLOTHING & UNIFORMS,4225,P114738-SERVICE-direct boot - SA Marina Uniform order,23/11/2021 00:00:00,255744,-72.83,DI0017,DIRECT BOOT & SHOE SUPPLIES,11/01/2021 00:00,28/11/2021 00:00:00,P08-2022
,LEE VALLEY CARAVAN PARK,SUPPLIES AND SERVICES,CLOTHING & UNIFORMS,4225,P114922-SERVICE-Hi viz,15/11/2021 00:00:00,255305,8.7,AM0406,AMAZON PAYMENTS UK LIMITED,11/01/2021 00:00,28/11/2021 00:00:00,P08-2022
,LEE VALLEY CARAVAN PARK,SUPPLIES AND SERVICES,CLOTHING & UNIFORMS,4225,P114922-SERVICE-Hi viz,15/11/2021 00:00:00,255306,21.24,AM0406,AMAZON PAYMENTS UK LIMITED,11/01/2021 00:00,28/11/2021 00:00:00,P08-2022
P&V,NORTH AREA RANGERS,SUPPLIES AND SERVICES,CLOTHING & UNIFORMS,4225,P115129-SERVICE-2x Grisport Safety Boots,28/11/2021 00:00:00,256185,62.41,OU0086,THE OUTDOORS COMPANY,11/01/2021 00:00,28/11/2021 00:00:00,P08-2022
P&V,NORTH AREA RANGERS,SUPPLIES AND SERVICES,CLOTHING & UNIFORMS,4225,P115129-SERVICE-2x Grisport Safety Boots,28/11/2021 00:00:00,256186,53.42,OU0086,THE OUTDOORS COMPANY,11/01/2021 00:00,28/11/2021 00:00:00,P08-2022
P&V,RIVER LEE COUNTRY PARK,SUPPLIES AND SERVICES,CLOTHING & UNIFORMS,4225,P113758-SERVICE-2x 3-in-1 Functional Rain Jacket Black - 7772,11/09/2021 00:00,255331,322.71,EN0283,ENGELBERT STRAUSS LIMITED,11/01/2021 00:00,28/11/2021 00:00:00,P08-2022
,LV HOCKEY AND TENNIS CENTRE,SUPPLIES AND SERVICES,CLOTHING & UNIFORMS,4225,P115076-SERVICE-t shirt printing,15/11/2021 00:00:00,255496,260,AV0481,AVALEY,11/01/2021 00:00,28/11/2021 00:00:00,P08-2022
,LV LEISURE CENTRE GOLF COURSE,SUPPLIES AND SERVICES,CLOTHING & UNIFORMS,4225,P114928-SERVICE-Uniform,11/09/2021 00:00,255243,282.3,DI0017,DIRECT BOOT & SHOE SUPPLIES,11/01/2021 00:00,28/11/2021 00:00:00,P08-2022
R&B,DEMOCRATIC REPRESENTATION & MA,SUPPLIES AND SERVICES,OFFICE EXPENSES,4311,P115108-SERVICE-C5 Envelopes (L26039),28/11/2021 00:00:00,256193,27.52,TH0008,JKL SOLUTIONS LTD,11/01/2021 00:00,28/11/2021 00:00:00,P08-2022
,LEE VALLEY MARINA STANSTEAD,SUPPLIES AND SERVICES,OFFICE EXPENSES,4311,P114974-SERVICE-JKL stationery replacing first aid box items,23/11/2021 00:00:00,255316,26.89,TH0008,JKL SOLUTIONS LTD,11/01/2021 00:00,28/11/2021 00:00:00,P08-2022
,LEE VALLEY MARINA STANSTEAD,SUPPLIES AND SERVICES,OFFICE EXPENSES,4311,P114650-SERVICE-STANSTEAD MARINA STATIONERY 151021,28/11/2021 00:00:00,256188,169.79,TH0008,JKL SOLUTIONS LTD,11/01/2021 00:00,28/11/2021 00:00:00,P08-2022
,LEE VALLEY MARINA STANSTEAD,SUPPLIES AND SERVICES,OFFICE EXPENSES,4311,P114650-SERVICE-STANSTEAD MARINA STATIONERY 151021,28/11/2021 00:00:00,256189,12.92,TH0008,JKL SOLUTIONS LTD,11/01/2021 00:00,28/11/2021 00:00:00,P08-2022
,LEE VALLEY MARINA STANSTEAD,SUPPLIES AND SERVICES,OFFICE EXPENSES,4311,P115350-SERVICE-JK stationery  tapes and glue,28/11/2021 00:00:00,256229,23.53,TH0008,JKL SOLUTIONS LTD,11/01/2021 00:00,28/11/2021 00:00:00,P08-2022
,LEE VALLEY CAMPSITE,SUPPLIES AND SERVICES,OFFICE EXPENSES,4311,P115364-SERVICE-Stationery,28/11/2021 00:00:00,256196,88.34,TH0008,JKL SOLUTIONS LTD,11/01/2021 00:00,28/11/2021 00:00:00,P08-2022
,LEE VALLEY CARAVAN PARK,SUPPLIES AND SERVICES,OFFICE EXPENSES,4311,P115044-SERVICE-Stationery,28/11/2021 00:00:00,256187,61.76,TH0008,JKL SOLUTIONS LTD,11/01/2021 00:00,28/11/2021 00:00:00,P08-2022
P&V,YOUTH AND SCHOOLS,SUPPLIES AND SERVICES,OFFICE EXPENSES,4311,BIGDUG LTD,11/03/2021 00:00,255140,0,BI0638,BIGDUG LTD,11/01/2021 00:00,28/11/2021 00:00:00,P08-2022
P&V,YOUTH AND SCHOOLS,SUPPLIES AND SERVICES,OFFICE EXPENSES,4311,P114913-SERVICE-KFA41BK22 A$ page a day diary- qty- 1,11/09/2021 00:00,255280,3.66,TH0008,JKL SOLUTIONS LTD,11/01/2021 00:00,28/11/2021 00:00:00,P08-2022
P&V,RIVER LEE COUNTRY PARK,SUPPLIES AND SERVICES,OFFICE EXPENSES,4311,P115000-SERVICE-1x Gel Mouse Mat - AC62384,28/11/2021 00:00:00,256194,11.3,TH0008,JKL SOLUTIONS LTD,11/01/2021 00:00,28/11/2021 00:00:00,P08-2022
P&V,RIVER LEE COUNTRY PARK,SUPPLIES AND SERVICES,OFFICE EXPENSES,4311,P115000-SERVICE-1x Rocking Footrest Black - CE77687,28/11/2021 00:00:00,256194,34.1,TH0008,JKL SOLUTIONS LTD,11/01/2021 00:00,28/11/2021 00:00:00,P08-2022
,LV HOCKEY AND TENNIS CENTRE,SUPPLIES AND SERVICES,OFFICE EXPENSES,4311,P115080-SERVICE-stock take 22/10 HTC,15/11/2021 00:00:00,255056,133,VE0038,VENNERS LTD,11/01/2021 00:00,28/11/2021 00:00:00,P08-2022
,LEE VALLEY RIDING CENTRE,SUPPLIES AND SERVICES,OFFICE EXPENSES,4311,P115190-SERVICE-valueX diary A5 blue day per pagex7,28/11/2021 00:00:00,256195,19.85,TH0008,JKL SOLUTIONS LTD,11/01/2021 00:00,28/11/2021 00:00:00,P08-2022
,LEE VALLEY ATHLETICS CENTRE,SUPPLIES AND SERVICES,OFFICE EXPENSES,4311,P115075-SERVICE-LVAC INV 60058 100 X CARDS,11/10/2021 00:00,255332,152.99,ST0184,STACY & SON,11/01/2021 00:00,28/11/2021 00:00:00,P08-2022
,LEE VALLEY ATHLETICS CENTRE,SUPPLIES AND SERVICES,OFFICE EXPENSES,4311,P114929-SERVICE-STATIONERY- ONLINE REF:O-10002681806,28/11/2021 00:00:00,256197,197.17,TH0008,JKL SOLUTIONS LTD,11/01/2021 00:00,28/11/2021 00:00:00,P08-2022
,LEE VALLEY ATHLETICS CENTRE,SUPPLIES AND SERVICES,OFFICE EXPENSES,4311,P114929-SERVICE-STATIONERY- ONLINE REF:O-10002681806,28/11/2021 00:00:00,256228,3.47,TH0008,JKL SOLUTIONS LTD,11/01/2021 00:00,28/11/2021 00:00:00,P08-2022
,LEE VALLEY WHITE WATER CENTRE,SUPPLIES AND SERVICES,OFFICE EXPENSES,4311,P114950-SERVICE-Pens and staples,11/10/2021 00:00,255317,16.1,TH0008,JKL SOLUTIONS LTD,11/01/2021 00:00,28/11/2021 00:00:00,P08-2022
,LEE VALLEY WHITE WATER CENTRE,SUPPLIES AND SERVICES,OFFICE EXPENSES,4311,P114996-SERVICE-Tape dispenser,11/10/2021 00:00,255353,5.62,AM0406,AMAZON PAYMENTS UK LIMITED,11/01/2021 00:00,28/11/2021 00:00:00,P08-2022
,LV WHITE WATER CATERING,SUPPLIES AND SERVICES,OFFICE EXPENSES,4311,P114851-SERVICE-stationary,11/08/2021 00:00,255022,73,TH0008,JKL SOLUTIONS LTD,11/01/2021 00:00,28/11/2021 00:00:00,P08-2022
,LEE VALLEY VELOPARK,SUPPLIES AND SERVICES,PHOTOCOPYING,4314,KONICA MINOLTA BUSINESS SOLUTI,28/11/2021 00:00:00,256134,21.87,KO0071,KONICA MINOLTA BUSINESS SOLUTIONS ( UK) LTD,11/01/2021 00:00,28/11/2021 00:00:00,P08-2022
,LEE VALLEY VELOPARK,SUPPLIES AND SERVICES,PHOTOCOPYING,4314,KONICA MINOLTA BUSINESS SOLUTI,28/11/2021 00:00:00,256135,101.07,KO0071,KONICA MINOLTA BUSINESS SOLUTIONS ( UK) LTD,11/01/2021 00:00,28/11/2021 00:00:00,P08-2022
P&V,BIODIVERSITY ACTION PLAN,SUPPLIES AND SERVICES,PERIODICALS & REFERENCE BOOKS,4332,P111782-SERVICE-Annual Corporate Membership,28/11/2021 00:00:00,256013,18,HE0160,HERTFORDSHIRE NATURAL HISTORY SOCIETY,11/01/2021 00:00,28/11/2021 00:00:00,P08-2022
P&V,BIODIVERSITY ACTION PLAN,SUPPLIES AND SERVICES,PERIODICALS & REFERENCE BOOKS,4332,P115373-SERVICE-Annual Subscription to British Wildlife,28/11/2021 00:00:00,256301,65,NH0175,NHBS,11/01/2021 00:00,28/11/2021 00:00:00,P08-2022
P&V,BIODIVERSITY ACTION PLAN,SUPPLIES AND SERVICES,PERIODICALS & REFERENCE BOOKS,4332,P115372-SERVICE-Annual Subscription to Land Conservation Mana,28/11/2021 00:00:00,256302,25,NH0175,NHBS,11/01/2021 00:00,28/11/2021 00:00:00,P08-2022
P&V,LEE VALLEY FARM HOLYFIELDHALL,SUPPLIES AND SERVICES,SUBSCRIPTIONS,4334,P115091-SERVICE-Subs,11/10/2021 00:00,255415,353.06,NA0005,NATIONAL MILK RECORDS PLC,11/01/2021 00:00,28/11/2021 00:00:00,P08-2022
P&V,MYDDELTON HOUSE GARDENS,SUPPLIES AND SERVICES,SUBSCRIPTIONS,4334,P114741-SERVICE-plant heritage sub renewal 21/22,11/08/2021 00:00,254708,90,NA0067,PLANT HERITAGE,11/01/2021 00:00,28/11/2021 00:00:00,P08-2022
R&B,REVENUE SUSPENSE (AUTHORITY),SUPPLIES AND SERVICES,TELEPHONES (MOBILE),4484,GAMMA TELECOM LTD,15/11/2021 00:00:00,255626,695.9,GA0432,GAMMA TELECOM LTD,11/01/2021 00:00,28/11/2021 00:00:00,P08-2022
R&B,REVENUE SUSPENSE (AUTHORITY),SUPPLIES AND SERVICES,TELEPHONES (MOBILE),4484,VODAFONE  LIMITED (CORPORATE),28/11/2021 00:00:00,256130,599.88,VO0010,VODAFONE  LIMITED (CORPORATE),11/01/2021 00:00,28/11/2021 00:00:00,P08-2022
,LEE VALLEY CAMPSITE,SUPPLIES AND SERVICES,MARKETING,4603,P114639-SERVICE-Nedcamp Annual Subscript oct21 -oct 22,11/08/2021 00:00,255274,109.23,NE0195,NEDCAMP,11/01/2021 00:00,28/11/2021 00:00:00,P08-2022
,LEE VALLEY CARAVAN PARK,SUPPLIES AND SERVICES,MARKETING,4603,P115021-SERVICE-2 new signs,22/11/2021 00:00:00,255739,394,SL0528,SLAM SIGNS LTD,11/01/2021 00:00,28/11/2021 00:00:00,P08-2022
,LEE VALLEY VELOPARK,SUPPLIES AND SERVICES,MARKETING,4603,P113385-SERVICE-Gangway and Wheelchair floor prints,15/11/2021 00:00:00,255281,993,LT0386,LTD LTD,11/01/2021 00:00,28/11/2021 00:00:00,P08-2022
,LEE VALLEY VELOPARK,SUPPLIES AND SERVICES,MARKETING,4603,"P113187-SERVICE-Banners, Installations and Wall Art",15/11/2021 00:00:00,255282,3794,LT0386,LTD LTD,11/01/2021 00:00,28/11/2021 00:00:00,P08-2022
,LEE VALLEY VELOPARK,SUPPLIES AND SERVICES,MARKETING,4603,P113384-SERVICE-Gangway Number and Wheelchair Number signage,15/11/2021 00:00:00,255282,960,LT0386,LTD LTD,11/01/2021 00:00,28/11/2021 00:00:00,P08-2022
,LEE VALLEY VELOPARK,SUPPLIES AND SERVICES,MARKETING,4603,P114875-SERVICE-Experience Certificates x 7000 copies,22/11/2021 00:00:00,255938,928,PR0293,ELLE MEDIA GROUP,11/01/2021 00:00,28/11/2021 00:00:00,P08-2022
,LV LEISURE CENTRE CAMPSITE,SUPPLIES AND SERVICES,MARKETING,4603,P114971-SERVICE-Nedcamp subscription,11/10/2021 00:00,255273,109.23,NE0195,NEDCAMP,11/01/2021 00:00,28/11/2021 00:00:00,P08-2022
,LEE VALLEY WATERWORKS CENTRE,SUPPLIES AND SERVICES,PEST CONTROL,4625,P115348-SERVICE-Pest Control - WaterWorks,28/11/2021 00:00:00,255484,165,VE0006,VERMINATE CITY & RURAL PEST CONTROL LTD,11/01/2021 00:00,28/11/2021 00:00:00,P08-2022
P&V,NORTH AREA RANGERS,SUPPLIES AND SERVICES,PEST CONTROL,4625,P111749-SERVICE-Pest Control - Ware Town Centre,15/11/2021 00:00:00,255487,53.34,VE0006,VERMINATE CITY & RURAL PEST CONTROL LTD,11/01/2021 00:00,28/11/2021 00:00:00,P08-2022
P&V,SOUTH AREA RANGERS,SUPPLIES AND SERVICES,PEST CONTROL,4625,P111747-SERVICE-Pest Control - Tottenham Marshes,16/11/2021 00:00:00,255485,46.67,VE0006,VERMINATE CITY & RURAL PEST CONTROL LTD,11/01/2021 00:00,28/11/2021 00:00:00,P08-2022
P&V,SOUTH AREA RANGERS,SUPPLIES AND SERVICES,PEST CONTROL,4625,P111747-SERVICE-Pest Control - Tottenham Marshes,16/11/2021 00:00:00,255486,46.67,VE0006,VERMINATE CITY & RURAL PEST CONTROL LTD,11/01/2021 00:00,28/11/2021 00:00:00,P08-2022
P&V,RIVER LEE COUNTRY PARK,SUPPLIES AND SERVICES,PEST CONTROL,4625,P111748-SERVICE-Pest Control - North Sites,15/11/2021 00:00:00,255489,200,VE0006,VERMINATE CITY & RURAL PEST CONTROL LTD,11/01/2021 00:00,28/11/2021 00:00:00,P08-2022
,LEE VALLEY WHITE WATER CENTRE,SUPPLIES AND SERVICES,PEST CONTROL,4625,P114061-SERVICE-Pidgeon control,11/10/2021 00:00,255318,295,JP0171,JPS GROUP SERVICES LTD,11/01/2021 00:00,28/11/2021 00:00:00,P08-2022
,LEE VALLEY MARINA STANSTEAD,SUPPLIES AND SERVICES,SECURITY,4650,P115174-SERVICE-Call out for gates fault + looked at cctv,23/11/2021 00:00:00,254947,192.5,AI0262,AIS ( ADVANCED INTEGRATED SECURITY),11/01/2021 00:00,28/11/2021 00:00:00,P08-2022
P&V,EAST INDIA DOCK AND BOW CREEK,SUPPLIES AND SERVICES,SECURITY,4650,P112728-SERVICE-Security - South of the Park,11/09/2021 00:00,255271,4251.52,PA0059,PARKGUARD LTD,11/01/2021 00:00,28/11/2021 00:00:00,P08-2022
P&V,SOUTH AREA RANGERS,SUPPLIES AND SERVICES,SECURITY,4650,P112286-SERVICE-Security - South of the Park,11/09/2021 00:00,255271,4076.82,PA0059,PARKGUARD LTD,11/01/2021 00:00,28/11/2021 00:00:00,P08-2022
P&V,ABBEY GARDENS,SUPPLIES AND SERVICES,SECURITY,4650,P112727-SERVICE-Security - North of the Park,11/09/2021 00:00,255270,705.27,PA0059,PARKGUARD LTD,11/01/2021 00:00,28/11/2021 00:00:00,P08-2022
P&V,RIVER LEE COUNTRY PARK,SUPPLIES AND SERVICES,SECURITY,4650,P112285-SERVICE-Security - North of the Park,11/09/2021 00:00,255270,5040.56,PA0059,PARKGUARD LTD,11/01/2021 00:00,28/11/2021 00:00:00,P08-2022
,LV LEISURE CENTRE CAMPSITE,SUPPLIES AND SERVICES,SECURITY,4650,P114864-SERVICE-Fire alarm repair,11/10/2021 00:00,255362,115,RV0035,RVTV SECURITY GROUP LTD,11/01/2021 00:00,28/11/2021 00:00:00,P08-2022
,LV LEISURE CENTRE CAMPSITE,SUPPLIES AND SERVICES,SECURITY,4650,P115434-SERVICE-Intruder& hold up alarm contract,28/11/2021 00:00:00,255946,480,RV0035,RVTV SECURITY GROUP LTD,11/01/2021 00:00,28/11/2021 00:00:00,P08-2022
,LEE VALLEY ATHLETICS CENTRE,SUPPLIES AND SERVICES,SECURITY,4650,P114601-SERVICE-SECURITY FOR SELWG 17.10.21,11/10/2021 00:00,254726,466.26,WI0227,WISE SECURITY SERVICES,11/01/2021 00:00,28/11/2021 00:00:00,P08-2022
CEO,LVLC SERVICE CHARGE,SUPPLIES AND SERVICES,SECURITY,4650,P115167-SERVICE-Lee Valley Leisure Centre Security,23/11/2021 00:00:00,255787,1248,CE0671,CENTRAL SECURITY LIMITED,11/01/2021 00:00,28/11/2021 00:00:00,P08-2022
CEO,LVLC SERVICE CHARGE,SUPPLIES AND SERVICES,SECURITY,4650,P115167-SERVICE-Lee Valley Leisure Centre Security,23/11/2021 00:00:00,255788,1248,CE0671,CENTRAL SECURITY LIMITED,11/01/2021 00:00,28/11/2021 00:00:00,P08-2022
CEO,PR/COMMUNICATIONS,SUPPLIES AND SERVICES,ADVERTISING - AWARENESS,4656,P112077-SERVICE-Leisure Kicks Olympic edition 2021 (LK21 pack,16/11/2021 00:00:00,255665,3327.5,PO0144,PORTAMENTO PUBLISHING LIMITED (LEISURE KICKS),11/01/2021 00:00,28/11/2021 00:00:00,P08-2022
,LEE VALLEY VELOPARK,SUPPLIES AND SERVICES,ENTERTAINMENT & OTHER LICENCES,4711,P113446-SERVICE-Fire Risk Assessment,22/11/2021 00:00:00,255799,500,RI0181,RD HEALTH & SAFETY LIMITED,11/01/2021 00:00,28/11/2021 00:00:00,P08-2022
,LV HOCKEY AND TENNIS CENTRE,SUPPLIES AND SERVICES,ENTERTAINMENT & OTHER LICENCES,4711,P113607-SERVICE-Fire risk assessment,18/11/2021 00:00:00,255800,500,RI0181,RD HEALTH & SAFETY LIMITED,11/01/2021 00:00,28/11/2021 00:00:00,P08-2022
,LEE VALLEY RIDING CENTRE,SUPPLIES AND SERVICES,ENTERTAINMENT & OTHER LICENCES,4711,P113606-SERVICE-fire risk assessment,28/11/2021 00:00:00,255949,500,RI0181,RD HEALTH & SAFETY LIMITED,11/01/2021 00:00,28/11/2021 00:00:00,P08-2022
,LEE VALLEY WHITE WATER CENTRE,SUPPLIES AND SERVICES,ENTERTAINMENT & OTHER LICENCES,4711,P115256-SERVICE-TV Licence 29.11.21 to 30.11.22,22/11/2021 00:00:00,255917,159,TV0065,TV LICENSING,11/01/2021 00:00,28/11/2021 00:00:00,P08-2022
P&V,LEE VALLEY FARM HOLYFIELDHALL,THIRD PARTY PAYMENTS,VETERINARY SERVICES,4718,P115089-SERVICE-Vets,22/11/2021 00:00:00,255370,1270.64,HA0443,HAMPDEN VETERINARY HOSPITAL,11/01/2021 00:00,28/11/2021 00:00:00,P08-2022
P&V,LEE VALLEY FARM HOLYFIELDHALL,THIRD PARTY PAYMENTS,VETERINARY SERVICES,4718,P115090-SERVICE-Vets,22/11/2021 00:00:00,255376,1405.02,HA0443,HAMPDEN VETERINARY HOSPITAL,11/01/2021 00:00,28/11/2021 00:00:00,P08-2022
P&V,LEE VALLEY FARM HOLYFIELDHALL,THIRD PARTY PAYMENTS,VETERINARY SERVICES,4718,P114076-SERVICE-Vets,22/11/2021 00:00:00,255940,-878.58,HA0443,HAMPDEN VETERINARY HOSPITAL,11/01/2021 00:00,28/11/2021 00:00:00,P08-2022
,LEE VALLEY RIDING CENTRE,THIRD PARTY PAYMENTS,VETERINARY SERVICES,4718,P112168-SERVICE-vet services April 2021 onwards,11/10/2021 00:00,255053,118.14,BA0566,BALLINGER EQUINE LTD,11/01/2021 00:00,28/11/2021 00:00:00,P08-2022
,LEE VALLEY RIDING CENTRE,THIRD PARTY PAYMENTS,VETERINARY SERVICES,4718,P112168-SERVICE-vet services April 2021 onwards,18/11/2021 00:00:00,255725,272.4,BA0566,BALLINGER EQUINE LTD,11/01/2021 00:00,28/11/2021 00:00:00,P08-2022
,LEE VALLEY RIDING CENTRE,THIRD PARTY PAYMENTS,VETERINARY SERVICES,4718,P112168-SERVICE-vet services April 2021 onwards,18/11/2021 00:00:00,255726,252.19,BA0566,BALLINGER EQUINE LTD,11/01/2021 00:00,28/11/2021 00:00:00,P08-2022
,LEE VALLEY RIDING CENTRE,THIRD PARTY PAYMENTS,FARRIER,4719,P112202-SERVICE-farrier services,15/11/2021 00:00:00,255457,395,CO0061,L COLLINS,11/01/2021 00:00,28/11/2021 00:00:00,P08-2022
,LEE VALLEY RIDING CENTRE,THIRD PARTY PAYMENTS,FARRIER,4719,P112202-SERVICE-farrier services,15/11/2021 00:00:00,255458,455,CO0061,L COLLINS,11/01/2021 00:00,28/11/2021 00:00:00,P08-2022
,LEE VALLEY RIDING CENTRE,THIRD PARTY PAYMENTS,FARRIER,4719,P112202-SERVICE-farrier services,15/11/2021 00:00:00,255459,465,CO0061,L COLLINS,11/01/2021 00:00,28/11/2021 00:00:00,P08-2022
,LEE VALLEY VELOPARK,SUPPLIES AND SERVICES,EVENTS,4724,P114868-SERVICE-Stewarding,15/11/2021 00:00:00,255252,162.5,WI0227,WISE SECURITY SERVICES,11/01/2021 00:00,28/11/2021 00:00:00,P08-2022
,LEE VALLEY VELOPARK,SUPPLIES AND SERVICES,EVENTS,4724,P115124-SERVICE-Stewarding,15/11/2021 00:00:00,255663,392.98,WI0227,WISE SECURITY SERVICES,11/01/2021 00:00,28/11/2021 00:00:00,P08-2022
P&V,YOUTH AND SCHOOLS,SUPPLIES AND SERVICES,ACTIVITIES (SCHOOLS),4725,P115196-SERVICE-Quality Badge registration & assessment,18/11/2021 00:00:00,255755,400,CO0443,COUNCIL FOR LEARNING OUTSIDE THE CLASSROOM,11/01/2021 00:00,28/11/2021 00:00:00,P08-2022
,LEE VALLEY VELOPARK CATERING,SUPPLIES AND SERVICES,CATERING PURCHASES (CORPORATE),4772,P114876-SERVICE-Catering Services,28/11/2021 00:00:00,255026,1403.25,SH0256,SHARRONS EVENT CATERING COMPANY LTD,11/01/2021 00:00,28/11/2021 00:00:00,P08-2022
,LEE VALLEY VELOPARK CATERING,SUPPLIES AND SERVICES,CATERING PURCHASES (CORPORATE),4772,P115011-SERVICE-Silver Buffet,15/11/2021 00:00:00,255310,426.4,SH0256,SHARRONS EVENT CATERING COMPANY LTD,11/01/2021 00:00,28/11/2021 00:00:00,P08-2022
,LEE VALLEY VELOPARK CATERING,SUPPLIES AND SERVICES,CATERING PURCHASES (CORPORATE),4772,P114353-SERVICE-BBQ Catering and Staff,15/11/2021 00:00:00,255442,1828.75,SH0256,SHARRONS EVENT CATERING COMPANY LTD,11/01/2021 00:00,28/11/2021 00:00:00,P08-2022
,LEE VALLEY VELOPARK CATERING,SUPPLIES AND SERVICES,CATERING PURCHASES (CORPORATE),4772,P114349-SERVICE-Afternoon Tea and Staffing on 16th September,15/11/2021 00:00:00,255451,131.2,SH0256,SHARRONS EVENT CATERING COMPANY LTD,11/01/2021 00:00,28/11/2021 00:00:00,P08-2022
P&V,MYDDLETON HSE HERITAGE CENTRE,SUPPLIES AND SERVICES,NET CATERING PURCHASES,4777,BIDFOOD,15/11/2021 00:00:00,254744,-155.98,360001,BIDFOOD,11/01/2021 00:00,28/11/2021 00:00:00,P08-2022
P&V,MYDDLETON HSE HERITAGE CENTRE,SUPPLIES AND SERVICES,NET CATERING PURCHASES,4777,BIDFOOD,15/11/2021 00:00:00,254744,89.72,360001,BIDFOOD,11/01/2021 00:00,28/11/2021 00:00:00,P08-2022
P&V,MYDDLETON HSE HERITAGE CENTRE,SUPPLIES AND SERVICES,NET CATERING PURCHASES,4777,P114782-SERVICE-tea rooms food/drink order w.e 31.10.21,15/11/2021 00:00:00,254744,155.98,360001,BIDFOOD,11/01/2021 00:00,28/11/2021 00:00:00,P08-2022
P&V,MYDDLETON HSE HERITAGE CENTRE,SUPPLIES AND SERVICES,NET CATERING PURCHASES,4777,BIDFOOD,15/11/2021 00:00:00,254744,66.26,360001,BIDFOOD,11/01/2021 00:00,28/11/2021 00:00:00,P08-2022
P&V,MYDDLETON HSE HERITAGE CENTRE,SUPPLIES AND SERVICES,NET CATERING PURCHASES,4777,P114782-SERVICE-tea rooms food/drink order w.e 31.10.21,28/11/2021 00:00:00,255007,34.58,360001,BIDFOOD,11/01/2021 00:00,28/11/2021 00:00:00,P08-2022
P&V,MYDDLETON HSE HERITAGE CENTRE,SUPPLIES AND SERVICES,NET CATERING PURCHASES,4777,BIDFOOD,11/08/2021 00:00,255031,-270.64,360001,BIDFOOD,11/01/2021 00:00,28/11/2021 00:00:00,P08-2022
P&V,MYDDLETON HSE HERITAGE CENTRE,SUPPLIES AND SERVICES,NET CATERING PURCHASES,4777,BIDFOOD,11/08/2021 00:00,255031,46.86,360001,BIDFOOD,11/01/2021 00:00,28/11/2021 00:00:00,P08-2022
P&V,MYDDLETON HSE HERITAGE CENTRE,SUPPLIES AND SERVICES,NET CATERING PURCHASES,4777,P114782-SERVICE-tea rooms food/drink order w.e 31.10.21,11/08/2021 00:00,255031,270.64,360001,BIDFOOD,11/01/2021 00:00,28/11/2021 00:00:00,P08-2022
P&V,MYDDLETON HSE HERITAGE CENTRE,SUPPLIES AND SERVICES,NET CATERING PURCHASES,4777,BIDFOOD,11/08/2021 00:00,255031,223.78,360001,BIDFOOD,11/01/2021 00:00,28/11/2021 00:00:00,P08-2022
P&V,MYDDLETON HSE HERITAGE CENTRE,SUPPLIES AND SERVICES,NET CATERING PURCHASES,4777,P114782-SERVICE-tea rooms food/drink order w.e 31.10.21,11/08/2021 00:00,255106,-14.03,360001,BIDFOOD,11/01/2021 00:00,28/11/2021 00:00:00,P08-2022
P&V,MYDDLETON HSE HERITAGE CENTRE,SUPPLIES AND SERVICES,NET CATERING PURCHASES,4777,P114955-SERVICE-HONEY ORDER TEAROOMS OCTOBER,11/09/2021 00:00,255249,120,DA0191,TOM DAWSON,11/01/2021 00:00,28/11/2021 00:00:00,P08-2022
P&V,MYDDLETON HSE HERITAGE CENTRE,SUPPLIES AND SERVICES,NET CATERING PURCHASES,4777,BIDFOOD,15/11/2021 00:00:00,255262,-258.21,360001,BIDFOOD,11/01/2021 00:00,28/11/2021 00:00:00,P08-2022
P&V,MYDDLETON HSE HERITAGE CENTRE,SUPPLIES AND SERVICES,NET CATERING PURCHASES,4777,BIDFOOD,15/11/2021 00:00:00,255262,187.15,360001,BIDFOOD,11/01/2021 00:00,28/11/2021 00:00:00,P08-2022
P&V,MYDDLETON HSE HERITAGE CENTRE,SUPPLIES AND SERVICES,NET CATERING PURCHASES,4777,P114905-SERVICE-food/drink order w.b. 1.11.21,15/11/2021 00:00:00,255262,258.21,360001,BIDFOOD,11/01/2021 00:00,28/11/2021 00:00:00,P08-2022
P&V,MYDDLETON HSE HERITAGE CENTRE,SUPPLIES AND SERVICES,NET CATERING PURCHASES,4777,BIDFOOD,15/11/2021 00:00:00,255262,71.06,360001,BIDFOOD,11/01/2021 00:00,28/11/2021 00:00:00,P08-2022
P&V,MYDDLETON HSE HERITAGE CENTRE,SUPPLIES AND SERVICES,NET CATERING PURCHASES,4777,P115070-SERVICE-Food/drink order w.e 14.11.21,16/11/2021 00:00:00,255650,298.53,360001,BIDFOOD,11/01/2021 00:00,28/11/2021 00:00:00,P08-2022
P&V,MYDDLETON HSE HERITAGE CENTRE,SUPPLIES AND SERVICES,NET CATERING PURCHASES,4777,BIDFOOD,16/11/2021 00:00:00,255650,-298.53,360001,BIDFOOD,11/01/2021 00:00,28/11/2021 00:00:00,P08-2022
P&V,MYDDLETON HSE HERITAGE CENTRE,SUPPLIES AND SERVICES,NET CATERING PURCHASES,4777,BIDFOOD,16/11/2021 00:00:00,255650,218.12,360001,BIDFOOD,11/01/2021 00:00,28/11/2021 00:00:00,P08-2022
P&V,MYDDLETON HSE HERITAGE CENTRE,SUPPLIES AND SERVICES,NET CATERING PURCHASES,4777,BIDFOOD,16/11/2021 00:00:00,255650,80.41,360001,BIDFOOD,11/01/2021 00:00,28/11/2021 00:00:00,P08-2022
P&V,MYDDLETON HSE HERITAGE CENTRE,SUPPLIES AND SERVICES,NET CATERING PURCHASES,4777,P114827-SERVICE-coffee order october,28/11/2021 00:00:00,255671,161.5,TU0194,TUDOR TEA & COFFEE,11/01/2021 00:00,28/11/2021 00:00:00,P08-2022
P&V,MYDDLETON HSE HERITAGE CENTRE,SUPPLIES AND SERVICES,NET CATERING PURCHASES,4777,P115199-SERVICE-Food/Drink order w.e 21.11.2021,28/11/2021 00:00:00,255771,279.05,360001,BIDFOOD,11/01/2021 00:00,28/11/2021 00:00:00,P08-2022
P&V,MYDDLETON HSE HERITAGE CENTRE,SUPPLIES AND SERVICES,NET CATERING PURCHASES,4777,BIDFOOD,28/11/2021 00:00:00,255771,249.16,360001,BIDFOOD,11/01/2021 00:00,28/11/2021 00:00:00,P08-2022
P&V,MYDDLETON HSE HERITAGE CENTRE,SUPPLIES AND SERVICES,NET CATERING PURCHASES,4777,BIDFOOD,28/11/2021 00:00:00,255771,-279.05,360001,BIDFOOD,11/01/2021 00:00,28/11/2021 00:00:00,P08-2022
P&V,MYDDLETON HSE HERITAGE CENTRE,SUPPLIES AND SERVICES,NET CATERING PURCHASES,4777,BIDFOOD,28/11/2021 00:00:00,255771,29.89,360001,BIDFOOD,11/01/2021 00:00,28/11/2021 00:00:00,P08-2022
P&V,MYDDLETON HSE HERITAGE CENTRE,SUPPLIES AND SERVICES,NET CATERING PURCHASES,4777,P115199-SERVICE-Food/Drink order w.e 21.11.2021,28/11/2021 00:00:00,256201,58.77,360001,BIDFOOD,11/01/2021 00:00,28/11/2021 00:00:00,P08-2022
,LEE VALLEY ATHLETICS CENTRE,SUPPLIES AND SERVICES,NET CATERING PURCHASES,4777,P114723-SERVICE-ORDERED 20.10.21 37 ITEMS,28/11/2021 00:00:00,255024,95.86,SI0589,SIMPLY LUNCH LTD,11/01/2021 00:00,28/11/2021 00:00:00,P08-2022
,LEE VALLEY ATHLETICS CENTRE,SUPPLIES AND SERVICES,NET CATERING PURCHASES,4777,P115127-SERVICE-COFFEE AND MILK SACHETS O-10002707664,28/11/2021 00:00:00,256192,115.18,TH0008,JKL SOLUTIONS LTD,11/01/2021 00:00,28/11/2021 00:00:00,P08-2022
P&V,FISHERIES MANAGEMENT,SUPPLIES AND SERVICES,FISHERIES (MATERIALS),4803,P112668-SERVICE-1x 1HP Splash Aerator & Weed Guard,11/09/2021 00:00,255277,775,AQ0339,AQUACULTURE EQUIPMENT LTD,11/01/2021 00:00,28/11/2021 00:00:00,P08-2022
,LEE VALLEY MARINA SPRINGFIELD,SUPPLIES AND SERVICES,TRADING AC - EXTERNAL PURCHASE,4875,P114555-SERVICE-Chandlery Stock  771395,11/08/2021 00:00,254702,27.48,MI0200,MIDLAND CHANDLERS LIMITED,11/01/2021 00:00,28/11/2021 00:00:00,P08-2022
,LEE VALLEY MARINA SPRINGFIELD,SUPPLIES AND SERVICES,TRADING AC - EXTERNAL PURCHASE,4875,P114949-SERVICE-Chandlery Stock,11/09/2021 00:00,254730,166.42,AQ0033,AQUAFAX LIMITED,11/01/2021 00:00,28/11/2021 00:00:00,P08-2022
,LEE VALLEY MARINA SPRINGFIELD,SUPPLIES AND SERVICES,TRADING AC - EXTERNAL PURCHASE,4875,P114501-SERVICE-Chandlery Stock  (gas and kindling),15/11/2021 00:00:00,254751,355.28,SM0664,KG SMITH & SON,11/01/2021 00:00,28/11/2021 00:00:00,P08-2022
,LEE VALLEY MARINA SPRINGFIELD,SUPPLIES AND SERVICES,TRADING AC - EXTERNAL PURCHASE,4875,P114800-SERVICE-Chandlery Stock,11/08/2021 00:00,254767,597.74,CR0651,CRAFTMASTER PAINTS,11/01/2021 00:00,28/11/2021 00:00:00,P08-2022
,LEE VALLEY MARINA SPRINGFIELD,SUPPLIES AND SERVICES,TRADING AC - EXTERNAL PURCHASE,4875,P114816-SERVICE-Chandlery Stock  777119,15/11/2021 00:00:00,254992,7.41,MI0200,MIDLAND CHANDLERS LIMITED,11/01/2021 00:00,28/11/2021 00:00:00,P08-2022
,LEE VALLEY MARINA SPRINGFIELD,SUPPLIES AND SERVICES,TRADING AC - EXTERNAL PURCHASE,4875,P114863-SERVICE-Chandlery Stock  778385,11/09/2021 00:00,255045,301.12,MI0200,MIDLAND CHANDLERS LIMITED,11/01/2021 00:00,28/11/2021 00:00:00,P08-2022
,LEE VALLEY MARINA SPRINGFIELD,SUPPLIES AND SERVICES,TRADING AC - EXTERNAL PURCHASE,4875,P113993-SERVICE-Chandlery Stock,15/11/2021 00:00:00,255113,62.3,DS0201,DSM GROUP,11/01/2021 00:00,28/11/2021 00:00:00,P08-2022
,LEE VALLEY MARINA SPRINGFIELD,SUPPLIES AND SERVICES,TRADING AC - EXTERNAL PURCHASE,4875,P113993-SERVICE-Chandlery Stock,15/11/2021 00:00:00,255113,11.5,DS0201,DSM GROUP,11/01/2021 00:00,28/11/2021 00:00:00,P08-2022
,LEE VALLEY MARINA SPRINGFIELD,SUPPLIES AND SERVICES,TRADING AC - EXTERNAL PURCHASE,4875,P113993-SERVICE-Chandlery Stock,15/11/2021 00:00:00,255113,0.2,DS0201,DSM GROUP,11/01/2021 00:00,28/11/2021 00:00:00,P08-2022
,LEE VALLEY MARINA SPRINGFIELD,SUPPLIES AND SERVICES,TRADING AC - EXTERNAL PURCHASE,4875,P114555-SERVICE-Chandlery Stock  771395,11/08/2021 00:00,255297,-27.48,MI0200,MIDLAND CHANDLERS LIMITED,11/01/2021 00:00,28/11/2021 00:00:00,P08-2022
,LEE VALLEY MARINA SPRINGFIELD,SUPPLIES AND SERVICES,TRADING AC - EXTERNAL PURCHASE,4875,P114816-SERVICE-Chandlery Stock  777119,11/10/2021 00:00,255298,7.41,MI0200,MIDLAND CHANDLERS LIMITED,11/01/2021 00:00,28/11/2021 00:00:00,P08-2022
,LEE VALLEY MARINA SPRINGFIELD,SUPPLIES AND SERVICES,TRADING AC - EXTERNAL PURCHASE,4875,P114926-SERVICE-Chandlery Stock  779583,11/09/2021 00:00,255299,757.99,MI0200,MIDLAND CHANDLERS LIMITED,11/01/2021 00:00,28/11/2021 00:00:00,P08-2022
,LEE VALLEY MARINA SPRINGFIELD,SUPPLIES AND SERVICES,TRADING AC - EXTERNAL PURCHASE,4875,P114969-SERVICE-Chandlery Stock,11/09/2021 00:00,255349,246.03,MI0200,MIDLAND CHANDLERS LIMITED,11/01/2021 00:00,28/11/2021 00:00:00,P08-2022
,LEE VALLEY MARINA SPRINGFIELD,SUPPLIES AND SERVICES,TRADING AC - EXTERNAL PURCHASE,4875,P114969-SERVICE-Chandlery Stock,11/09/2021 00:00,255397,28.16,MI0200,MIDLAND CHANDLERS LIMITED,11/01/2021 00:00,28/11/2021 00:00:00,P08-2022
,LEE VALLEY MARINA SPRINGFIELD,SUPPLIES AND SERVICES,TRADING AC - EXTERNAL PURCHASE,4875,P114501-SERVICE-Chandlery Stock  (gas and kindling),15/11/2021 00:00:00,255494,586.53,SM0664,KG SMITH & SON,11/01/2021 00:00,28/11/2021 00:00:00,P08-2022
,LEE VALLEY MARINA SPRINGFIELD,SUPPLIES AND SERVICES,TRADING AC - EXTERNAL PURCHASE,4875,P115051-SERVICE-Chandlery Stock 781390,18/11/2021 00:00:00,255505,493.95,MI0200,MIDLAND CHANDLERS LIMITED,11/01/2021 00:00,28/11/2021 00:00:00,P08-2022
,LEE VALLEY MARINA SPRINGFIELD,SUPPLIES AND SERVICES,TRADING AC - EXTERNAL PURCHASE,4875,P114969-SERVICE-Chandlery Stock,18/11/2021 00:00:00,255641,1155.68,MI0200,MIDLAND CHANDLERS LIMITED,11/01/2021 00:00,28/11/2021 00:00:00,P08-2022
,LEE VALLEY MARINA SPRINGFIELD,SUPPLIES AND SERVICES,TRADING AC - EXTERNAL PURCHASE,4875,P115106-SERVICE-Chandlery Stock  75673,18/11/2021 00:00:00,255643,209.27,AQ0033,AQUAFAX LIMITED,11/01/2021 00:00,28/11/2021 00:00:00,P08-2022
,LEE VALLEY MARINA SPRINGFIELD,SUPPLIES AND SERVICES,TRADING AC - EXTERNAL PURCHASE,4875,P115184-SERVICE-Chandlery Stock  783715,22/11/2021 00:00:00,255789,466.92,MI0200,MIDLAND CHANDLERS LIMITED,11/01/2021 00:00,28/11/2021 00:00:00,P08-2022
,LEE VALLEY MARINA SPRINGFIELD,SUPPLIES AND SERVICES,TRADING AC - EXTERNAL PURCHASE,4875,P114933-SERVICE-Chandlery Stock,18/11/2021 00:00:00,255797,74.16,MI0200,MIDLAND CHANDLERS LIMITED,11/01/2021 00:00,28/11/2021 00:00:00,P08-2022
,LEE VALLEY MARINA SPRINGFIELD,SUPPLIES AND SERVICES,TRADING AC - EXTERNAL PURCHASE,4875,P115224-SERVICE-Chandlery Stock,22/11/2021 00:00:00,255919,427.01,MI0200,MIDLAND CHANDLERS LIMITED,11/01/2021 00:00,28/11/2021 00:00:00,P08-2022
,LEE VALLEY MARINA SPRINGFIELD,SUPPLIES AND SERVICES,TRADING AC - EXTERNAL PURCHASE,4875,P115177-SERVICE-Chandlery Stock,28/11/2021 00:00:00,255933,332.79,CA0660,CALFIRE SPARELINE LIMITED,11/01/2021 00:00,28/11/2021 00:00:00,P08-2022
,LEE VALLEY MARINA SPRINGFIELD,SUPPLIES AND SERVICES,TRADING AC - EXTERNAL PURCHASE,4875,P115289-SERVICE-Chandlery Stock  142666,28/11/2021 00:00:00,255980,116.6,AS0036,ASAP SUPPLIES,11/01/2021 00:00,28/11/2021 00:00:00,P08-2022
,LEE VALLEY MARINA SPRINGFIELD,SUPPLIES AND SERVICES,TRADING AC - EXTERNAL PURCHASE,4875,P115040-SERVICE-Chandlery Stock (gas and coal),28/11/2021 00:00:00,256164,2480.75,SM0664,KG SMITH & SON,11/01/2021 00:00,28/11/2021 00:00:00,P08-2022
,LEE VALLEY MARINA SPRINGFIELD,SUPPLIES AND SERVICES,TRADING AC - EXTERNAL PURCHASE,4875,KG SMITH & SON,28/11/2021 00:00:00,256164,1560.75,SM0664,KG SMITH & SON,11/01/2021 00:00,28/11/2021 00:00:00,P08-2022
,LEE VALLEY MARINA SPRINGFIELD,SUPPLIES AND SERVICES,TRADING AC - EXTERNAL PURCHASE,4875,KG SMITH & SON,28/11/2021 00:00:00,256164,920,SM0664,KG SMITH & SON,11/01/2021 00:00,28/11/2021 00:00:00,P08-2022
,LEE VALLEY MARINA SPRINGFIELD,SUPPLIES AND SERVICES,TRADING AC - EXTERNAL PURCHASE,4875,KG SMITH & SON,28/11/2021 00:00:00,256164,-2480.75,SM0664,KG SMITH & SON,11/01/2021 00:00,28/11/2021 00:00:00,P08-2022
,LEE VALLEY MARINA SPRINGFIELD,SUPPLIES AND SERVICES,TRADING AC - EXTERNAL PURCHASE,4875,P115040-SERVICE-Chandlery Stock (gas and coal),28/11/2021 00:00:00,256165,-394.9,SM0664,KG SMITH & SON,11/01/2021 00:00,28/11/2021 00:00:00,P08-2022
,LEE VALLEY MARINA SPRINGFIELD,SUPPLIES AND SERVICES,TRADING AC - EXTERNAL PURCHASE,4875,P115290-SERVICE-Chandlery Stock  785377,28/11/2021 00:00:00,256174,494.61,MI0200,MIDLAND CHANDLERS LIMITED,11/01/2021 00:00,28/11/2021 00:00:00,P08-2022
,LEE VALLEY MARINA SPRINGFIELD,SUPPLIES AND SERVICES,TRADING AC - EXTERNAL PURCHASE,4875,P115311-SERVICE-Chandlery Stock  786003,28/11/2021 00:00:00,256177,496.7,MI0200,MIDLAND CHANDLERS LIMITED,11/01/2021 00:00,28/11/2021 00:00:00,P08-2022
,LEE VALLEY MARINA SPRINGFIELD,SUPPLIES AND SERVICES,TRADING AC - EXTERNAL PURCHASE,4875,P114969-SERVICE-Chandlery Stock,28/11/2021 00:00:00,256214,41.12,MI0200,MIDLAND CHANDLERS LIMITED,11/01/2021 00:00,28/11/2021 00:00:00,P08-2022
,LEE VALLEY MARINA SPRINGFIELD,SUPPLIES AND SERVICES,TRADING AC - EXTERNAL PURCHASE,4875,P115347-SERVICE-Chandlery Stock  786735,28/11/2021 00:00:00,256230,302.4,MI0200,MIDLAND CHANDLERS LIMITED,11/01/2021 00:00,28/11/2021 00:00:00,P08-2022
,STANSTEAD RECHARGEABLE WORKS,SUPPLIES AND SERVICES,TRADING AC - EXTERNAL PURCHASE,4875,P114584-SERVICE-chandlery stock,11/09/2021 00:00,254388,1726.63,MI0200,MIDLAND CHANDLERS LIMITED,11/01/2021 00:00,28/11/2021 00:00:00,P08-2022
,STANSTEAD RECHARGEABLE WORKS,SUPPLIES AND SERVICES,TRADING AC - EXTERNAL PURCHASE,4875,P114584-SERVICE-chandlery stock,11/09/2021 00:00,254399,9.7,MI0200,MIDLAND CHANDLERS LIMITED,11/01/2021 00:00,28/11/2021 00:00:00,P08-2022
,STANSTEAD RECHARGEABLE WORKS,SUPPLIES AND SERVICES,TRADING AC - EXTERNAL PURCHASE,4875,P114873-SERVICE-chandlery stock,11/09/2021 00:00,255043,277.2,AQ0033,AQUAFAX LIMITED,11/01/2021 00:00,28/11/2021 00:00:00,P08-2022
,STANSTEAD RECHARGEABLE WORKS,SUPPLIES AND SERVICES,TRADING AC - EXTERNAL PURCHASE,4875,P114801-SERVICE-chandlery stock,11/09/2021 00:00,255044,11.14,AQ0033,AQUAFAX LIMITED,11/01/2021 00:00,28/11/2021 00:00:00,P08-2022
,STANSTEAD RECHARGEABLE WORKS,SUPPLIES AND SERVICES,TRADING AC - EXTERNAL PURCHASE,4875,P114373-SERVICE-chandlery stock,11/09/2021 00:00,255076,94,CA0660,CALFIRE SPARELINE LIMITED,11/01/2021 00:00,28/11/2021 00:00:00,P08-2022
,STANSTEAD RECHARGEABLE WORKS,SUPPLIES AND SERVICES,TRADING AC - EXTERNAL PURCHASE,4875,P114877-SERVICE-chandelry stock,11/09/2021 00:00,255092,433.92,MI0200,MIDLAND CHANDLERS LIMITED,11/01/2021 00:00,28/11/2021 00:00:00,P08-2022
,STANSTEAD RECHARGEABLE WORKS,SUPPLIES AND SERVICES,TRADING AC - EXTERNAL PURCHASE,4875,P114873-SERVICE-chandlery stock,11/09/2021 00:00,255108,30.42,AQ0033,AQUAFAX LIMITED,11/01/2021 00:00,28/11/2021 00:00:00,P08-2022
,STANSTEAD RECHARGEABLE WORKS,SUPPLIES AND SERVICES,TRADING AC - EXTERNAL PURCHASE,4875,P115016-SERVICE-chandlery stock,11/09/2021 00:00,255350,111.21,MI0200,MIDLAND CHANDLERS LIMITED,11/01/2021 00:00,28/11/2021 00:00:00,P08-2022
,STANSTEAD RECHARGEABLE WORKS,SUPPLIES AND SERVICES,TRADING AC - EXTERNAL PURCHASE,4875,P115016-SERVICE-chandlery stock,11/09/2021 00:00,255351,768.26,MI0200,MIDLAND CHANDLERS LIMITED,11/01/2021 00:00,28/11/2021 00:00:00,P08-2022
,STANSTEAD RECHARGEABLE WORKS,SUPPLIES AND SERVICES,TRADING AC - EXTERNAL PURCHASE,4875,P114892-SERVICE-2200l red diesel @ 80ppl,16/11/2021 00:00:00,255356,1760,SP0543,SPEEDY FUELS LIMITED,11/01/2021 00:00,28/11/2021 00:00:00,P08-2022
,STANSTEAD RECHARGEABLE WORKS,SUPPLIES AND SERVICES,TRADING AC - EXTERNAL PURCHASE,4875,P114892-SERVICE-additional diesel delivered,16/11/2021 00:00:00,255356,240,SP0543,SPEEDY FUELS LIMITED,11/01/2021 00:00,28/11/2021 00:00:00,P08-2022
,STANSTEAD RECHARGEABLE WORKS,SUPPLIES AND SERVICES,TRADING AC - EXTERNAL PURCHASE,4875,P114187-SERVICE-chandlery stock,16/11/2021 00:00:00,255395,6.46,MI0200,MIDLAND CHANDLERS LIMITED,11/01/2021 00:00,28/11/2021 00:00:00,P08-2022
,STANSTEAD RECHARGEABLE WORKS,SUPPLIES AND SERVICES,TRADING AC - EXTERNAL PURCHASE,4875,P114446-SERVICE-chandlerystock,16/11/2021 00:00:00,255396,-43.28,MI0200,MIDLAND CHANDLERS LIMITED,11/01/2021 00:00,28/11/2021 00:00:00,P08-2022
,STANSTEAD RECHARGEABLE WORKS,SUPPLIES AND SERVICES,TRADING AC - EXTERNAL PURCHASE,4875,P114957-SERVICE-chandlery stock,16/11/2021 00:00:00,255452,110.02,DS0201,DSM GROUP,11/01/2021 00:00,28/11/2021 00:00:00,P08-2022
,STANSTEAD RECHARGEABLE WORKS,SUPPLIES AND SERVICES,TRADING AC - EXTERNAL PURCHASE,4875,P115031-SERVICE-charndlery stock,16/11/2021 00:00:00,255463,383.75,HA0371,HARTS OF OAK,11/01/2021 00:00,28/11/2021 00:00:00,P08-2022
,STANSTEAD RECHARGEABLE WORKS,SUPPLIES AND SERVICES,TRADING AC - EXTERNAL PURCHASE,4875,P115016-SERVICE-chandlery stock,17/11/2021 00:00:00,255464,43.28,MI0200,MIDLAND CHANDLERS LIMITED,11/01/2021 00:00,28/11/2021 00:00:00,P08-2022
,STANSTEAD RECHARGEABLE WORKS,SUPPLIES AND SERVICES,TRADING AC - EXTERNAL PURCHASE,4875,P115016-SERVICE-chandlery stock,17/11/2021 00:00:00,255465,43.28,MI0200,MIDLAND CHANDLERS LIMITED,11/01/2021 00:00,28/11/2021 00:00:00,P08-2022
,STANSTEAD RECHARGEABLE WORKS,SUPPLIES AND SERVICES,TRADING AC - EXTERNAL PURCHASE,4875,P114538-SERVICE-coal,16/11/2021 00:00:00,255493,2090,SM0664,KG SMITH & SON,11/01/2021 00:00,28/11/2021 00:00:00,P08-2022
,STANSTEAD RECHARGEABLE WORKS,SUPPLIES AND SERVICES,TRADING AC - EXTERNAL PURCHASE,4875,P115073-SERVICE-chadnlery stock,22/11/2021 00:00:00,255642,340.86,MI0200,MIDLAND CHANDLERS LIMITED,11/01/2021 00:00,28/11/2021 00:00:00,P08-2022
,STANSTEAD RECHARGEABLE WORKS,SUPPLIES AND SERVICES,TRADING AC - EXTERNAL PURCHASE,4875,P115114-SERVICE-coal,22/11/2021 00:00:00,255727,2315,SM0664,KG SMITH & SON,11/01/2021 00:00,28/11/2021 00:00:00,P08-2022
,STANSTEAD RECHARGEABLE WORKS,SUPPLIES AND SERVICES,TRADING AC - EXTERNAL PURCHASE,4875,P115165-SERVICE-chandlery stock,22/11/2021 00:00:00,255735,581.03,MI0200,MIDLAND CHANDLERS LIMITED,11/01/2021 00:00,28/11/2021 00:00:00,P08-2022
,STANSTEAD RECHARGEABLE WORKS,SUPPLIES AND SERVICES,TRADING AC - EXTERNAL PURCHASE,4875,P115165-SERVICE-chandlery stock,22/11/2021 00:00:00,255736,6.65,MI0200,MIDLAND CHANDLERS LIMITED,11/01/2021 00:00,28/11/2021 00:00:00,P08-2022
,STANSTEAD RECHARGEABLE WORKS,SUPPLIES AND SERVICES,TRADING AC - EXTERNAL PURCHASE,4875,P115147-SERVICE-chandlery stock,22/11/2021 00:00:00,255740,125.46,BE0198,BETA MARINE LIMITED,11/01/2021 00:00,28/11/2021 00:00:00,P08-2022
,STANSTEAD RECHARGEABLE WORKS,SUPPLIES AND SERVICES,TRADING AC - EXTERNAL PURCHASE,4875,P115226-SERVICE-chandlery stock,22/11/2021 00:00:00,255918,362.93,AQ0033,AQUAFAX LIMITED,11/01/2021 00:00,28/11/2021 00:00:00,P08-2022
,LEE VALLEY CARAVAN PARK,SUPPLIES AND SERVICES,TRADING AC - EXTERNAL PURCHASE,4875,P114907-SERVICE-Logs,22/11/2021 00:00:00,254743,50,HA0371,HARTS OF OAK,11/01/2021 00:00,28/11/2021 00:00:00,P08-2022
,LEE VALLEY CARAVAN PARK,SUPPLIES AND SERVICES,TRADING AC - EXTERNAL PURCHASE,4875,P115220-SERVICE-Logs/Charcole,22/11/2021 00:00:00,254743,100,HA0371,HARTS OF OAK,11/01/2021 00:00,28/11/2021 00:00:00,P08-2022
,LEE VALLEY CARAVAN PARK,SUPPLIES AND SERVICES,TRADING AC - EXTERNAL PURCHASE,4875,"P115272-SERVICE-15 wood, 5 charcoal",28/11/2021 00:00:00,256000,100,HA0371,HARTS OF OAK,11/01/2021 00:00,28/11/2021 00:00:00,P08-2022
,LV HOCKEY AND TENNIS CENTRE,SUPPLIES AND SERVICES,TRADING AC - EXTERNAL PURCHASE,4875,P115337-SERVICE-ngw oh bobble hat,28/11/2021 00:00:00,255640,24,OM0132,OMEGA HOCKEY LTD,11/01/2021 00:00,28/11/2021 00:00:00,P08-2022
,LV LEISURE CENTRE CAMPSITE,SUPPLIES AND SERVICES,TRADING AC - EXTERNAL PURCHASE,4875,P115035-SERVICE-Dryer token,11/10/2021 00:00,254703,37.8,AL0434,ALLSOP & FRANCIS,11/01/2021 00:00,28/11/2021 00:00:00,P08-2022
,LV LEISURE CENTRE GOLF COURSE,SUPPLIES AND SERVICES,TRADING AC - EXTERNAL PURCHASE,4875,P115036-SERVICE-Lake balls,22/11/2021 00:00:00,255079,294,GR0144,BARRY GRIFFITHS,11/01/2021 00:00,28/11/2021 00:00:00,P08-2022
,LEE VALLEY CAMPSITE,SUPPLIES AND SERVICES,BOTTLED GAS,4877,P115033-SERVICE-8x 47kg,11/10/2021 00:00,255283,548.46,FL0147,FLOGAS BRITAIN LIMITED,11/01/2021 00:00,28/11/2021 00:00:00,P08-2022
,LEE VALLEY CAMPSITE,SUPPLIES AND SERVICES,BOTTLED GAS,4877,P115033-SERVICE-5x 19kg,11/10/2021 00:00,255283,139.1,FL0147,FLOGAS BRITAIN LIMITED,11/01/2021 00:00,28/11/2021 00:00:00,P08-2022
,LEE VALLEY CARAVAN PARK,SUPPLIES AND SERVICES,BOTTLED GAS,4877,P115120-SERVICE-4 x 6kg 6 x 47kg 1 x 13kg Patio,28/11/2021 00:00:00,255991,613.67,CA0006,CALOR GAS LIMITED,11/01/2021 00:00,28/11/2021 00:00:00,P08-2022
,LV HOCKEY AND TENNIS CENTRE,SUPPLIES AND SERVICES,MERCHANDISING,4879,P115337-SERVICE-Typhon 85 hockey stick,28/11/2021 00:00:00,255640,52.5,OM0132,OMEGA HOCKEY LTD,11/01/2021 00:00,28/11/2021 00:00:00,P08-2022
,LV HOCKEY AND TENNIS CENTRE,SUPPLIES AND SERVICES,MERCHANDISING,4879,P115337-SERVICE-OH PRO GLOVE OPEN PALM LH ONLY,28/11/2021 00:00:00,255640,36,OM0132,OMEGA HOCKEY LTD,11/01/2021 00:00,28/11/2021 00:00:00,P08-2022
,LV HOCKEY AND TENNIS CENTRE,SUPPLIES AND SERVICES,MERCHANDISING,4879,P115337-SERVICE-OH PRO GLOVE FULL LH ONLY,28/11/2021 00:00:00,255640,36,OM0132,OMEGA HOCKEY LTD,11/01/2021 00:00,28/11/2021 00:00:00,P08-2022
,LV HOCKEY AND TENNIS CENTRE,SUPPLIES AND SERVICES,MERCHANDISING,4879,P115337-SERVICE-OH carbon shin pad,28/11/2021 00:00:00,255640,22.5,OM0132,OMEGA HOCKEY LTD,11/01/2021 00:00,28/11/2021 00:00:00,P08-2022
CEO,COMMERCIAL ACCOMMODATION,SUPPLIES AND SERVICES,OTHER EXPENSES,4899,P111967-SERVICE-Land Registry,28/11/2021 00:00:00,256236,2,HM0032,HM LAND REGISTRY,11/01/2021 00:00,28/11/2021 00:00:00,P08-2022
P&V,LEE VALLEY FARM HOLYFIELDHALL,SUPPLIES AND SERVICES,OTHER EXPENSES,4899,P115081-SERVICE-Cable Clips 5-7mm,16/11/2021 00:00:00,255500,3.9,CO0499,COMMS EXPRESS,11/01/2021 00:00,28/11/2021 00:00:00,P08-2022
P&V,LEE VALLEY FARM HOLYFIELDHALL,SUPPLIES AND SERVICES,OTHER EXPENSES,4899,P115081-SERVICE-CAT5e Cable external,16/11/2021 00:00:00,255500,117.5,CO0499,COMMS EXPRESS,11/01/2021 00:00,28/11/2021 00:00:00,P08-2022
P&V,LEE VALLEY FARM HOLYFIELDHALL,SUPPLIES AND SERVICES,OTHER EXPENSES,4899,P115081-SERVICE-cable Clips 3-5mm,16/11/2021 00:00:00,255500,3.75,CO0499,COMMS EXPRESS,11/01/2021 00:00,28/11/2021 00:00:00,P08-2022
P&V,LEE VALLEY FARM HOLYFIELDHALL,SUPPLIES AND SERVICES,OTHER EXPENSES,4899,P115382-SERVICE-Repair/Call Out,28/11/2021 00:00:00,256234,108.75,TH0630,THE MILK STATION COMPANY,11/01/2021 00:00,28/11/2021 00:00:00,P08-2022
P&V,RIVER LEE COUNTRY PARK,SUPPLIES AND SERVICES,OTHER EXPENSES,4899,P112210-SERVICE-Animal Disposal,15/11/2021 00:00:00,255491,10.5,HO0033,HOLTS ABATTOIR LTD,11/01/2021 00:00,28/11/2021 00:00:00,P08-2022
P&V,COMMUNITY ACCESS FUND,SUPPLIES AND SERVICES,OTHER EXPENSES,4899,P115205-SERVICE-Coach hire - St Anne Line school 29.11.21,17/11/2021 00:00:00,255713,495,KE0169,KEANE TRAVEL LTD,11/01/2021 00:00,28/11/2021 00:00:00,P08-2022
